Directorate,Department,Expenditure Type,Ref.Doc.1,Vendor Name,Expenditure Amount (exc VAT),Payment Date
Assurance,Assurance,Advertising,10013095,NEWSQUEST (LONDON) LIMITED, 805.00 ,25/02/2016
Assurance,Assurance,Consultants Fees,20028581,LONDON AUDIT GROUP, 125.00 ,26/02/2016
Assurance,Assurance,Equipment and Materials Purcha,40001383,OFFICE DEPOT UK LTD, 68.67 ,10/02/2016
Assurance,Assurance,Equipment and Materials Purcha,20028155,TOYE KENNING AND SPENCER, 542.15 ,05/02/2016
Assurance,Assurance,General Office Expenses,40001366,OFFICE DEPOT UK LTD, 3.52 ,04/02/2016
Assurance,Assurance,General Office Expenses,40001370,OFFICE DEPOT UK LTD, 64.10 ,04/02/2016
Assurance,Assurance,Other Indirect Employee Expens,20028156,MAYOR OF BARNETS CHARITY COMMISSION, 160.00 ,05/02/2016
Assurance,Assurance,Other Indirect Employee Expens,20028050,THE MAYORESS ' COMMITTEE, 80.00 ,01/02/2016
Assurance,Assurance,Other Indirect Employee Expens,20028087,THE MAYOR'S CHARITY APPEAL, 120.00 ,02/02/2016
Assurance,Assurance,Other Services,60045220,REDACTED - PERSONAL DATA, 50.00 ,17/02/2016
Assurance,Assurance,Other Services,20028532,ROYAL BANK OF SCOTLAND, 160.00 ,23/02/2016
Assurance,Assurance,Professional Services,60044784,ASSOCIATION OF DEMOCRATIC SERVICES OFFIC, 490.00 ,18/02/2016
Assurance,Assurance,Professional Services,60046274,ELECTORAL REFORM SERVICES," 3,207.26 ",29/02/2016
Assurance,Assurance,Professional Services,20028039,THE BARNET BAND, 300.00 ,01/02/2016
Assurance,Assurance,Publications,60045171,HD PRODUCTION LTD," 8,699.00 ",16/02/2016
Assurance,Assurance,Rents,60046194,THE GREEK CYPRIOT COMMUNITY TRUST, 160.00 ,23/02/2016
Assurance,Assurance,Subscriptions,60046177,ASSOCIATION OF DEMOCRATIC SERVICES OFFIC, 55.00 ,18/02/2016
Assurance,Assurance,Subscriptions,60046173,CALL CREDIT LTD," 3,250.00 ",17/02/2016
Assurance,Assurance,Subscriptions,60046201,CALL CREDIT LTD, 155.00 ,17/02/2016
Assurance,Assurance,Subscriptions,60046222,CALL CREDIT LTD, 547.00 ,17/02/2016
Assurance,Assurance,Subscriptions,60046258,CALL CREDIT LTD," 3,840.00 ",17/02/2016
Assurance,Assurance,Subscriptions,60044661,REDACTED - PERSONAL DATA, 100.00 ,17/02/2016
Assurance,Assurance,Subscriptions,60046070,SOUTHWARK COUNCIL, 300.00 ,11/02/2016
Assurance,Assurance,Training,60047001,WESTMINSTER EDUCATION FORUM, 210.00 ,22/02/2016
Central Expenses,Central Expenses,Audit Fee,60045597,BDO LLP," 85,012.50 ",22/02/2016
Central Expenses,Central Expenses,Audit Fee,60047344,GRANT THORNTON UK LLP," 27,080.00 ",24/02/2016
Central Expenses,Central Expenses,Consultants Fees,60046455,BEVAN BRITTAN LLP, 535.71 ,16/02/2016
Central Expenses,Central Expenses,Early Retirement Service Contr,20028268,TEACHERS PENSION," 54,739.86 ",12/02/2016
Central Expenses,Central Expenses,Grant Payments,60043297,TRANSPORT FOR LONDON," 108,504.70 ",04/02/2016
Central Expenses,Central Expenses,Insurance Claims,80002024,ALLIANZ INSURANCE PLC, 661.50 ,04/02/2016
Central Expenses,Central Expenses,Insurance Claims,80002269,ALLWEIS & CO SOLICITORS," 1,523.00 ",23/02/2016
Central Expenses,Central Expenses,Insurance Claims,80002060,AMV LAW," 9,053.94 ",05/02/2016
Central Expenses,Central Expenses,Insurance Claims,80002036,ARMSTRONGS SOLICITORS," 3,970.00 ",05/02/2016
Central Expenses,Central Expenses,Insurance Claims,80002201,ASCOT LAWYERS, 360.00 ,19/02/2016
Central Expenses,Central Expenses,Insurance Claims,80002116,CELTIC ASSESSORS, 60.00 ,12/02/2016
Central Expenses,Central Expenses,Insurance Claims,60041549,CHARLES DUKES ASSESSORS, 60.00 ,16/02/2016
Central Expenses,Central Expenses,Insurance Claims,60045714,CHARLES DUKES ASSESSORS, 60.00 ,23/02/2016
Central Expenses,Central Expenses,Insurance Claims,60042576,CITY SUBURBAN TREE SURGEONS LTD, 150.30 ,03/02/2016
Central Expenses,Central Expenses,Insurance Claims,60043472,CITY SUBURBAN TREE SURGEONS LTD, 390.86 ,10/02/2016
Central Expenses,Central Expenses,Insurance Claims,60043641,CITY SUBURBAN TREE SURGEONS LTD, 162.86 ,10/02/2016
Central Expenses,Central Expenses,Insurance Claims,80001935,CLARKE BARNES SOLICITORS LLP," 2,500.00 ",01/02/2016
Central Expenses,Central Expenses,Insurance Claims,80002038,CLARKE BARNES SOLICITORS LLP," 6,168.00 ",16/02/2016
Central Expenses,Central Expenses,Insurance Claims,60036024,CLYDE & CO LLP, 300.00 ,17/02/2016
Central Expenses,Central Expenses,Insurance Claims,60038163,CLYDE & CO LLP," 1,275.00 ",17/02/2016
Central Expenses,Central Expenses,Insurance Claims,80001920,DAC BEACHCROFT CLAIMS LTD," 5,000.00 ",01/02/2016
Central Expenses,Central Expenses,Insurance Claims,80001922,DEPARTMENT FOR WORK & PENSIONS, 615.00 ,01/02/2016
Central Expenses,Central Expenses,Insurance Claims,80001937,DEPARTMENT FOR WORK & PENSIONS, 637.00 ,01/02/2016
Central Expenses,Central Expenses,Insurance Claims,80001583,DEPARTMENT FOR WORK AND PENSIONS, 800.00 ,01/02/2016
Central Expenses,Central Expenses,Insurance Claims,80002048,DEPARTMENT FOR WORK AND PENSIONS, 637.00 ,05/02/2016
Central Expenses,Central Expenses,Insurance Claims,80002137,DEPARTMENT FOR WORK AND PENSIONS, 637.00 ,16/02/2016
Central Expenses,Central Expenses,Insurance Claims,80002161,DEPARTMENT FOR WORK AND PENSIONS, 627.00 ,16/02/2016
Central Expenses,Central Expenses,Insurance Claims,80002208,DEPARTMENT FOR WORK AND PENSIONS, 637.00 ,23/02/2016
Central Expenses,Central Expenses,Insurance Claims,80002289,DEPARTMENT FOR WORK AND PENSIONS, 615.00 ,29/02/2016
Central Expenses,Central Expenses,Insurance Claims,80001929,DMH STALLARD," 19,652.00 ",24/02/2016
Central Expenses,Central Expenses,Insurance Claims,80001888,DR AZIM AND PARTNERS, 50.00 ,01/02/2016
Central Expenses,Central Expenses,Insurance Claims,80001543,FENTONS SOLICITORS LLP, 660.00 ,01/02/2016
Central Expenses,Central Expenses,Insurance Claims,80002265,FIRST CENTRAL INSURANCE, 746.17 ,23/02/2016
Central Expenses,Central Expenses,Insurance Claims,80002255,GALLAGHER BASSETT INTERNATIONAL," 24,720.00 ",23/02/2016
Central Expenses,Central Expenses,Insurance Claims,80002268,HALFORDS GROUP PLC, 964.00 ,23/02/2016
Central Expenses,Central Expenses,Insurance Claims,80002114,IMPERIAL CONSULTANTS LTD, 130.00 ,16/02/2016
Central Expenses,Central Expenses,Insurance Claims,80002138,IMPERIAL CONSULTANTS LTD, 130.00 ,16/02/2016
Central Expenses,Central Expenses,Insurance Claims,80002225,IRWIN MITCHELL LLP," 5,805.64 ",24/02/2016
Central Expenses,Central Expenses,Insurance Claims,80001939,IRWIN MITCHELL SOLICITORS," 2,172.00 ",01/02/2016
Central Expenses,Central Expenses,Insurance Claims,80002140,JMW SOLICITORS LLP," 2,848.45 ",12/02/2016
Central Expenses,Central Expenses,Insurance Claims,60036721,KENNEDYS," 2,366.00 ",17/02/2016
Central Expenses,Central Expenses,Insurance Claims,60036844,KENNEDYS, 238.00 ,17/02/2016
Central Expenses,Central Expenses,Insurance Claims,60045143,KENNEDYS, 196.00 ,17/02/2016
Central Expenses,Central Expenses,Insurance Claims,80002207,LEVENES SOLOCITORS," 3,000.00 ",23/02/2016
Central Expenses,Central Expenses,Insurance Claims,80002283,LEVENES SOLOCITORS," 3,026.25 ",26/02/2016
Central Expenses,Central Expenses,Insurance Claims,80001902,LYONS DAVIDSON SOLICITORS, 456.00 ,01/02/2016
Central Expenses,Central Expenses,Insurance Claims,80002004,OGR STOCK DENTON LLP," 1,005.00 ",04/02/2016
Central Expenses,Central Expenses,Insurance Claims,80002197,OGR STOCK DENTON LLP, 846.00 ,22/02/2016
Central Expenses,Central Expenses,Insurance Claims,80002271,REGENT AUTOMOTIVE LTD," 1,171.60 ",23/02/2016
Central Expenses,Central Expenses,Insurance Claims,80002051,ROYAL FREE LONDON NHS FOUNDATION TRUST, 25.00 ,05/02/2016
Central Expenses,Central Expenses,Insurance Claims,80002206,ROYAL FREE LONDON NHS FOUNDATION TRUST, 50.00 ,23/02/2016
Central Expenses,Central Expenses,Insurance Claims,80001913,ROYAL FREE NHS FOUNDATIONTRUST, 50.00 ,01/02/2016
Central Expenses,Central Expenses,Insurance Claims,80001972,SETH LAW LTD, 360.00 ,01/02/2016
Central Expenses,Central Expenses,Insurance Claims,80002047,SETH LAW LTD, 720.00 ,05/02/2016
Central Expenses,Central Expenses,Insurance Claims,80002119,SETH LAW LTD, 660.00 ,12/02/2016
Central Expenses,Central Expenses,Insurance Claims,80002159,SIMPSON MILLAR LLP," 13,000.00 ",12/02/2016
Central Expenses,Central Expenses,Insurance Claims,80002135,SLATER & GORDON SOLICITORS," 1,800.00 ",15/02/2016
Central Expenses,Central Expenses,Insurance Claims,80001880,STATONS ESTATE AGENTS LLP, 125.00 ,01/02/2016
Central Expenses,Central Expenses,Insurance Claims,80001997,THE CLINIC, 50.00 ,04/02/2016
Central Expenses,Central Expenses,Insurance Claims,80002113,THE REMET CO LTD, 500.00 ,12/02/2016
Central Expenses,Central Expenses,Insurance Claims,80002086,THE SPEEDWELL PRACTICE, 50.00 ,15/02/2016
Central Expenses,Central Expenses,Insurance Claims,80002288,THOMPSONS SOLICITORS," 2,860.00 ",29/02/2016
Central Expenses,Central Expenses,Insurance Claims,10013044,TREESUBS LTD," 7,535.00 ",04/02/2016
Central Expenses,Central Expenses,Insurance Claims,80001906,WARING & CO SOLICITORS," 2,882.00 ",01/02/2016
Central Expenses,Central Expenses,Insurance Claims,60038773,WEIGHTMANS LLP," 1,050.00 ",24/02/2016
Central Expenses,Central Expenses,Insurance Claims,60042624,WEIGHTMANS LLP, 490.00 ,17/02/2016
Central Expenses,Central Expenses,Insurance Claims,60044513,WEIGHTMANS LLP, 571.50 ,17/02/2016
Central Expenses,Central Expenses,Insurance Claims,60044537,WEIGHTMANS LLP, 550.00 ,17/02/2016
Central Expenses,Central Expenses,Insurance Claims,60044565,WEIGHTMANS LLP, 134.24 ,17/02/2016
Central Expenses,Central Expenses,Insurance Claims,80002190,WEST HAMPSTEAD MEDICAL CENTRE, 30.00 ,17/02/2016
Central Expenses,Central Expenses,Joint Authorities - Third Part,EBX0103376,NORTH LONDON WASTE AUTHORITY," 894,643.00 ",25/02/2016
Central Expenses,Central Expenses,Other Establishments - Third P,EBX0101606,LEE VALLEY REGIONAL PARK AUTH.," 33,052.02 ",17/02/2016
Central Expenses,Central Expenses,Other Establishments - Third P,EBX0099663,LONDON PENSIONS FUND AUTHORITY," 50,154.80 ",01/02/2016
Central Expenses,Central Expenses,Other Establishments - Third P,EBX0103378,TRANSPORT TRADING LIMITED," 3,889,353.00 ",25/02/2016
Commercial,Customer Support Group,Building Repairs & Maintenance,60040614,AJS LTD," 1,289.10 ",11/02/2016
Commercial,Customer Support Group,Building Repairs & Maintenance,60044752,AJS LTD, 99.00 ,25/02/2016
Commercial,Customer Support Group,Building Repairs & Maintenance,60046416,AJS LTD, 132.00 ,16/02/2016
Commercial,Customer Support Group,Building Repairs & Maintenance,60046426,AJS LTD, 321.75 ,16/02/2016
Commercial,Customer Support Group,Building Repairs & Maintenance,60046437,AJS LTD, 198.00 ,16/02/2016
Commercial,Customer Support Group,Building Repairs & Maintenance,60046681,AJS LTD, 140.25 ,25/02/2016
Commercial,Customer Support Group,Building Repairs & Maintenance,60046732,AJS LTD, 750.00 ,23/02/2016
Commercial,Customer Support Group,Building Repairs & Maintenance,60046787,AJS LTD, 330.00 ,25/02/2016
Commercial,Customer Support Group,Building Repairs & Maintenance,60046790,AJS LTD, 750.00 ,23/02/2016
Commercial,Customer Support Group,Building Repairs & Maintenance,60046809,AJS LTD, 189.75 ,25/02/2016
Commercial,Customer Support Group,Building Repairs & Maintenance,60046856,AJS LTD, 312.50 ,22/02/2016
Commercial,Customer Support Group,Building Repairs & Maintenance,60046953,AJS LTD, 68.29 ,19/02/2016
Commercial,Customer Support Group,Building Repairs & Maintenance,60046962,AJS LTD, 312.50 ,23/02/2016
Commercial,Customer Support Group,Building Repairs & Maintenance,60034482,ASBESTOS CONSULTANTS EUROPE LTD T/A ACE, 650.00 ,24/02/2016
Commercial,Customer Support Group,Building Repairs & Maintenance,60043852,ASBESTOS CONSULTANTS EUROPE LTD T/A ACE," 1,011.25 ",15/02/2016
Commercial,Customer Support Group,Building Repairs & Maintenance,60044446,ASBESTOS CONSULTANTS EUROPE LTD T/A ACE, 611.25 ,11/02/2016
Commercial,Customer Support Group,Building Repairs & Maintenance,10013072,AUDITEL SYSTEMS," 53,971.16 ",18/02/2016
Commercial,Customer Support Group,Building Repairs & Maintenance,60045929,DOORWAY-MAINTENANCE CO., 195.00 ,15/02/2016
Commercial,Customer Support Group,Building Repairs & Maintenance,60046458,ENERGY SOLUTIONS ( NORTH WEST LONDO, 170.00 ,16/02/2016
Commercial,Customer Support Group,Building Repairs & Maintenance,60046970,E-ON ENERGY, 7.62 ,25/02/2016
Commercial,Customer Support Group,Building Repairs & Maintenance,60042702,GTI ENVIRONMENTAL SERVICES LTD," 2,011.00 ",02/02/2016
Commercial,Customer Support Group,Building Repairs & Maintenance,60014914,HERTEL (UK) LTD, 40.83 ,23/02/2016
Commercial,Customer Support Group,Building Repairs & Maintenance,60014921,HERTEL (UK) LTD, 40.83 ,23/02/2016
Commercial,Customer Support Group,Building Repairs & Maintenance,60014929,HERTEL (UK) LTD, 40.83 ,23/02/2016
Commercial,Customer Support Group,Building Repairs & Maintenance,60014932,HERTEL (UK) LTD, 40.83 ,23/02/2016
Commercial,Customer Support Group,Building Repairs & Maintenance,60014956,HERTEL (UK) LTD, 40.83 ,23/02/2016
Commercial,Customer Support Group,Building Repairs & Maintenance,60014970,HERTEL (UK) LTD, 40.83 ,23/02/2016
Commercial,Customer Support Group,Building Repairs & Maintenance,60014992,HERTEL (UK) LTD, 40.83 ,23/02/2016
Commercial,Customer Support Group,Building Repairs & Maintenance,60014996,HERTEL (UK) LTD, 40.83 ,23/02/2016
Commercial,Customer Support Group,Building Repairs & Maintenance,60015017,HERTEL (UK) LTD, 40.83 ,23/02/2016
Commercial,Customer Support Group,Building Repairs & Maintenance,60015019,HERTEL (UK) LTD, 40.83 ,23/02/2016
Commercial,Customer Support Group,Building Repairs & Maintenance,60015025,HERTEL (UK) LTD, 40.83 ,23/02/2016
Commercial,Customer Support Group,Building Repairs & Maintenance,60015038,HERTEL (UK) LTD, 40.83 ,23/02/2016
Commercial,Customer Support Group,Building Repairs & Maintenance,60015062,HERTEL (UK) LTD, 40.83 ,23/02/2016
Commercial,Customer Support Group,Building Repairs & Maintenance,60015086,HERTEL (UK) LTD, 40.83 ,23/02/2016
Commercial,Customer Support Group,Building Repairs & Maintenance,60015097,HERTEL (UK) LTD, 40.83 ,23/02/2016
Commercial,Customer Support Group,Building Repairs & Maintenance,60015101,HERTEL (UK) LTD, 40.83 ,23/02/2016
Commercial,Customer Support Group,Building Repairs & Maintenance,60015110,HERTEL (UK) LTD, 40.83 ,23/02/2016
Commercial,Customer Support Group,Building Repairs & Maintenance,60015115,HERTEL (UK) LTD, 40.83 ,23/02/2016
Commercial,Customer Support Group,Building Repairs & Maintenance,60033382,HERTEL (UK) LTD, 40.83 ,23/02/2016
Commercial,Customer Support Group,Building Repairs & Maintenance,60033416,HERTEL (UK) LTD, 40.83 ,23/02/2016
Commercial,Customer Support Group,Building Repairs & Maintenance,60033426,HERTEL (UK) LTD, 40.83 ,23/02/2016
Commercial,Customer Support Group,Building Repairs & Maintenance,60033456,HERTEL (UK) LTD, 40.83 ,23/02/2016
Commercial,Customer Support Group,Building Repairs & Maintenance,60033533,HERTEL (UK) LTD, 40.83 ,23/02/2016
Commercial,Customer Support Group,Building Repairs & Maintenance,60033550,HERTEL (UK) LTD, 40.83 ,23/02/2016
Commercial,Customer Support Group,Building Repairs & Maintenance,60033593,HERTEL (UK) LTD, 40.83 ,23/02/2016
Commercial,Customer Support Group,Building Repairs & Maintenance,60033699,HERTEL (UK) LTD, 7.00 ,23/02/2016
Commercial,Customer Support Group,Building Repairs & Maintenance,60033713,HERTEL (UK) LTD, 40.83 ,23/02/2016
Commercial,Customer Support Group,Building Repairs & Maintenance,60033720,HERTEL (UK) LTD, 40.83 ,23/02/2016
Commercial,Customer Support Group,Building Repairs & Maintenance,60033748,HERTEL (UK) LTD, 40.83 ,23/02/2016
Commercial,Customer Support Group,Building Repairs & Maintenance,60033774,HERTEL (UK) LTD, 40.83 ,23/02/2016
Commercial,Customer Support Group,Building Repairs & Maintenance,60033782,HERTEL (UK) LTD, 40.83 ,23/02/2016
Commercial,Customer Support Group,Building Repairs & Maintenance,60043091,HERTEL (UK) LTD, 40.83 ,22/02/2016
Commercial,Customer Support Group,Building Repairs & Maintenance,60043120,HERTEL (UK) LTD, 40.83 ,26/02/2016
Commercial,Customer Support Group,Building Repairs & Maintenance,60043123,HERTEL (UK) LTD, 40.83 ,22/02/2016
Commercial,Customer Support Group,Building Repairs & Maintenance,60043141,HERTEL (UK) LTD, 40.83 ,23/02/2016
Commercial,Customer Support Group,Building Repairs & Maintenance,60043163,HERTEL (UK) LTD, 40.83 ,22/02/2016
Commercial,Customer Support Group,Building Repairs & Maintenance,60043164,HERTEL (UK) LTD, 40.83 ,23/02/2016
Commercial,Customer Support Group,Building Repairs & Maintenance,60043172,HERTEL (UK) LTD, 122.50 ,23/02/2016
Commercial,Customer Support Group,Building Repairs & Maintenance,60043175,HERTEL (UK) LTD, 250.00 ,24/02/2016
Commercial,Customer Support Group,Building Repairs & Maintenance,60043177,HERTEL (UK) LTD, 122.50 ,22/02/2016
Commercial,Customer Support Group,Building Repairs & Maintenance,60043201,HERTEL (UK) LTD, 122.50 ,22/02/2016
Commercial,Customer Support Group,Building Repairs & Maintenance,60043225,HERTEL (UK) LTD, 40.83 ,23/02/2016
Commercial,Customer Support Group,Building Repairs & Maintenance,60043229,HERTEL (UK) LTD, 210.00 ,22/02/2016
Commercial,Customer Support Group,Building Repairs & Maintenance,60043246,HERTEL (UK) LTD, 40.83 ,26/02/2016
Commercial,Customer Support Group,Building Repairs & Maintenance,60045354,HERTEL (UK) LTD, 280.00 ,19/02/2016
Commercial,Customer Support Group,Building Repairs & Maintenance,60046673,HERTEL (UK) LTD, 40.83 ,25/02/2016
Commercial,Customer Support Group,Building Repairs & Maintenance,60046680,HERTEL (UK) LTD, 40.83 ,23/02/2016
Commercial,Customer Support Group,Building Repairs & Maintenance,60046723,HERTEL (UK) LTD, 40.83 ,23/02/2016
Commercial,Customer Support Group,Building Repairs & Maintenance,60046727,HERTEL (UK) LTD, 40.83 ,23/02/2016
Commercial,Customer Support Group,Building Repairs & Maintenance,60046750,HERTEL (UK) LTD, 40.83 ,23/02/2016
Commercial,Customer Support Group,Building Repairs & Maintenance,60046753,HERTEL (UK) LTD, 40.83 ,23/02/2016
Commercial,Customer Support Group,Building Repairs & Maintenance,60046776,HERTEL (UK) LTD, 40.83 ,25/02/2016
Commercial,Customer Support Group,Building Repairs & Maintenance,60046778,HERTEL (UK) LTD, 40.83 ,23/02/2016
Commercial,Customer Support Group,Building Repairs & Maintenance,60046780,HERTEL (UK) LTD, 40.83 ,23/02/2016
Commercial,Customer Support Group,Building Repairs & Maintenance,60046812,HERTEL (UK) LTD, 40.83 ,23/02/2016
Commercial,Customer Support Group,Building Repairs & Maintenance,60046822,HERTEL (UK) LTD, 40.83 ,25/02/2016
Commercial,Customer Support Group,Building Repairs & Maintenance,60047175,HERTEL (UK) LTD, 40.83 ,25/02/2016
Commercial,Customer Support Group,Building Repairs & Maintenance,60047180,HERTEL (UK) LTD, 40.83 ,25/02/2016
Commercial,Customer Support Group,Building Repairs & Maintenance,60047181,HERTEL (UK) LTD, 204.15 ,24/02/2016
Commercial,Customer Support Group,Building Repairs & Maintenance,60047182,HERTEL (UK) LTD, 40.83 ,25/02/2016
Commercial,Customer Support Group,Building Repairs & Maintenance,60047184,HERTEL (UK) LTD, 40.83 ,25/02/2016
Commercial,Customer Support Group,Building Repairs & Maintenance,60047185,HERTEL (UK) LTD, 204.15 ,24/02/2016
Commercial,Customer Support Group,Building Repairs & Maintenance,60047186,HERTEL (UK) LTD, 40.83 ,25/02/2016
Commercial,Customer Support Group,Building Repairs & Maintenance,60047187,HERTEL (UK) LTD, 40.83 ,25/02/2016
Commercial,Customer Support Group,Building Repairs & Maintenance,60047191,HERTEL (UK) LTD, 40.83 ,25/02/2016
Commercial,Customer Support Group,Building Repairs & Maintenance,60047192,HERTEL (UK) LTD, 204.15 ,24/02/2016
Commercial,Customer Support Group,Building Repairs & Maintenance,60047193,HERTEL (UK) LTD, 40.83 ,25/02/2016
Commercial,Customer Support Group,Building Repairs & Maintenance,60047194,HERTEL (UK) LTD, 40.83 ,25/02/2016
Commercial,Customer Support Group,Building Repairs & Maintenance,60047198,HERTEL (UK) LTD, 40.83 ,25/02/2016
Commercial,Customer Support Group,Building Repairs & Maintenance,60047200,HERTEL (UK) LTD, 204.15 ,24/02/2016
Commercial,Customer Support Group,Building Repairs & Maintenance,60047201,HERTEL (UK) LTD, 40.83 ,25/02/2016
Commercial,Customer Support Group,Building Repairs & Maintenance,60047207,HERTEL (UK) LTD, 40.83 ,25/02/2016
Commercial,Customer Support Group,Building Repairs & Maintenance,60047209,HERTEL (UK) LTD, 40.83 ,25/02/2016
Commercial,Customer Support Group,Building Repairs & Maintenance,60047210,HERTEL (UK) LTD, 40.83 ,25/02/2016
Commercial,Customer Support Group,Building Repairs & Maintenance,60047213,HERTEL (UK) LTD, 122.50 ,25/02/2016
Commercial,Customer Support Group,Building Repairs & Maintenance,60047214,HERTEL (UK) LTD, 40.83 ,25/02/2016
Commercial,Customer Support Group,Building Repairs & Maintenance,60047218,HERTEL (UK) LTD, 210.00 ,25/02/2016
Commercial,Customer Support Group,Building Repairs & Maintenance,60047219,HERTEL (UK) LTD, 902.97 ,24/02/2016
Commercial,Customer Support Group,Building Repairs & Maintenance,60047221,HERTEL (UK) LTD, 210.00 ,25/02/2016
Commercial,Customer Support Group,Building Repairs & Maintenance,60047222,HERTEL (UK) LTD, 130.00 ,24/02/2016
Commercial,Customer Support Group,Building Repairs & Maintenance,60047226,HERTEL (UK) LTD, 204.15 ,24/02/2016
Commercial,Customer Support Group,Building Repairs & Maintenance,60047228,HERTEL (UK) LTD, 40.83 ,25/02/2016
Commercial,Customer Support Group,Building Repairs & Maintenance,60047229,HERTEL (UK) LTD, 204.15 ,24/02/2016
Commercial,Customer Support Group,Building Repairs & Maintenance,60047232,HERTEL (UK) LTD, 40.83 ,25/02/2016
Commercial,Customer Support Group,Building Repairs & Maintenance,60047235,HERTEL (UK) LTD, 40.83 ,25/02/2016
Commercial,Customer Support Group,Building Repairs & Maintenance,60047240,HERTEL (UK) LTD, 40.83 ,25/02/2016
Commercial,Customer Support Group,Building Repairs & Maintenance,60047241,HERTEL (UK) LTD, 122.50 ,25/02/2016
Commercial,Customer Support Group,Building Repairs & Maintenance,60047243,HERTEL (UK) LTD, 40.83 ,25/02/2016
Commercial,Customer Support Group,Building Repairs & Maintenance,60047245,HERTEL (UK) LTD, 40.83 ,25/02/2016
Commercial,Customer Support Group,Building Repairs & Maintenance,60047246,HERTEL (UK) LTD, 40.83 ,25/02/2016
Commercial,Customer Support Group,Building Repairs & Maintenance,60047247,HERTEL (UK) LTD, 210.00 ,25/02/2016
Commercial,Customer Support Group,Building Repairs & Maintenance,60047249,HERTEL (UK) LTD, 40.83 ,25/02/2016
Commercial,Customer Support Group,Building Repairs & Maintenance,60047250,HERTEL (UK) LTD, 204.15 ,24/02/2016
Commercial,Customer Support Group,Building Repairs & Maintenance,60047258,HERTEL (UK) LTD, 210.00 ,25/02/2016
Commercial,Customer Support Group,Building Repairs & Maintenance,60047261,HERTEL (UK) LTD, 40.83 ,25/02/2016
Commercial,Customer Support Group,Building Repairs & Maintenance,60047264,HERTEL (UK) LTD, 40.83 ,25/02/2016
Commercial,Customer Support Group,Building Repairs & Maintenance,60047267,HERTEL (UK) LTD, 40.83 ,25/02/2016
Commercial,Customer Support Group,Building Repairs & Maintenance,60047272,HERTEL (UK) LTD," 1,806.00 ",24/02/2016
Commercial,Customer Support Group,Building Repairs & Maintenance,60047273,HERTEL (UK) LTD, 40.83 ,25/02/2016
Commercial,Customer Support Group,Building Repairs & Maintenance,60047274,HERTEL (UK) LTD, 40.83 ,25/02/2016
Commercial,Customer Support Group,Building Repairs & Maintenance,60047276,HERTEL (UK) LTD, 93.25 ,24/02/2016
Commercial,Customer Support Group,Building Repairs & Maintenance,60047277,HERTEL (UK) LTD, 204.15 ,24/02/2016
Commercial,Customer Support Group,Building Repairs & Maintenance,60047279,HERTEL (UK) LTD, 40.83 ,25/02/2016
Commercial,Customer Support Group,Building Repairs & Maintenance,60047283,HERTEL (UK) LTD, 40.83 ,25/02/2016
Commercial,Customer Support Group,Building Repairs & Maintenance,60047284,HERTEL (UK) LTD, 40.83 ,25/02/2016
Commercial,Customer Support Group,Building Repairs & Maintenance,60047285,HERTEL (UK) LTD, 204.15 ,24/02/2016
Commercial,Customer Support Group,Building Repairs & Maintenance,60047288,HERTEL (UK) LTD, 40.83 ,25/02/2016
Commercial,Customer Support Group,Building Repairs & Maintenance,60047291,HERTEL (UK) LTD, 204.15 ,24/02/2016
Commercial,Customer Support Group,Building Repairs & Maintenance,60047292,HERTEL (UK) LTD, 122.50 ,25/02/2016
Commercial,Customer Support Group,Building Repairs & Maintenance,60047297,HERTEL (UK) LTD, 402.50 ,24/02/2016
Commercial,Customer Support Group,Building Repairs & Maintenance,60047299,HERTEL (UK) LTD, 40.83 ,25/02/2016
Commercial,Customer Support Group,Building Repairs & Maintenance,60047303,HERTEL (UK) LTD," 1,140.00 ",24/02/2016
Commercial,Customer Support Group,Building Repairs & Maintenance,60047305,HERTEL (UK) LTD, 40.83 ,25/02/2016
Commercial,Customer Support Group,Building Repairs & Maintenance,60047306,HERTEL (UK) LTD, 40.83 ,25/02/2016
Commercial,Customer Support Group,Building Repairs & Maintenance,60047318,HERTEL (UK) LTD, 204.15 ,24/02/2016
Commercial,Customer Support Group,Building Repairs & Maintenance,60047322,HERTEL (UK) LTD, 40.83 ,25/02/2016
Commercial,Customer Support Group,Building Repairs & Maintenance,60047325,HERTEL (UK) LTD, 40.83 ,25/02/2016
Commercial,Customer Support Group,Building Repairs & Maintenance,60047330,HERTEL (UK) LTD, 210.00 ,25/02/2016
Commercial,Customer Support Group,Building Repairs & Maintenance,60047333,HERTEL (UK) LTD, 40.83 ,25/02/2016
Commercial,Customer Support Group,Building Repairs & Maintenance,60047334,HERTEL (UK) LTD, 40.83 ,25/02/2016
Commercial,Customer Support Group,Building Repairs & Maintenance,60047335,HERTEL (UK) LTD, 204.15 ,24/02/2016
Commercial,Customer Support Group,Building Repairs & Maintenance,60047336,HERTEL (UK) LTD, 40.83 ,25/02/2016
Commercial,Customer Support Group,Building Repairs & Maintenance,60047340,HERTEL (UK) LTD, 40.83 ,25/02/2016
Commercial,Customer Support Group,Building Repairs & Maintenance,60047341,HERTEL (UK) LTD, 40.83 ,25/02/2016
Commercial,Customer Support Group,Building Repairs & Maintenance,60047345,HERTEL (UK) LTD, 204.15 ,24/02/2016
Commercial,Customer Support Group,Building Repairs & Maintenance,60047349,HERTEL (UK) LTD, 40.83 ,25/02/2016
Commercial,Customer Support Group,Building Repairs & Maintenance,60047354,HERTEL (UK) LTD, 40.83 ,25/02/2016
Commercial,Customer Support Group,Building Repairs & Maintenance,60047356,HERTEL (UK) LTD, 122.50 ,25/02/2016
Commercial,Customer Support Group,Building Repairs & Maintenance,60047357,HERTEL (UK) LTD, 204.15 ,24/02/2016
Commercial,Customer Support Group,Building Repairs & Maintenance,60047358,HERTEL (UK) LTD, 40.83 ,25/02/2016
Commercial,Customer Support Group,Building Repairs & Maintenance,60047363,HERTEL (UK) LTD, 40.83 ,25/02/2016
Commercial,Customer Support Group,Building Repairs & Maintenance,60047369,HERTEL (UK) LTD, 40.83 ,26/02/2016
Commercial,Customer Support Group,Building Repairs & Maintenance,60047375,HERTEL (UK) LTD, 250.00 ,25/02/2016
Commercial,Customer Support Group,Building Repairs & Maintenance,60047376,HERTEL (UK) LTD, 40.83 ,26/02/2016
Commercial,Customer Support Group,Building Repairs & Maintenance,60047378,HERTEL (UK) LTD, 122.50 ,26/02/2016
Commercial,Customer Support Group,Building Repairs & Maintenance,60047380,HERTEL (UK) LTD, 40.83 ,26/02/2016
Commercial,Customer Support Group,Building Repairs & Maintenance,60047381,HERTEL (UK) LTD, 90.00 ,25/02/2016
Commercial,Customer Support Group,Building Repairs & Maintenance,60047383,HERTEL (UK) LTD, 40.83 ,26/02/2016
Commercial,Customer Support Group,Building Repairs & Maintenance,60047384,HERTEL (UK) LTD, 40.83 ,26/02/2016
Commercial,Customer Support Group,Building Repairs & Maintenance,60047387,HERTEL (UK) LTD, 473.00 ,26/02/2016
Commercial,Customer Support Group,Building Repairs & Maintenance,60047388,HERTEL (UK) LTD, 40.83 ,26/02/2016
Commercial,Customer Support Group,Building Repairs & Maintenance,60047389,HERTEL (UK) LTD, 40.83 ,26/02/2016
Commercial,Customer Support Group,Building Repairs & Maintenance,60047393,HERTEL (UK) LTD, 40.83 ,26/02/2016
Commercial,Customer Support Group,Building Repairs & Maintenance,60047395,HERTEL (UK) LTD, 40.83 ,26/02/2016
Commercial,Customer Support Group,Building Repairs & Maintenance,60047396,HERTEL (UK) LTD, 40.83 ,26/02/2016
Commercial,Customer Support Group,Building Repairs & Maintenance,60047397,HERTEL (UK) LTD, 40.83 ,26/02/2016
Commercial,Customer Support Group,Building Repairs & Maintenance,60047402,HERTEL (UK) LTD, 122.50 ,26/02/2016
Commercial,Customer Support Group,Building Repairs & Maintenance,60047403,HERTEL (UK) LTD, 40.83 ,26/02/2016
Commercial,Customer Support Group,Building Repairs & Maintenance,60047404,HERTEL (UK) LTD, 40.83 ,26/02/2016
Commercial,Customer Support Group,Building Repairs & Maintenance,60047407,HERTEL (UK) LTD, 743.00 ,25/02/2016
Commercial,Customer Support Group,Building Repairs & Maintenance,60047408,HERTEL (UK) LTD, 40.83 ,26/02/2016
Commercial,Customer Support Group,Building Repairs & Maintenance,60047410,HERTEL (UK) LTD, 40.83 ,26/02/2016
Commercial,Customer Support Group,Building Repairs & Maintenance,60047413,HERTEL (UK) LTD, 40.83 ,26/02/2016
Commercial,Customer Support Group,Building Repairs & Maintenance,60047417,HERTEL (UK) LTD, 40.83 ,26/02/2016
Commercial,Customer Support Group,Building Repairs & Maintenance,60047419,HERTEL (UK) LTD, 40.83 ,26/02/2016
Commercial,Customer Support Group,Building Repairs & Maintenance,60047422,HERTEL (UK) LTD, 40.83 ,26/02/2016
Commercial,Customer Support Group,Building Repairs & Maintenance,60047423,HERTEL (UK) LTD, 40.83 ,26/02/2016
Commercial,Customer Support Group,Building Repairs & Maintenance,60047425,HERTEL (UK) LTD, 40.83 ,26/02/2016
Commercial,Customer Support Group,Building Repairs & Maintenance,60047426,HERTEL (UK) LTD, 40.83 ,26/02/2016
Commercial,Customer Support Group,Building Repairs & Maintenance,60047427,HERTEL (UK) LTD, 122.50 ,26/02/2016
Commercial,Customer Support Group,Building Repairs & Maintenance,60047430,HERTEL (UK) LTD, 40.83 ,26/02/2016
Commercial,Customer Support Group,Building Repairs & Maintenance,60047431,HERTEL (UK) LTD, 40.83 ,26/02/2016
Commercial,Customer Support Group,Building Repairs & Maintenance,60047434,HERTEL (UK) LTD, 140.00 ,25/02/2016
Commercial,Customer Support Group,Building Repairs & Maintenance,60047436,HERTEL (UK) LTD, 40.83 ,26/02/2016
Commercial,Customer Support Group,Building Repairs & Maintenance,60047437,HERTEL (UK) LTD, 122.50 ,26/02/2016
Commercial,Customer Support Group,Building Repairs & Maintenance,60047442,HERTEL (UK) LTD, 40.83 ,26/02/2016
Commercial,Customer Support Group,Building Repairs & Maintenance,60047450,HERTEL (UK) LTD, 40.83 ,26/02/2016
Commercial,Customer Support Group,Building Repairs & Maintenance,60047452,HERTEL (UK) LTD, 40.83 ,26/02/2016
Commercial,Customer Support Group,Building Repairs & Maintenance,60047454,HERTEL (UK) LTD, 40.83 ,26/02/2016
Commercial,Customer Support Group,Building Repairs & Maintenance,60047456,HERTEL (UK) LTD, 40.83 ,26/02/2016
Commercial,Customer Support Group,Building Repairs & Maintenance,60047459,HERTEL (UK) LTD, 40.83 ,26/02/2016
Commercial,Customer Support Group,Building Repairs & Maintenance,60047462,HERTEL (UK) LTD, 40.83 ,26/02/2016
Commercial,Customer Support Group,Building Repairs & Maintenance,60047463,HERTEL (UK) LTD, 40.83 ,26/02/2016
Commercial,Customer Support Group,Building Repairs & Maintenance,60047464,HERTEL (UK) LTD, 40.83 ,26/02/2016
Commercial,Customer Support Group,Building Repairs & Maintenance,60047472,HERTEL (UK) LTD, 40.83 ,26/02/2016
Commercial,Customer Support Group,Building Repairs & Maintenance,60047474,HERTEL (UK) LTD, 40.83 ,26/02/2016
Commercial,Customer Support Group,Building Repairs & Maintenance,60047475,HERTEL (UK) LTD, 40.83 ,26/02/2016
Commercial,Customer Support Group,Building Repairs & Maintenance,60047478,HERTEL (UK) LTD, 40.83 ,26/02/2016
Commercial,Customer Support Group,Building Repairs & Maintenance,60047480,HERTEL (UK) LTD, 130.00 ,25/02/2016
Commercial,Customer Support Group,Building Repairs & Maintenance,60047482,HERTEL (UK) LTD, 40.83 ,26/02/2016
Commercial,Customer Support Group,Building Repairs & Maintenance,60047485,HERTEL (UK) LTD, 65.00 ,25/02/2016
Commercial,Customer Support Group,Building Repairs & Maintenance,60047487,HERTEL (UK) LTD, 40.83 ,26/02/2016
Commercial,Customer Support Group,Building Repairs & Maintenance,60047489,HERTEL (UK) LTD, 40.83 ,26/02/2016
Commercial,Customer Support Group,Building Repairs & Maintenance,60047490,HERTEL (UK) LTD, 40.83 ,26/02/2016
Commercial,Customer Support Group,Building Repairs & Maintenance,60047491,HERTEL (UK) LTD, 40.83 ,26/02/2016
Commercial,Customer Support Group,Building Repairs & Maintenance,60047492,HERTEL (UK) LTD, 40.83 ,25/02/2016
Commercial,Customer Support Group,Building Repairs & Maintenance,60047496,HERTEL (UK) LTD, 122.50 ,25/02/2016
Commercial,Customer Support Group,Building Repairs & Maintenance,60047497,HERTEL (UK) LTD, 40.83 ,26/02/2016
Commercial,Customer Support Group,Building Repairs & Maintenance,60047500,HERTEL (UK) LTD, 40.83 ,26/02/2016
Commercial,Customer Support Group,Building Repairs & Maintenance,60047502,HERTEL (UK) LTD, 40.83 ,26/02/2016
Commercial,Customer Support Group,Building Repairs & Maintenance,60047504,HERTEL (UK) LTD, 40.83 ,26/02/2016
Commercial,Customer Support Group,Building Repairs & Maintenance,60047505,HERTEL (UK) LTD, 40.83 ,26/02/2016
Commercial,Customer Support Group,Building Repairs & Maintenance,60047510,HERTEL (UK) LTD, 40.83 ,26/02/2016
Commercial,Customer Support Group,Building Repairs & Maintenance,60047514,HERTEL (UK) LTD, 40.83 ,26/02/2016
Commercial,Customer Support Group,Building Repairs & Maintenance,60047516,HERTEL (UK) LTD, 40.83 ,26/02/2016
Commercial,Customer Support Group,Building Repairs & Maintenance,60047520,HERTEL (UK) LTD, 40.83 ,26/02/2016
Commercial,Customer Support Group,Building Repairs & Maintenance,60047521,HERTEL (UK) LTD, 40.83 ,26/02/2016
Commercial,Customer Support Group,Building Repairs & Maintenance,60047525,HERTEL (UK) LTD, 40.83 ,26/02/2016
Commercial,Customer Support Group,Building Repairs & Maintenance,60047526,HERTEL (UK) LTD, 40.83 ,26/02/2016
Commercial,Customer Support Group,Building Repairs & Maintenance,60047528,HERTEL (UK) LTD, 40.83 ,26/02/2016
Commercial,Customer Support Group,Building Repairs & Maintenance,60047529,HERTEL (UK) LTD, 40.83 ,26/02/2016
Commercial,Customer Support Group,Building Repairs & Maintenance,60047534,HERTEL (UK) LTD, 40.83 ,26/02/2016
Commercial,Customer Support Group,Building Repairs & Maintenance,60047538,HERTEL (UK) LTD, 40.83 ,26/02/2016
Commercial,Customer Support Group,Building Repairs & Maintenance,60047539,HERTEL (UK) LTD, 40.83 ,25/02/2016
Commercial,Customer Support Group,Building Repairs & Maintenance,60047540,HERTEL (UK) LTD, 40.83 ,26/02/2016
Commercial,Customer Support Group,Building Repairs & Maintenance,60047542,HERTEL (UK) LTD, 175.00 ,25/02/2016
Commercial,Customer Support Group,Building Repairs & Maintenance,60047545,HERTEL (UK) LTD, 40.83 ,26/02/2016
Commercial,Customer Support Group,Building Repairs & Maintenance,60047549,HERTEL (UK) LTD, 40.83 ,26/02/2016
Commercial,Customer Support Group,Building Repairs & Maintenance,60047551,HERTEL (UK) LTD, 40.83 ,26/02/2016
Commercial,Customer Support Group,Building Repairs & Maintenance,60047553,HERTEL (UK) LTD, 122.50 ,26/02/2016
Commercial,Customer Support Group,Building Repairs & Maintenance,60047554,HERTEL (UK) LTD, 40.83 ,26/02/2016
Commercial,Customer Support Group,Building Repairs & Maintenance,60047555,HERTEL (UK) LTD, 40.83 ,26/02/2016
Commercial,Customer Support Group,Building Repairs & Maintenance,60047557,HERTEL (UK) LTD, 40.83 ,26/02/2016
Commercial,Customer Support Group,Building Repairs & Maintenance,60047561,HERTEL (UK) LTD, 40.83 ,26/02/2016
Commercial,Customer Support Group,Building Repairs & Maintenance,60047563,HERTEL (UK) LTD, 122.50 ,26/02/2016
Commercial,Customer Support Group,Building Repairs & Maintenance,60047566,HERTEL (UK) LTD, 40.83 ,26/02/2016
Commercial,Customer Support Group,Building Repairs & Maintenance,60047567,HERTEL (UK) LTD, 40.83 ,26/02/2016
Commercial,Customer Support Group,Building Repairs & Maintenance,60047568,HERTEL (UK) LTD, 40.83 ,26/02/2016
Commercial,Customer Support Group,Building Repairs & Maintenance,60047570,HERTEL (UK) LTD, 40.83 ,26/02/2016
Commercial,Customer Support Group,Building Repairs & Maintenance,60047571,HERTEL (UK) LTD, 40.83 ,26/02/2016
Commercial,Customer Support Group,Building Repairs & Maintenance,60047577,HERTEL (UK) LTD, 40.83 ,26/02/2016
Commercial,Customer Support Group,Building Repairs & Maintenance,60047578,HERTEL (UK) LTD, 40.83 ,26/02/2016
Commercial,Customer Support Group,Building Repairs & Maintenance,60047579,HERTEL (UK) LTD, 122.50 ,26/02/2016
Commercial,Customer Support Group,Building Repairs & Maintenance,60047580,HERTEL (UK) LTD, 40.83 ,26/02/2016
Commercial,Customer Support Group,Building Repairs & Maintenance,60047581,HERTEL (UK) LTD, 40.83 ,26/02/2016
Commercial,Customer Support Group,Building Repairs & Maintenance,60047585,HERTEL (UK) LTD, 40.83 ,26/02/2016
Commercial,Customer Support Group,Building Repairs & Maintenance,60047586,HERTEL (UK) LTD, 122.50 ,26/02/2016
Commercial,Customer Support Group,Building Repairs & Maintenance,60047587,HERTEL (UK) LTD, 122.50 ,26/02/2016
Commercial,Customer Support Group,Building Repairs & Maintenance,60047589,HERTEL (UK) LTD, 130.00 ,25/02/2016
Commercial,Customer Support Group,Building Repairs & Maintenance,60047591,HERTEL (UK) LTD, 40.83 ,26/02/2016
Commercial,Customer Support Group,Building Repairs & Maintenance,60047594,HERTEL (UK) LTD, 40.83 ,26/02/2016
Commercial,Customer Support Group,Building Repairs & Maintenance,60047596,HERTEL (UK) LTD, 40.83 ,26/02/2016
Commercial,Customer Support Group,Building Repairs & Maintenance,60047598,HERTEL (UK) LTD, 543.00 ,25/02/2016
Commercial,Customer Support Group,Building Repairs & Maintenance,60047599,HERTEL (UK) LTD, 40.83 ,26/02/2016
Commercial,Customer Support Group,Building Repairs & Maintenance,60047600,HERTEL (UK) LTD, 40.83 ,26/02/2016
Commercial,Customer Support Group,Building Repairs & Maintenance,60047601,HERTEL (UK) LTD, 40.83 ,26/02/2016
Commercial,Customer Support Group,Building Repairs & Maintenance,60047602,HERTEL (UK) LTD, 40.83 ,26/02/2016
Commercial,Customer Support Group,Building Repairs & Maintenance,60047604,HERTEL (UK) LTD, 40.83 ,26/02/2016
Commercial,Customer Support Group,Building Repairs & Maintenance,60047612,HERTEL (UK) LTD, 122.50 ,26/02/2016
Commercial,Customer Support Group,Building Repairs & Maintenance,60047616,HERTEL (UK) LTD, 40.83 ,26/02/2016
Commercial,Customer Support Group,Building Repairs & Maintenance,60047617,HERTEL (UK) LTD, 134.68 ,25/02/2016
Commercial,Customer Support Group,Building Repairs & Maintenance,60047621,HERTEL (UK) LTD, 45.00 ,25/02/2016
Commercial,Customer Support Group,Building Repairs & Maintenance,60047629,HERTEL (UK) LTD, 40.83 ,26/02/2016
Commercial,Customer Support Group,Building Repairs & Maintenance,60047633,HERTEL (UK) LTD, 40.83 ,26/02/2016
Commercial,Customer Support Group,Building Repairs & Maintenance,60047634,HERTEL (UK) LTD, 40.83 ,26/02/2016
Commercial,Customer Support Group,Building Repairs & Maintenance,60047635,HERTEL (UK) LTD, 40.83 ,26/02/2016
Commercial,Customer Support Group,Building Repairs & Maintenance,60047636,HERTEL (UK) LTD, 40.83 ,26/02/2016
Commercial,Customer Support Group,Building Repairs & Maintenance,60047637,HERTEL (UK) LTD, 40.83 ,26/02/2016
Commercial,Customer Support Group,Building Repairs & Maintenance,60047638,HERTEL (UK) LTD, 40.83 ,26/02/2016
Commercial,Customer Support Group,Building Repairs & Maintenance,60047641,HERTEL (UK) LTD, 122.50 ,26/02/2016
Commercial,Customer Support Group,Building Repairs & Maintenance,60047645,HERTEL (UK) LTD, 40.83 ,26/02/2016
Commercial,Customer Support Group,Building Repairs & Maintenance,60047646,HERTEL (UK) LTD, 122.50 ,26/02/2016
Commercial,Customer Support Group,Building Repairs & Maintenance,60047647,HERTEL (UK) LTD, 40.83 ,26/02/2016
Commercial,Customer Support Group,Building Repairs & Maintenance,60047651,HERTEL (UK) LTD, 40.83 ,26/02/2016
Commercial,Customer Support Group,Building Repairs & Maintenance,60047653,HERTEL (UK) LTD, 40.83 ,26/02/2016
Commercial,Customer Support Group,Building Repairs & Maintenance,60047654,HERTEL (UK) LTD, 40.83 ,26/02/2016
Commercial,Customer Support Group,Building Repairs & Maintenance,60047655,HERTEL (UK) LTD, 40.83 ,26/02/2016
Commercial,Customer Support Group,Building Repairs & Maintenance,60047656,HERTEL (UK) LTD, 40.83 ,26/02/2016
Commercial,Customer Support Group,Building Repairs & Maintenance,60047658,HERTEL (UK) LTD, 40.83 ,26/02/2016
Commercial,Customer Support Group,Building Repairs & Maintenance,60047661,HERTEL (UK) LTD, 122.50 ,26/02/2016
Commercial,Customer Support Group,Building Repairs & Maintenance,60047667,HERTEL (UK) LTD, 40.83 ,26/02/2016
Commercial,Customer Support Group,Building Repairs & Maintenance,60047670,HERTEL (UK) LTD, 40.83 ,26/02/2016
Commercial,Customer Support Group,Building Repairs & Maintenance,60047671,HERTEL (UK) LTD, 122.50 ,26/02/2016
Commercial,Customer Support Group,Building Repairs & Maintenance,60047672,HERTEL (UK) LTD, 40.83 ,26/02/2016
Commercial,Customer Support Group,Building Repairs & Maintenance,60047673,HERTEL (UK) LTD, 40.83 ,26/02/2016
Commercial,Customer Support Group,Building Repairs & Maintenance,60047674,HERTEL (UK) LTD, 204.15 ,25/02/2016
Commercial,Customer Support Group,Building Repairs & Maintenance,60047676,HERTEL (UK) LTD, 40.83 ,26/02/2016
Commercial,Customer Support Group,Building Repairs & Maintenance,60047679,HERTEL (UK) LTD, 40.83 ,26/02/2016
Commercial,Customer Support Group,Building Repairs & Maintenance,60047680,HERTEL (UK) LTD, 40.83 ,26/02/2016
Commercial,Customer Support Group,Building Repairs & Maintenance,60047681,HERTEL (UK) LTD, 40.83 ,26/02/2016
Commercial,Customer Support Group,Building Repairs & Maintenance,60047728,HERTEL (UK) LTD, 210.00 ,26/02/2016
Commercial,Customer Support Group,Building Repairs & Maintenance,60047747,HERTEL (UK) LTD, 40.83 ,26/02/2016
Commercial,Customer Support Group,Building Repairs & Maintenance,60047784,HERTEL (UK) LTD, 45.00 ,26/02/2016
Commercial,Customer Support Group,Building Repairs & Maintenance,60047805,HERTEL (UK) LTD," 1,806.12 ",26/02/2016
Commercial,Customer Support Group,Building Repairs & Maintenance,60046838,LEE SECURITY LONDON LIMITED, 82.00 ,25/02/2016
Commercial,Customer Support Group,Building Repairs & Maintenance,60034914,LIFT & ENGINEERING SERVICES LTD, 99.17 ,15/02/2016
Commercial,Customer Support Group,Building Repairs & Maintenance,60045147,LIFT & ENGINEERING SERVICES LTD, 586.00 ,18/02/2016
Commercial,Customer Support Group,Building Repairs & Maintenance,60045786,LIFT & ENGINEERING SERVICES LTD, 99.17 ,09/02/2016
Commercial,Customer Support Group,Building Repairs & Maintenance,60045812,LIFT & ENGINEERING SERVICES LTD, 66.11 ,09/02/2016
Commercial,Customer Support Group,Building Repairs & Maintenance,60045845,LIFT & ENGINEERING SERVICES LTD, 99.17 ,09/02/2016
Commercial,Customer Support Group,Building Repairs & Maintenance,60045873,LIFT & ENGINEERING SERVICES LTD, 99.17 ,09/02/2016
Commercial,Customer Support Group,Building Repairs & Maintenance,60046918,LIFT & ENGINEERING SERVICES LTD, 49.58 ,23/02/2016
Commercial,Customer Support Group,Building Repairs & Maintenance,60046956,LIFT & ENGINEERING SERVICES LTD, 49.58 ,22/02/2016
Commercial,Customer Support Group,Building Repairs & Maintenance,60046974,LIFT & ENGINEERING SERVICES LTD, 49.58 ,23/02/2016
Commercial,Customer Support Group,Building Repairs & Maintenance,60046976,LIFT & ENGINEERING SERVICES LTD, 49.58 ,23/02/2016
Commercial,Customer Support Group,Building Repairs & Maintenance,60041649,OAKRAY LIMITED, 936.75 ,23/02/2016
Commercial,Customer Support Group,Building Repairs & Maintenance,60041651,OAKRAY LIMITED," 2,665.50 ",23/02/2016
Commercial,Customer Support Group,Building Repairs & Maintenance,60041663,OAKRAY LIMITED," 2,625.00 ",23/02/2016
Commercial,Customer Support Group,Building Repairs & Maintenance,60041664,OAKRAY LIMITED," 5,446.00 ",23/02/2016
Commercial,Customer Support Group,Building Repairs & Maintenance,60041665,OAKRAY LIMITED," 1,134.00 ",23/02/2016
Commercial,Customer Support Group,Building Repairs & Maintenance,60041668,OAKRAY LIMITED, 120.00 ,23/02/2016
Commercial,Customer Support Group,Building Repairs & Maintenance,60041671,OAKRAY LIMITED, 500.00 ,23/02/2016
Commercial,Customer Support Group,Building Repairs & Maintenance,60041674,OAKRAY LIMITED, 911.25 ,23/02/2016
Commercial,Customer Support Group,Building Repairs & Maintenance,60041679,OAKRAY LIMITED," 1,608.00 ",23/02/2016
Commercial,Customer Support Group,Building Repairs & Maintenance,60041686,OAKRAY LIMITED," 2,341.50 ",23/02/2016
Commercial,Customer Support Group,Building Repairs & Maintenance,60041690,OAKRAY LIMITED," 1,128.75 ",23/02/2016
Commercial,Customer Support Group,Building Repairs & Maintenance,60041722,OAKRAY LIMITED," 1,225.50 ",23/02/2016
Commercial,Customer Support Group,Building Repairs & Maintenance,60041733,OAKRAY LIMITED, 791.25 ,23/02/2016
Commercial,Customer Support Group,Building Repairs & Maintenance,60041735,OAKRAY LIMITED, 676.50 ,23/02/2016
Commercial,Customer Support Group,Building Repairs & Maintenance,60041736,OAKRAY LIMITED," 1,379.25 ",23/02/2016
Commercial,Customer Support Group,Building Repairs & Maintenance,60041754,OAKRAY LIMITED, 618.00 ,23/02/2016
Commercial,Customer Support Group,Building Repairs & Maintenance,60041759,OAKRAY LIMITED," 1,089.00 ",23/02/2016
Commercial,Customer Support Group,Building Repairs & Maintenance,60041773,OAKRAY LIMITED," 2,379.00 ",23/02/2016
Commercial,Customer Support Group,Building Repairs & Maintenance,60041802,OAKRAY LIMITED, 680.50 ,23/02/2016
Commercial,Customer Support Group,Building Repairs & Maintenance,60041805,OAKRAY LIMITED," 1,866.75 ",22/02/2016
Commercial,Customer Support Group,Building Repairs & Maintenance,60041806,OAKRAY LIMITED," 1,207.50 ",22/02/2016
Commercial,Customer Support Group,Building Repairs & Maintenance,60041812,OAKRAY LIMITED," 1,128.00 ",25/02/2016
Commercial,Customer Support Group,Building Repairs & Maintenance,60041822,OAKRAY LIMITED," 1,087.50 ",25/02/2016
Commercial,Customer Support Group,Building Repairs & Maintenance,60041828,OAKRAY LIMITED," 1,365.75 ",25/02/2016
Commercial,Customer Support Group,Building Repairs & Maintenance,60041836,OAKRAY LIMITED, 581.25 ,23/02/2016
Commercial,Customer Support Group,Building Repairs & Maintenance,60041840,OAKRAY LIMITED," 4,448.00 ",23/02/2016
Commercial,Customer Support Group,Building Repairs & Maintenance,60041845,OAKRAY LIMITED," 1,933.50 ",23/02/2016
Commercial,Customer Support Group,Building Repairs & Maintenance,60043169,OAKRAY LIMITED," 1,661.00 ",22/02/2016
Commercial,Customer Support Group,Building Repairs & Maintenance,60043232,OAKRAY LIMITED," 2,366.00 ",22/02/2016
Commercial,Customer Support Group,Building Repairs & Maintenance,60043233,OAKRAY LIMITED," 2,523.00 ",22/02/2016
Commercial,Customer Support Group,Building Repairs & Maintenance,60043244,OAKRAY LIMITED, 696.00 ,22/02/2016
Commercial,Customer Support Group,Building Repairs & Maintenance,60043271,OAKRAY LIMITED," 1,131.00 ",22/02/2016
Commercial,Customer Support Group,Building Repairs & Maintenance,60043355,OAKRAY LIMITED, 64.00 ,03/02/2016
Commercial,Customer Support Group,Building Repairs & Maintenance,60043378,OAKRAY LIMITED, 758.68 ,03/02/2016
Commercial,Customer Support Group,Building Repairs & Maintenance,60043398,OAKRAY LIMITED, 172.74 ,25/02/2016
Commercial,Customer Support Group,Building Repairs & Maintenance,60043456,OAKRAY LIMITED, 56.00 ,02/02/2016
Commercial,Customer Support Group,Building Repairs & Maintenance,60045738,OAKRAY LIMITED, 56.00 ,08/02/2016
Commercial,Customer Support Group,Building Repairs & Maintenance,60046862,OAKRAY LIMITED, 787.50 ,22/02/2016
Commercial,Customer Support Group,Building Repairs & Maintenance,60046972,OAKRAY LIMITED, 900.00 ,22/02/2016
Commercial,Customer Support Group,Building Repairs & Maintenance,60046978,OAKRAY LIMITED, 810.00 ,22/02/2016
Commercial,Customer Support Group,Building Repairs & Maintenance,60033116,RGE SERVICES, 28.50 ,12/02/2016
Commercial,Customer Support Group,Building Repairs & Maintenance,60036590,RGE SERVICES, 232.83 ,15/02/2016
Commercial,Customer Support Group,Building Repairs & Maintenance,60041056,RGE SERVICES, 62.00 ,10/02/2016
Commercial,Customer Support Group,Building Repairs & Maintenance,60042189,RGE SERVICES, 118.75 ,12/02/2016
Commercial,Customer Support Group,Building Repairs & Maintenance,60042202,RGE SERVICES, 95.00 ,12/02/2016
Commercial,Customer Support Group,Building Repairs & Maintenance,60042246,RGE SERVICES, 274.55 ,12/02/2016
Commercial,Customer Support Group,Building Repairs & Maintenance,60042557,RGE SERVICES, 62.00 ,03/02/2016
Commercial,Customer Support Group,Building Repairs & Maintenance,60042911,RGE SERVICES, 432.25 ,04/02/2016
Commercial,Customer Support Group,Building Repairs & Maintenance,60042943,RGE SERVICES, 85.29 ,04/02/2016
Commercial,Customer Support Group,Building Repairs & Maintenance,60042953,RGE SERVICES, 127.38 ,04/02/2016
Commercial,Customer Support Group,Building Repairs & Maintenance,60042961,RGE SERVICES, 242.25 ,04/02/2016
Commercial,Customer Support Group,Building Repairs & Maintenance,60042962,RGE SERVICES, 93.00 ,04/02/2016
Commercial,Customer Support Group,Building Repairs & Maintenance,60042972,RGE SERVICES, 111.60 ,04/02/2016
Commercial,Customer Support Group,Building Repairs & Maintenance,60042980,RGE SERVICES, 161.50 ,04/02/2016
Commercial,Customer Support Group,Building Repairs & Maintenance,60044994,RGE SERVICES, 88.15 ,23/02/2016
Commercial,Customer Support Group,Building Repairs & Maintenance,60044996,RGE SERVICES, 111.65 ,23/02/2016
Commercial,Customer Support Group,Building Repairs & Maintenance,60045001,RGE SERVICES, 203.65 ,23/02/2016
Commercial,Customer Support Group,Building Repairs & Maintenance,60045025,RGE SERVICES, 372.03 ,24/02/2016
Commercial,Customer Support Group,Building Repairs & Maintenance,60045026,RGE SERVICES, 93.00 ,11/02/2016
Commercial,Customer Support Group,Building Repairs & Maintenance,60045036,RGE SERVICES, 65.05 ,23/02/2016
Commercial,Customer Support Group,Building Repairs & Maintenance,60045045,RGE SERVICES, 62.00 ,23/02/2016
Commercial,Customer Support Group,Building Repairs & Maintenance,60045052,RGE SERVICES, 62.00 ,22/02/2016
Commercial,Customer Support Group,Building Repairs & Maintenance,60045060,RGE SERVICES, 71.15 ,23/02/2016
Commercial,Customer Support Group,Building Repairs & Maintenance,60045062,RGE SERVICES, 221.38 ,23/02/2016
Commercial,Customer Support Group,Building Repairs & Maintenance,60045082,RGE SERVICES, 93.00 ,23/02/2016
Commercial,Customer Support Group,Building Repairs & Maintenance,60045088,RGE SERVICES, 109.80 ,23/02/2016
Commercial,Customer Support Group,Building Repairs & Maintenance,60045103,RGE SERVICES, 395.14 ,23/02/2016
Commercial,Customer Support Group,Building Repairs & Maintenance,60045109,RGE SERVICES, 88.15 ,23/02/2016
Commercial,Customer Support Group,Building Repairs & Maintenance,60045120,RGE SERVICES, 272.96 ,23/02/2016
Commercial,Customer Support Group,Building Repairs & Maintenance,60045122,RGE SERVICES, 434.24 ,23/02/2016
Commercial,Customer Support Group,Building Repairs & Maintenance,60045137,RGE SERVICES," 1,786.05 ",26/02/2016
Commercial,Customer Support Group,Building Repairs & Maintenance,60045144,RGE SERVICES, 186.93 ,11/02/2016
Commercial,Customer Support Group,Building Repairs & Maintenance,60045161,RGE SERVICES, 31.00 ,23/02/2016
Commercial,Customer Support Group,Building Repairs & Maintenance,60045319,RGE SERVICES, 133.00 ,25/02/2016
Commercial,Customer Support Group,Building Repairs & Maintenance,60045371,RGE SERVICES, 71.25 ,25/02/2016
Commercial,Customer Support Group,Building Repairs & Maintenance,60045381,RGE SERVICES, 28.50 ,25/02/2016
Commercial,Customer Support Group,Building Repairs & Maintenance,60046164,RGE SERVICES, 248.00 ,15/02/2016
Commercial,Customer Support Group,Building Repairs & Maintenance,60046237,RGE SERVICES, 182.58 ,15/02/2016
Commercial,Customer Support Group,Building Repairs & Maintenance,60046495,RGE SERVICES, 62.00 ,17/02/2016
Commercial,Customer Support Group,Building Repairs & Maintenance,60046598,RGE SERVICES, 126.11 ,17/02/2016
Commercial,Customer Support Group,Building Repairs & Maintenance,60043007,S W BRUCE & CO LTD, 43.21 ,04/02/2016
Commercial,Customer Support Group,Building Repairs & Maintenance,60043011,S W BRUCE & CO LTD, 25.00 ,04/02/2016
Commercial,Customer Support Group,Building Repairs & Maintenance,60043014,S W BRUCE & CO LTD, 145.76 ,04/02/2016
Commercial,Customer Support Group,Building Repairs & Maintenance,60043016,S W BRUCE & CO LTD, 32.38 ,04/02/2016
Commercial,Customer Support Group,Building Repairs & Maintenance,60043034,S W BRUCE & CO LTD," 1,452.40 ",04/02/2016
Commercial,Customer Support Group,Building Repairs & Maintenance,60043037,S W BRUCE & CO LTD, 488.25 ,04/02/2016
Commercial,Customer Support Group,Building Repairs & Maintenance,60043049,S W BRUCE & CO LTD, 25.00 ,04/02/2016
Commercial,Customer Support Group,Building Repairs & Maintenance,60043065,S W BRUCE & CO LTD, 66.56 ,04/02/2016
Commercial,Customer Support Group,Building Repairs & Maintenance,60043094,S W BRUCE & CO LTD, 43.21 ,04/02/2016
Commercial,Customer Support Group,Building Repairs & Maintenance,60043098,S W BRUCE & CO LTD, 116.80 ,04/02/2016
Commercial,Customer Support Group,Building Repairs & Maintenance,60043103,S W BRUCE & CO LTD, 255.08 ,04/02/2016
Commercial,Customer Support Group,Building Repairs & Maintenance,60043109,S W BRUCE & CO LTD, 71.14 ,04/02/2016
Commercial,Customer Support Group,Building Repairs & Maintenance,60043121,S W BRUCE & CO LTD, 139.02 ,04/02/2016
Commercial,Customer Support Group,Building Repairs & Maintenance,60043155,S W BRUCE & CO LTD, 25.00 ,04/02/2016
Commercial,Customer Support Group,Building Repairs & Maintenance,60043247,S W BRUCE & CO LTD, 176.55 ,04/02/2016
Commercial,Customer Support Group,Building Repairs & Maintenance,60043251,S W BRUCE & CO LTD, 68.50 ,04/02/2016
Commercial,Customer Support Group,Building Repairs & Maintenance,60043290,S W BRUCE & CO LTD, 139.02 ,04/02/2016
Commercial,Customer Support Group,Building Repairs & Maintenance,60043302,S W BRUCE & CO LTD, 112.56 ,04/02/2016
Commercial,Customer Support Group,Building Repairs & Maintenance,60043947,S W BRUCE & CO LTD, 51.92 ,11/02/2016
Commercial,Customer Support Group,Building Repairs & Maintenance,60043948,S W BRUCE & CO LTD, 31.52 ,11/02/2016
Commercial,Customer Support Group,Building Repairs & Maintenance,60043958,S W BRUCE & CO LTD, 38.91 ,11/02/2016
Commercial,Customer Support Group,Building Repairs & Maintenance,60043965,S W BRUCE & CO LTD, 221.01 ,11/02/2016
Commercial,Customer Support Group,Building Repairs & Maintenance,60043970,S W BRUCE & CO LTD, 25.00 ,11/02/2016
Commercial,Customer Support Group,Building Repairs & Maintenance,60043978,S W BRUCE & CO LTD, 107.90 ,22/02/2016
Commercial,Customer Support Group,Building Repairs & Maintenance,60043989,S W BRUCE & CO LTD, 25.00 ,11/02/2016
Commercial,Customer Support Group,Building Repairs & Maintenance,60043990,S W BRUCE & CO LTD, 25.00 ,11/02/2016
Commercial,Customer Support Group,Building Repairs & Maintenance,60043993,S W BRUCE & CO LTD, 25.00 ,11/02/2016
Commercial,Customer Support Group,Building Repairs & Maintenance,60043996,S W BRUCE & CO LTD, 137.07 ,11/02/2016
Commercial,Customer Support Group,Building Repairs & Maintenance,60043997,S W BRUCE & CO LTD, 586.00 ,22/02/2016
Commercial,Customer Support Group,Building Repairs & Maintenance,60043999,S W BRUCE & CO LTD, 162.04 ,15/02/2016
Commercial,Customer Support Group,Building Repairs & Maintenance,60044000,S W BRUCE & CO LTD, 46.49 ,11/02/2016
Commercial,Customer Support Group,Building Repairs & Maintenance,60044003,S W BRUCE & CO LTD, 85.50 ,11/02/2016
Commercial,Customer Support Group,Building Repairs & Maintenance,60044007,S W BRUCE & CO LTD, 25.00 ,11/02/2016
Commercial,Customer Support Group,Building Repairs & Maintenance,60044015,S W BRUCE & CO LTD, 728.00 ,11/02/2016
Commercial,Customer Support Group,Building Repairs & Maintenance,60044021,S W BRUCE & CO LTD," 1,555.60 ",11/02/2016
Commercial,Customer Support Group,Building Repairs & Maintenance,60044039,S W BRUCE & CO LTD, 80.31 ,11/02/2016
Commercial,Customer Support Group,Building Repairs & Maintenance,60044043,S W BRUCE & CO LTD, 28.50 ,11/02/2016
Commercial,Customer Support Group,Building Repairs & Maintenance,60044047,S W BRUCE & CO LTD, 112.56 ,11/02/2016
Commercial,Customer Support Group,Building Repairs & Maintenance,60044048,S W BRUCE & CO LTD, 611.59 ,23/02/2016
Commercial,Customer Support Group,Building Repairs & Maintenance,60044051,S W BRUCE & CO LTD, 585.00 ,11/02/2016
Commercial,Customer Support Group,Building Repairs & Maintenance,60044054,S W BRUCE & CO LTD, 43.29 ,11/02/2016
Commercial,Customer Support Group,Building Repairs & Maintenance,60044057,S W BRUCE & CO LTD," 1,500.00 ",11/02/2016
Commercial,Customer Support Group,Building Repairs & Maintenance,60044058,S W BRUCE & CO LTD, 25.00 ,11/02/2016
Commercial,Customer Support Group,Building Repairs & Maintenance,60044065,S W BRUCE & CO LTD, 78.17 ,11/02/2016
Commercial,Customer Support Group,Building Repairs & Maintenance,60044069,S W BRUCE & CO LTD, 224.60 ,11/02/2016
Commercial,Customer Support Group,Building Repairs & Maintenance,60044080,S W BRUCE & CO LTD, 50.66 ,22/02/2016
Commercial,Customer Support Group,Building Repairs & Maintenance,60044083,S W BRUCE & CO LTD, 28.50 ,11/02/2016
Commercial,Customer Support Group,Building Repairs & Maintenance,60044085,S W BRUCE & CO LTD, 731.52 ,11/02/2016
Commercial,Customer Support Group,Building Repairs & Maintenance,60044088,S W BRUCE & CO LTD, 335.00 ,11/02/2016
Commercial,Customer Support Group,Building Repairs & Maintenance,60044205,S W BRUCE & CO LTD, 86.34 ,16/02/2016
Commercial,Customer Support Group,Building Repairs & Maintenance,60044223,S W BRUCE & CO LTD, 272.76 ,16/02/2016
Commercial,Customer Support Group,Building Repairs & Maintenance,60044259,S W BRUCE & CO LTD, 134.19 ,16/02/2016
Commercial,Customer Support Group,Building Repairs & Maintenance,60044288,S W BRUCE & CO LTD, 66.21 ,16/02/2016
Commercial,Customer Support Group,Building Repairs & Maintenance,60044298,S W BRUCE & CO LTD, 81.31 ,16/02/2016
Commercial,Customer Support Group,Building Repairs & Maintenance,60044303,S W BRUCE & CO LTD, 66.56 ,16/02/2016
Commercial,Customer Support Group,Building Repairs & Maintenance,60044310,S W BRUCE & CO LTD, 94.32 ,16/02/2016
Commercial,Customer Support Group,Building Repairs & Maintenance,60044312,S W BRUCE & CO LTD, 66.56 ,16/02/2016
Commercial,Customer Support Group,Building Repairs & Maintenance,60044322,S W BRUCE & CO LTD, 46.49 ,16/02/2016
Commercial,Customer Support Group,Building Repairs & Maintenance,60044327,S W BRUCE & CO LTD, 345.00 ,16/02/2016
Commercial,Customer Support Group,Building Repairs & Maintenance,60044352,S W BRUCE & CO LTD, 967.00 ,16/02/2016
Commercial,Customer Support Group,Building Repairs & Maintenance,60044357,S W BRUCE & CO LTD, 158.80 ,16/02/2016
Commercial,Customer Support Group,Building Repairs & Maintenance,60044358,S W BRUCE & CO LTD, 738.67 ,16/02/2016
Commercial,Customer Support Group,Building Repairs & Maintenance,60044365,S W BRUCE & CO LTD, 283.25 ,16/02/2016
Commercial,Customer Support Group,Building Repairs & Maintenance,60044369,S W BRUCE & CO LTD, 95.67 ,16/02/2016
Commercial,Customer Support Group,Building Repairs & Maintenance,60044379,S W BRUCE & CO LTD, 133.13 ,16/02/2016
Commercial,Customer Support Group,Building Repairs & Maintenance,60044387,S W BRUCE & CO LTD, 76.36 ,16/02/2016
Commercial,Customer Support Group,Building Repairs & Maintenance,60044406,S W BRUCE & CO LTD, 28.50 ,16/02/2016
Commercial,Customer Support Group,Building Repairs & Maintenance,60044421,S W BRUCE & CO LTD, 77.08 ,17/02/2016
Commercial,Customer Support Group,Building Repairs & Maintenance,60044442,S W BRUCE & CO LTD, 32.00 ,17/02/2016
Commercial,Customer Support Group,Building Repairs & Maintenance,60044447,S W BRUCE & CO LTD, 114.00 ,17/02/2016
Commercial,Customer Support Group,Building Repairs & Maintenance,60044466,S W BRUCE & CO LTD, 139.02 ,17/02/2016
Commercial,Customer Support Group,Building Repairs & Maintenance,60044482,S W BRUCE & CO LTD, 310.32 ,17/02/2016
Commercial,Customer Support Group,Building Repairs & Maintenance,60044504,S W BRUCE & CO LTD, 85.58 ,17/02/2016
Commercial,Customer Support Group,Building Repairs & Maintenance,60044535,S W BRUCE & CO LTD, 67.63 ,17/02/2016
Commercial,Customer Support Group,Building Repairs & Maintenance,60044542,S W BRUCE & CO LTD, 500.00 ,17/02/2016
Commercial,Customer Support Group,Building Repairs & Maintenance,60044555,S W BRUCE & CO LTD, 57.00 ,17/02/2016
Commercial,Customer Support Group,Building Repairs & Maintenance,60044571,S W BRUCE & CO LTD, 85.58 ,17/02/2016
Commercial,Customer Support Group,Building Repairs & Maintenance,60044573,S W BRUCE & CO LTD, 39.08 ,17/02/2016
Commercial,Customer Support Group,Building Repairs & Maintenance,60044576,S W BRUCE & CO LTD, 25.00 ,17/02/2016
Commercial,Customer Support Group,Building Repairs & Maintenance,60046365,S W BRUCE & CO LTD, 166.68 ,16/02/2016
Commercial,Customer Support Group,Building Repairs & Maintenance,60046393,S W BRUCE & CO LTD, 54.70 ,16/02/2016
Commercial,Customer Support Group,Building Repairs & Maintenance,60046411,S W BRUCE & CO LTD, 46.78 ,16/02/2016
Commercial,Customer Support Group,Building Repairs & Maintenance,60046413,S W BRUCE & CO LTD, 68.82 ,16/02/2016
Commercial,Customer Support Group,Building Repairs & Maintenance,60046459,S W BRUCE & CO LTD, 49.55 ,16/02/2016
Commercial,Customer Support Group,Building Repairs & Maintenance,10013069,SECOM PLC, 884.00 ,24/02/2016
Commercial,Customer Support Group,Building Repairs & Maintenance,10013070,SECOM PLC," 1,201.00 ",12/02/2016
Commercial,Customer Support Group,Building Repairs & Maintenance,60045447,SECOM PLC, 618.00 ,25/02/2016
Commercial,Customer Support Group,Building Repairs & Maintenance,60046381,SIMPLY ALARMING SECURITY LTD, 297.00 ,16/02/2016
Commercial,Customer Support Group,Cleaning and domestic material,60047176,CHURCHILL CONTRACT SERVICES, 640.00 ,25/02/2016
Commercial,Customer Support Group,Cleaning and domestic material,60047203,CHURCHILL CONTRACT SERVICES, 640.00 ,24/02/2016
Commercial,Customer Support Group,Cleaning and domestic material,60047205,CHURCHILL CONTRACT SERVICES, 640.00 ,25/02/2016
Commercial,Customer Support Group,Cleaning and domestic material,60047212,CHURCHILL CONTRACT SERVICES, 640.00 ,24/02/2016
Commercial,Customer Support Group,Cleaning and domestic material,60047223,CHURCHILL CONTRACT SERVICES, 640.00 ,25/02/2016
Commercial,Customer Support Group,Cleaning and domestic material,60047224,CHURCHILL CONTRACT SERVICES, 640.00 ,25/02/2016
Commercial,Customer Support Group,Cleaning and domestic material,60047238,CHURCHILL CONTRACT SERVICES, 640.00 ,24/02/2016
Commercial,Customer Support Group,Cleaning and domestic material,60047259,CHURCHILL CONTRACT SERVICES, 640.00 ,24/02/2016
Commercial,Customer Support Group,Cleaning and domestic material,60046043,HERTFORDSHIRE SUPPLIES   COUNTY CO, 982.30 ,11/02/2016
Commercial,Customer Support Group,Cleaning and domestic material,60046050,HERTFORDSHIRE SUPPLIES   COUNTY CO," 1,354.90 ",11/02/2016
Commercial,Customer Support Group,Clothing - Uniforms,60045764,PANORAMIC PROMOTIONS LIMITED, 245.00 ,16/02/2016
Commercial,Customer Support Group,Consultants Fees,60045209,KPMG FEES ACCOUNT, 875.00 ,01/02/2016
Commercial,Customer Support Group,Consultants Fees,60046314,KPMG FEES ACCOUNT, 875.00 ,15/02/2016
Commercial,Customer Support Group,Consultants Fees,60045288,SAVILLS (L&P) LTD," 1,042.00 ",02/02/2016
Commercial,Customer Support Group,CSG Services Contract Payment,10012985,CAPITA BUSINESS SERVICES LTD,"-110,708.00 ",25/02/2016
Commercial,Customer Support Group,CSG Services Contract Payment,10012986,CAPITA BUSINESS SERVICES LTD,"-554,812.00 ",25/02/2016
Commercial,Customer Support Group,CSG Services Contract Payment,10013065,CAPITA BUSINESS SERVICES LTD,"-75,116.00 ",25/02/2016
Commercial,Customer Support Group,CSG Services Contract Payment,10013081,CAPITA BUSINESS SERVICES LTD," 1,036,906.55 ",25/02/2016
Commercial,Customer Support Group,CSG Services Contract Payment,10013092,CAPITA BUSINESS SERVICES LTD," 77,880.00 ",25/02/2016
Commercial,Customer Support Group,CSG Services Contract Payment,10013093,CAPITA BUSINESS SERVICES LTD," 29,971.95 ",25/02/2016
Commercial,Customer Support Group,CSG Services Contract Payment,10013094,CAPITA BUSINESS SERVICES LTD," 49,695.72 ",25/02/2016
Commercial,Customer Support Group,CSG Services Contract Payment,60039884,CAPITA BUSINESS SERVICES LTD,"-4,540.87 ",25/02/2016
Commercial,Customer Support Group,CSG Services Contract Payment,60042428,CAPITA BUSINESS SERVICES LTD," 8,524.65 ",25/02/2016
Commercial,Customer Support Group,CSG Services Contract Payment,60046391,CAPITA BUSINESS SERVICES LTD," 31,846.50 ",25/02/2016
Commercial,Customer Support Group,Electricity,10013073,BRITISH GAS BUSINESS(ELEC), 98.05 ,15/02/2016
Commercial,Customer Support Group,Electricity,10013074,BRITISH GAS BUSINESS(ELEC), 89.85 ,15/02/2016
Commercial,Customer Support Group,Electricity,10013075,EDF ENERGY CUSTOMERS PLC, 291.85 ,16/02/2016
Commercial,Customer Support Group,Electricity,60044135,KENT COUNTY COUNCIL (KCS)," 6,307.95 ",02/02/2016
Commercial,Customer Support Group,Electricity,60044774,KENT COUNTY COUNCIL (KCS), 699.40 ,08/02/2016
Commercial,Customer Support Group,Electricity,60045518,KENT COUNTY COUNCIL (KCS)," 1,175.55 ",08/02/2016
Commercial,Customer Support Group,Electricity,60047137,KENT COUNTY COUNCIL (KCS), 470.21 ,23/02/2016
Commercial,Customer Support Group,Electricity,60046676,MIDDLESEX UNIVERSITY," 3,595.58 ",19/02/2016
Commercial,Customer Support Group,Electricity,60046726,MIDDLESEX UNIVERSITY," 4,632.96 ",19/02/2016
Commercial,Customer Support Group,Electricity,60044106,NPOWER, 215.27 ,24/02/2016
Commercial,Customer Support Group,Electricity,60044115,NPOWER, 265.62 ,24/02/2016
Commercial,Customer Support Group,Electricity,60044150,NPOWER, 96.91 ,23/02/2016
Commercial,Customer Support Group,Electricity,60044178,NPOWER, 56.90 ,24/02/2016
Commercial,Customer Support Group,Electricity,60044179,NPOWER, 197.94 ,24/02/2016
Commercial,Customer Support Group,Electricity,60044180,NPOWER, 89.03 ,24/02/2016
Commercial,Customer Support Group,Electricity,60044183,NPOWER, 233.18 ,24/02/2016
Commercial,Customer Support Group,Electricity,60044194,NPOWER, 42.21 ,24/02/2016
Commercial,Customer Support Group,Equipment and Materials Purcha,10013062,SM ELECTRICAL SERVICES, 400.00 ,10/02/2016
Commercial,Customer Support Group,Equipment and Materials Purcha,60045660,SM ELECTRICAL SERVICES, 125.00 ,11/02/2016
Commercial,Customer Support Group,Equipment and Materials Purcha,60045699,SM ELECTRICAL SERVICES, 270.00 ,24/02/2016
Commercial,Customer Support Group,Equipment and Materials Purcha,60045740,SM ELECTRICAL SERVICES, 90.00 ,18/02/2016
Commercial,Customer Support Group,Equipment and Materials Purcha,60045744,SM ELECTRICAL SERVICES, 135.00 ,18/02/2016
Commercial,Customer Support Group,Fixtures and fittings,60044157,LYCO DIRECT LTD, 127.00 ,24/02/2016
Commercial,Customer Support Group,Fixtures and fittings,60045176,WAGSTAFF INTERIORS GROUP, 10.00 ,09/02/2016
Commercial,Customer Support Group,Fixtures and fittings,60045191,WAGSTAFF INTERIORS GROUP, 20.00 ,09/02/2016
Commercial,Customer Support Group,Fixtures and fittings,60045219,WAGSTAFF INTERIORS GROUP, 525.00 ,09/02/2016
Commercial,Customer Support Group,Fixtures and fittings,60045236,WAGSTAFF INTERIORS GROUP, 12.00 ,09/02/2016
Commercial,Customer Support Group,Fixtures and fittings,60045259,WAGSTAFF INTERIORS GROUP, 10.00 ,09/02/2016
Commercial,Customer Support Group,Fixtures and fittings,60045264,WAGSTAFF INTERIORS GROUP, 10.00 ,09/02/2016
Commercial,Customer Support Group,Gas,60045511,BRITISH GAS BUSINESS, 182.55 ,05/02/2016
Commercial,Customer Support Group,Gas,60044121,KENT COUNTY COUNCIL (KCS), 445.90 ,01/02/2016
Commercial,Customer Support Group,Gas,60044190,KENT COUNTY COUNCIL (KCS)," 10,308.87 ",01/02/2016
Commercial,Customer Support Group,Gas,60045821,KENT COUNTY COUNCIL (KCS), 153.09 ,09/02/2016
Commercial,Customer Support Group,Gas,60046678,MIDDLESEX UNIVERSITY," 14,407.39 ",19/02/2016
Commercial,Customer Support Group,Gas,60046785,MIDDLESEX UNIVERSITY," 2,718.34 ",19/02/2016
Commercial,Customer Support Group,Gas,60046792,MIDDLESEX UNIVERSITY," 24,732.93 ",19/02/2016
Commercial,Customer Support Group,Gas,60044146,TOTAL GAS & POWER LTD," 5,641.41 ",15/02/2016
Commercial,Customer Support Group,Gas,60044167,TOTAL GAS & POWER LTD," 2,750.49 ",19/02/2016
Commercial,Customer Support Group,Hardware Maintenance,60046282,ZIPPORAH LTD," 4,047.85 ",15/02/2016
Commercial,Customer Support Group,Operational Leases - Equipment,60046333,XEROX (UK) LTD, 272.98 ,17/02/2016
Commercial,Customer Support Group,Operational Leases - Equipment,60046349,XEROX (UK) LTD, 176.73 ,17/02/2016
Commercial,Customer Support Group,Other Energy,60045601,EDF ENERGY CUSTOMER FIELD SERVICES, 255.03 ,05/02/2016
Commercial,Customer Support Group,Other Energy,60046193,EDF ENERGY CUSTOMER FIELD SERVICES, 143.80 ,15/02/2016
Commercial,Customer Support Group,Other Energy,60046243,EDF ENERGY CUSTOMER FIELD SERVICES, 143.80 ,15/02/2016
Commercial,Customer Support Group,Other Services,60045662,BLUE 9 SECURITY LIMITED, 50.00 ,10/02/2016
Commercial,Customer Support Group,Other Services,60045666,BLUE 9 SECURITY LIMITED," 16,625.00 ",10/02/2016
Commercial,Customer Support Group,Other Services,60045681,BLUE 9 SECURITY LIMITED, 841.00 ,10/02/2016
Commercial,Customer Support Group,Other Services,60045696,BLUE 9 SECURITY LIMITED, 116.00 ,10/02/2016
Commercial,Customer Support Group,Other Services,60045697,BLUE 9 SECURITY LIMITED, 200.00 ,10/02/2016
Commercial,Customer Support Group,Other Services,60045720,BLUE 9 SECURITY LIMITED," 10,788.00 ",10/02/2016
Commercial,Customer Support Group,Other Services,60045722,BLUE 9 SECURITY LIMITED," 1,567.50 ",10/02/2016
Commercial,Customer Support Group,Other Services,60045748,BLUE 9 SECURITY LIMITED," 21,204.00 ",10/02/2016
Commercial,Customer Support Group,Other Services,60046215,BLUE 9 SECURITY LIMITED, 116.00 ,15/02/2016
Commercial,Customer Support Group,Professional Services,60045539,ROSSENDALES (COLLECT) LTD, 748.73 ,25/02/2016
Commercial,Customer Support Group,Publications,10013068,TV LICENSING, 145.50 ,12/02/2016
Commercial,Customer Support Group,Rents,60047117,MIDDLESEX UNIVERSITY," 52,750.00 ",24/02/2016
Commercial,Customer Support Group,Rubbish Collection,60045292,PREMIER SHREDDING, 59.00 ,02/02/2016
Commercial,Customer Support Group,Water Services,10013031,AFFINITY WATER LIMITED, 44.03 ,01/02/2016
Commercial,Customer Support Group,Water Services,60045573,AFFINITY WATER LIMITED, 578.53 ,09/02/2016
Commercial,Customer Support Group,Water Services,60047428,AFFINITY WATER LIMITED, 571.85 ,25/02/2016
Commercial,Customer Support Group,Water Services,60037210,ANGEL SPRINGS LTD, 210.00 ,08/02/2016
Commercial,Customer Support Group,Water Services,60035668,THAMES WATER UTILITIES LIMITED, 260.06 ,24/02/2016
Commercial,Customer Support Group,Water Services,60042882,THAMES WATER UTILITIES LIMITED, 406.05 ,29/02/2016
Commercial,Customer Support Group,Water Services,60045678,THAMES WATER UTILITIES LIMITED, 633.81 ,09/02/2016
Commercial,Customer Support Group,Water Services,60046228,THAMES WATER UTILITIES LIMITED, 234.04 ,15/02/2016
Commercial,HB LAW,Legal and Court Fees,60029297,LONDON BOROUGH OF HARROW," 108,660.81 ",04/02/2016
Commercial,HB LAW,Legal and Court Fees,60044610,LONDON BOROUGH OF HARROW," 165,654.09 ",11/02/2016
Commercial,HB LAW,Legal and Court Fees,60044622,LONDON BOROUGH OF HARROW," 210,420.20 ",01/02/2016
Commercial,HB LAW,Legal and Court Fees,60044680,LONDON BOROUGH OF HARROW," 162,008.83 ",04/02/2016
Commercial,HB LAW,Legal and Court Fees,60045294,LONDON BOROUGH OF HARROW," 210,420.20 ",02/02/2016
Commercial,HB LAW,Legal and Court Fees,60046880,LONDON BOROUGH OF HARROW," 210,420.20 ",24/02/2016
Commercial,HB LAW,LEGAL REAL,60046658,LONDON BOROUGH OF HARROW," 69,492.65 ",24/02/2016
Commercial,HB LAW,LEGAL REAL,60046848,LONDON BOROUGH OF HARROW," 157,831.44 ",24/02/2016
Commercial,Housing Needs Resources,Consultants Fees,60045306,THE BARNETGROUP LIMITED," 61,803.49 ",02/02/2016
Commercial,Housing Needs Resources,Legal and Court Fees,60044683,THE BARNETGROUP LIMITED," 15,000.00 ",29/02/2016
Commercial,Housing Needs Resources,Private Contractors - Third Pa,10013085,THE BARNETGROUP LIMITED," 606,548.71 ",18/02/2016
Commercial,Housing Needs Resources,Private Contractors - Third Pa,60044313,THE BARNETGROUP LIMITED," 1,600,000.00 ",18/02/2016
Commercial,Housing Needs Resources,Private Contractors - Third Pa,60045296,THE BARNETGROUP LIMITED," 240,052.77 ",03/02/2016
Commercial,Housing Needs Resources,Private Contractors - Third Pa,60047295,THE BARNETGROUP LIMITED," 1,603,892.06 ",24/02/2016
Commercial,HRA,Advertising,60045839,TMP (UK) LTD, 129.90 ,09/02/2016
Commercial,HRA,Advertising,60047352,TMP (UK) LTD, 75.64 ,24/02/2016
Commercial,HRA,Consultants Fees,60045512,PRIORITY ESTATES PROJECT LTD," 2,095.50 ",08/02/2016
Commercial,HRA,Consultants Fees,60045549,PRIORITY ESTATES PROJECT LTD," 2,479.67 ",08/02/2016
Commercial,HRA,Consultants Fees,60045589,PRIORITY ESTATES PROJECT LTD, 628.65 ,08/02/2016
Commercial,HRA,Consultants Fees,60045600,PRIORITY ESTATES PROJECT LTD," 2,387.33 ",11/02/2016
Commercial,HRA,Consultants Fees,60045630,PRIORITY ESTATES PROJECT LTD," 1,816.10 ",08/02/2016
Commercial,HRA,Consultants Fees,60045800,THE BARNETGROUP LIMITED," 2,315.82 ",09/02/2016
Commercial,HRA,Legal and Court Fees,60045382,THE BARNETGROUP LIMITED," 14,957.46 ",03/02/2016
Commercial,HRA,Legal and Court Fees,60045391,THE BARNETGROUP LIMITED," 8,250.00 ",09/02/2016
Commercial,HRA,Rents,60045792,CHILD'S HILL BAPTIST CHURCH, 35.00 ,29/02/2016
Commercial,HRA,Rents,60045891,CHILD'S HILL BAPTIST CHURCH, 90.00 ,29/02/2016
Commercial,HRA,Water Services,60047093,AFFINITY WATER LIMITED, 244.59 ,25/02/2016
Commercial,HRA,Water Services,10012980,THAMES WATER UTILITIES LIMITED," 23,371.59 ",09/02/2016
Commercial,HRA,Water Services,10012981,THAMES WATER UTILITIES LIMITED," 30,857.69 ",01/02/2016
Commercial,Parking & Infrastructure,Advertising,60047103,TMP (UK) LTD, 360.12 ,25/02/2016
Commercial,Parking & Infrastructure,Capital Construction and Works,60045708,COMPASS MINERALS," 3,530.62 ",16/02/2016
Commercial,Parking & Infrastructure,Equipment and Materials Purcha,60045056,AMARI PLASTICS LTD, 221.12 ,05/02/2016
Commercial,Parking & Infrastructure,Equipment and Materials Purcha,60046628,ANGEL SPRINGS LTD, 32.00 ,29/02/2016
Commercial,Parking & Infrastructure,Equipment and Materials Purcha,60046938,ASD METAL SERVICES, 44.94 ,25/02/2016
Commercial,Parking & Infrastructure,Equipment and Materials Purcha,60044425,COBURN SERVICES LTD," 2,226.00 ",10/02/2016
Commercial,Parking & Infrastructure,Equipment and Materials Purcha,60045727,COBURN SERVICES LTD, 898.80 ,18/02/2016
Commercial,Parking & Infrastructure,Equipment and Materials Purcha,60045746,COLAS LTD, 756.00 ,16/02/2016
Commercial,Parking & Infrastructure,Equipment and Materials Purcha,60045751,COLAS LTD," 1,806.00 ",18/02/2016
Commercial,Parking & Infrastructure,Equipment and Materials Purcha,60045095,CONWAY AECOM LTD, 466.58 ,23/02/2016
Commercial,Parking & Infrastructure,Equipment and Materials Purcha,60045010,GREENHAM TRADING LIMITED," 1,250.80 ",23/02/2016
Commercial,Parking & Infrastructure,Equipment and Materials Purcha,60045682,INSTARMAC GROUP PLC," 2,568.80 ",05/02/2016
Commercial,Parking & Infrastructure,Equipment and Materials Purcha,60044533,LAFARGE TARMAC TRADING LIMITED, 118.85 ,04/02/2016
Commercial,Parking & Infrastructure,Equipment and Materials Purcha,60044541,LAFARGE TARMAC TRADING LIMITED, 120.71 ,04/02/2016
Commercial,Parking & Infrastructure,Equipment and Materials Purcha,60044729,LAFARGE TARMAC TRADING LIMITED, 118.85 ,04/02/2016
Commercial,Parking & Infrastructure,Equipment and Materials Purcha,60044746,LAFARGE TARMAC TRADING LIMITED, 122.56 ,09/02/2016
Commercial,Parking & Infrastructure,Equipment and Materials Purcha,60045641,LAFARGE TARMAC TRADING LIMITED, 107.71 ,18/02/2016
Commercial,Parking & Infrastructure,Equipment and Materials Purcha,60045653,LAFARGE TARMAC TRADING LIMITED, 124.42 ,18/02/2016
Commercial,Parking & Infrastructure,Equipment and Materials Purcha,60045656,LAFARGE TARMAC TRADING LIMITED, 348.19 ,11/02/2016
Commercial,Parking & Infrastructure,Equipment and Materials Purcha,60045684,LAFARGE TARMAC TRADING LIMITED, 122.56 ,09/02/2016
Commercial,Parking & Infrastructure,Equipment and Materials Purcha,60046616,LAFARGE TARMAC TRADING LIMITED, 89.14 ,22/02/2016
Commercial,Parking & Infrastructure,Equipment and Materials Purcha,60046632,LAFARGE TARMAC TRADING LIMITED, 120.71 ,22/02/2016
Commercial,Parking & Infrastructure,Equipment and Materials Purcha,60046863,LAFARGE TARMAC TRADING LIMITED, 369.54 ,25/02/2016
Commercial,Parking & Infrastructure,Equipment and Materials Purcha,60045331,METEOGROUP," 5,800.00 ",03/02/2016
Commercial,Parking & Infrastructure,Equipment and Materials Purcha,60046042,NSL LTD," 3,627.48 ",11/02/2016
Commercial,Parking & Infrastructure,Equipment and Materials Purcha,60044757,RENNICK UK LTD, 189.20 ,11/02/2016
Commercial,Parking & Infrastructure,Equipment and Materials Purcha,60045743,RENNICK UK LTD, 401.27 ,25/02/2016
Commercial,Parking & Infrastructure,Miscellaneous Expenses,60038495,PARKEON LIMITED, 796.50 ,24/02/2016
Commercial,Parking & Infrastructure,Miscellaneous Expenses,60045014,PARKEON LIMITED," 2,218.08 ",16/02/2016
Commercial,Parking & Infrastructure,Miscellaneous Expenses,60045051,PARKEON LIMITED, 796.50 ,01/02/2016
Commercial,Parking & Infrastructure,Miscellaneous Expenses,60045070,PARKEON LIMITED, 796.50 ,16/02/2016
Commercial,Parking & Infrastructure,Miscellaneous Expenses,60045139,PARKEON LIMITED," 2,261.44 ",01/02/2016
Commercial,Parking & Infrastructure,Other Services,60046964,LONDON COUNCILS, 267.24 ,25/02/2016
Commercial,Parking & Infrastructure,Professional Services,60045019,NSL LTD," 218,032.31 ",01/02/2016
Commercial,Parking & Infrastructure,Professional Services,60045084,NSL LTD, 348.00 ,01/02/2016
Commercial,Parking & Infrastructure,Software Licences & Support,60045734,NSL LTD, 149.48 ,09/02/2016
Commercial,Parking & Infrastructure,Software Licences & Support,60046281,NSL LTD," 31,493.36 ",19/02/2016
Commercial,Public Health,Employee Expenses,60045908,CENTRAL LONDONCOMMUNITY HEALTHCARE," 16,667.00 ",16/02/2016
Commercial,Public Health,Employee Expenses,60046010,CENTRAL LONDONCOMMUNITY HEALTHCARE," 335,167.00 ",16/02/2016
Commercial,Public Health,Employee Expenses,60047300,CENTRAL LONDONCOMMUNITY HEALTHCARE," 16,667.00 ",29/02/2016
Commercial,Public Health,Health authorities - Third Par,10013033,LONDON BOROUGH OF HARROW," 3,583,750.00 ",11/02/2016
Commercial,Regional Enterprise,Advertising,60042420,MATTINSON PARTNERSHIP," 9,840.00 ",02/02/2016
Commercial,Regional Enterprise,Advertising,60045286,TMP (UK) LTD, 32.08 ,05/02/2016
Commercial,Regional Enterprise,Advertising,60045293,TMP (UK) LTD, 32.08 ,05/02/2016
Commercial,Regional Enterprise,Advertising,60045311,TMP (UK) LTD, 39.20 ,05/02/2016
Commercial,Regional Enterprise,Advertising,60045910,TMP (UK) LTD, 250.19 ,10/02/2016
Commercial,Regional Enterprise,Advertising,60046094,TMP (UK) LTD, 364.15 ,15/02/2016
Commercial,Regional Enterprise,Advertising,60047099,TMP (UK) LTD, 353.46 ,23/02/2016
Commercial,Regional Enterprise,Advertising,60047146,TMP (UK) LTD, 422.96 ,23/02/2016
Commercial,Regional Enterprise,Advertising,60047150,TMP (UK) LTD, 381.97 ,23/02/2016
Commercial,Regional Enterprise,Capital Construction and Works,60043128,S W BRUCE & CO LTD," 5,485.00 ",04/02/2016
Commercial,Regional Enterprise,Capital Construction and Works,60043154,S W BRUCE & CO LTD," 6,640.00 ",04/02/2016
Commercial,Regional Enterprise,Consultants Fees,60044814,EVERSHEDS LLP," 6,000.00 ",03/02/2016
Commercial,Regional Enterprise,Consultants Fees,60044881,EVERSHEDS LLP," 4,808.30 ",17/02/2016
Commercial,Regional Enterprise,Consultants Fees,60045971,EVERSHEDS LLP," 12,000.00 ",17/02/2016
Commercial,Regional Enterprise,Consultants Fees,60044744,JACOBS UK LTD," 9,000.00 ",04/02/2016
Commercial,Regional Enterprise,Consultants Fees,60045782,MPCS," 4,500.00 ",09/02/2016
Commercial,Regional Enterprise,Consultants Fees,60043268,NETWORK RAIL INFRASTRUCTURE LTD," 412,961.07 ",22/02/2016
Commercial,Regional Enterprise,Consultants Fees,10013083,NORTH LONDON WASTE AUTHORITY," 5,256.74 ",18/02/2016
Commercial,Regional Enterprise,Consultants Fees,60044487,RAILFREIGHT CONSULTING LTD," 10,890.00 ",11/02/2016
Commercial,Regional Enterprise,Consultants Fees,60045419,WE MADE THAT LLP," 15,306.55 ",04/02/2016
Commercial,Regional Enterprise,Consultants Fees,60045254,WRAGGE LAWRENCE GRAHAM & CO LLP," 9,548.40 ",22/02/2016
Commercial,Regional Enterprise,Equipment and Materials Purcha,20028525,J F ALLEN LTD, 480.00 ,23/02/2016
Commercial,Regional Enterprise,Equipment and Materials Purcha,20028208,REDACTED - PERSONAL DATA," 1,155.00 ",09/02/2016
Commercial,Regional Enterprise,Equipment and Materials Purcha,20028209,REDACTED - PERSONAL DATA," 1,120.00 ",09/02/2016
Commercial,Regional Enterprise,Equipment and Materials Purcha,20028277,REDACTED - PERSONAL DATA, 805.00 ,12/02/2016
Commercial,Regional Enterprise,Fees and Charges,20027993,L S SCAFFOLDING LTD, 167.00 ,01/02/2016
Commercial,Regional Enterprise,Fees and Charges,20028328,REGENT LODGE LTD," 1,344.00 ",16/02/2016
Commercial,Regional Enterprise,Grant Payments,20028152,AMWELL CONSTRUCTION LTD," 15,606.68 ",05/02/2016
Commercial,Regional Enterprise,Grant Payments,20028293,AMWELL CONSTRUCTION LTD," 5,416.00 ",15/02/2016
Commercial,Regional Enterprise,Grant Payments,20028401,AMWELL CONSTRUCTION LTD," 2,670.00 ",19/02/2016
Commercial,Regional Enterprise,Grant Payments,20028550,AMWELL CONSTRUCTION LTD," 5,466.00 ",24/02/2016
Commercial,Regional Enterprise,Grant Payments,20028151,ARTHUR J. FERRYMAN ASSOCIATES," 1,783.62 ",05/02/2016
Commercial,Regional Enterprise,Grant Payments,80002273,ARTHUR J. FERRYMAN ASSOCIATES," 2,018.40 ",24/02/2016
Commercial,Regional Enterprise,Grant Payments,20028200,CAPITAL  LOCKSMITHS, 96.00 ,09/02/2016
Commercial,Regional Enterprise,Grant Payments,20028204,CAPITAL  LOCKSMITHS, 96.00 ,09/02/2016
Commercial,Regional Enterprise,Grant Payments,20028586,CAPITAL  LOCKSMITHS, 96.00 ,26/02/2016
Commercial,Regional Enterprise,Grant Payments,20028603,CAPITAL  LOCKSMITHS, 269.40 ,26/02/2016
Commercial,Regional Enterprise,Grant Payments,20028615,CAPITAL  LOCKSMITHS, 359.76 ,29/02/2016
Commercial,Regional Enterprise,Grant Payments,20028616,CAPITAL  LOCKSMITHS, 352.80 ,29/02/2016
Commercial,Regional Enterprise,Grant Payments,20028161,DOLPHIN MOBILITY LTD.," 5,435.00 ",08/02/2016
Commercial,Regional Enterprise,Grant Payments,20028197,DOLPHIN MOBILITY LTD.," 2,365.00 ",09/02/2016
Commercial,Regional Enterprise,Grant Payments,20028079,DP BUILDERS DISABLED ADAPTATIONS," 5,376.00 ",02/02/2016
Commercial,Regional Enterprise,Grant Payments,20028102,DP BUILDERS DISABLED ADAPTATIONS, 500.00 ,04/02/2016
Commercial,Regional Enterprise,Grant Payments,20028145,DP BUILDERS DISABLED ADAPTATIONS," 4,680.00 ",05/02/2016
Commercial,Regional Enterprise,Grant Payments,20028397,DP BUILDERS DISABLED ADAPTATIONS," 5,307.00 ",17/02/2016
Commercial,Regional Enterprise,Grant Payments,20028400,DP BUILDERS DISABLED ADAPTATIONS," 3,780.00 ",19/02/2016
Commercial,Regional Enterprise,Grant Payments,20028117,H D PROPERTY SERVICES LTD," 1,651.70 ",04/02/2016
Commercial,Regional Enterprise,Grant Payments,20028547,H D PROPERTY SERVICES LTD," 9,509.00 ",24/02/2016
Commercial,Regional Enterprise,Grant Payments,20028609,H D PROPERTY SERVICES LTD," 4,738.00 ",29/02/2016
Commercial,Regional Enterprise,Grant Payments,20028078,REDACTED - PERSONAL DATA, 512.40 ,02/02/2016
Commercial,Regional Enterprise,Grant Payments,20028279,REDACTED - PERSONAL DATA," 5,419.00 ",12/02/2016
Commercial,Regional Enterprise,Grant Payments,20028403,REDACTED - PERSONAL DATA," 5,521.00 ",19/02/2016
Commercial,Regional Enterprise,Grant Payments,20028538,REDACTED - PERSONAL DATA," 4,305.00 ",24/02/2016
Commercial,Regional Enterprise,Grant Payments,20028539,REDACTED - PERSONAL DATA," 3,780.00 ",24/02/2016
Commercial,Regional Enterprise,Grant Payments,20028549,REDACTED - PERSONAL DATA," 5,590.00 ",24/02/2016
Commercial,Regional Enterprise,Grant Payments,20028582,REDACTED - PERSONAL DATA," 3,840.00 ",26/02/2016
Commercial,Regional Enterprise,Grant Payments,20028186,SOUTH HERTFORDSHIRE, 240.00 ,09/02/2016
Commercial,Regional Enterprise,Grant Payments,20028278,SOUTH HERTFORDSHIRE, 495.00 ,12/02/2016
Commercial,Regional Enterprise,Grant Payments,20028610,SOUTH HERTFORDSHIRE, 396.00 ,29/02/2016
Commercial,Regional Enterprise,Grant Payments,20028622,SOUTH HERTFORDSHIRE," 1,320.00 ",29/02/2016
Commercial,Regional Enterprise,Grant Payments,20028080,STANNAH STAIRLIFTS LTD," 4,741.00 ",02/02/2016
Commercial,Regional Enterprise,Grant Payments,20028113,STANNAH STAIRLIFTS LTD," 4,668.00 ",04/02/2016
Commercial,Regional Enterprise,Grant Payments,20028184,STANNAH STAIRLIFTS LTD," 1,917.00 ",09/02/2016
Commercial,Regional Enterprise,Grant Payments,20028281,STANNAH STAIRLIFTS LTD," 2,497.00 ",12/02/2016
Commercial,Regional Enterprise,Grant Payments,20028295,STANNAH STAIRLIFTS LTD," 5,010.00 ",16/02/2016
Commercial,Regional Enterprise,Grant Payments,20028584,STANNAH STAIRLIFTS LTD," 5,508.74 ",26/02/2016
Commercial,Regional Enterprise,Grant Payments,20028621,STANNAH STAIRLIFTS LTD," 4,741.00 ",29/02/2016
Commercial,Regional Enterprise,Grant Payments,20028524,WINDOW DOCTOR LTD, 825.00 ,23/02/2016
Commercial,Regional Enterprise,Miscellaneous Expenses,20028100,H M R C," 22,500.00 ",02/02/2016
Commercial,Regional Enterprise,Other Establishments - Third P,20028119,TFL," 1,285,949.33 ",05/02/2016
Commercial,Regional Enterprise,Other Services,60043940,AFFINITY WATER LIMITED, 26.38 ,25/02/2016
Commercial,Regional Enterprise,Other Services,60047183,ARTS DEPOT PRODUCTIONS LTD," 5,500.00 ",24/02/2016
Commercial,Regional Enterprise,Other Services,60039308,CONWAY AECOM LTD," 44,830.40 ",05/02/2016
Commercial,Regional Enterprise,Other Services,60039334,CONWAY AECOM LTD," 21,745.00 ",24/02/2016
Commercial,Regional Enterprise,Other Services,60039379,CONWAY AECOM LTD," 48,639.00 ",05/02/2016
Commercial,Regional Enterprise,Other Services,60039433,CONWAY AECOM LTD," 48,537.00 ",25/02/2016
Commercial,Regional Enterprise,Other Services,60039516,CONWAY AECOM LTD," 22,102.00 ",25/02/2016
Commercial,Regional Enterprise,Other Services,60039522,CONWAY AECOM LTD," 91,656.80 ",05/02/2016
Commercial,Regional Enterprise,Other Services,60040123,CONWAY AECOM LTD," 24,143.40 ",24/02/2016
Commercial,Regional Enterprise,Other Services,60040152,CONWAY AECOM LTD," 15,960.96 ",24/02/2016
Commercial,Regional Enterprise,Other Services,60041272,CONWAY AECOM LTD," 14,682.69 ",24/02/2016
Commercial,Regional Enterprise,Other Services,60042459,CONWAY AECOM LTD," 2,813.93 ",19/02/2016
Commercial,Regional Enterprise,Other Services,60043699,CONWAY AECOM LTD," 28,696.98 ",25/02/2016
Commercial,Regional Enterprise,Other Services,60043838,CONWAY AECOM LTD," 1,653.18 ",25/02/2016
Commercial,Regional Enterprise,Other Services,60044202,CONWAY AECOM LTD, 291.62 ,16/02/2016
Commercial,Regional Enterprise,Other Services,60044238,CONWAY AECOM LTD," 5,640.17 ",16/02/2016
Commercial,Regional Enterprise,Other Services,60044300,CONWAY AECOM LTD," 4,561.79 ",16/02/2016
Commercial,Regional Enterprise,Other Services,60044349,CONWAY AECOM LTD, 17.75 ,16/02/2016
Commercial,Regional Enterprise,Other Services,60044364,CONWAY AECOM LTD, 32.10 ,25/02/2016
Commercial,Regional Enterprise,Other Services,60044380,CONWAY AECOM LTD," 4,010.58 ",16/02/2016
Commercial,Regional Enterprise,Other Services,60044411,CONWAY AECOM LTD, 11.75 ,17/02/2016
Commercial,Regional Enterprise,Other Services,60044415,CONWAY AECOM LTD, 15.40 ,17/02/2016
Commercial,Regional Enterprise,Other Services,60044999,CONWAY AECOM LTD," 1,360.61 ",18/02/2016
Commercial,Regional Enterprise,Other Services,60045031,CONWAY AECOM LTD, 559.15 ,23/02/2016
Commercial,Regional Enterprise,Other Services,60045032,CONWAY AECOM LTD," 1,266.00 ",23/02/2016
Commercial,Regional Enterprise,Other Services,60045035,CONWAY AECOM LTD," 2,211.58 ",23/02/2016
Commercial,Regional Enterprise,Other Services,60045046,CONWAY AECOM LTD, 300.00 ,23/02/2016
Commercial,Regional Enterprise,Other Services,60045102,CONWAY AECOM LTD," 23,500.00 ",24/02/2016
Commercial,Regional Enterprise,Other Services,60045108,CONWAY AECOM LTD, 607.68 ,23/02/2016
Commercial,Regional Enterprise,Other Services,60045117,CONWAY AECOM LTD," 6,052.99 ",24/02/2016
Commercial,Regional Enterprise,Other Services,60045123,CONWAY AECOM LTD, 738.50 ,24/02/2016
Commercial,Regional Enterprise,Other Services,60045157,CONWAY AECOM LTD, 538.05 ,23/02/2016
Commercial,Regional Enterprise,Other Services,60045282,CONWAY AECOM LTD," 8,433.89 ",25/02/2016
Commercial,Regional Enterprise,Other Services,60045285,CONWAY AECOM LTD," 32,180.69 ",25/02/2016
Commercial,Regional Enterprise,Other Services,60045298,CONWAY AECOM LTD," 22,201.45 ",25/02/2016
Commercial,Regional Enterprise,Other Services,60045313,CONWAY AECOM LTD, 209.87 ,25/02/2016
Commercial,Regional Enterprise,Other Services,60045314,CONWAY AECOM LTD," 22,076.18 ",25/02/2016
Commercial,Regional Enterprise,Other Services,60045425,CONWAY AECOM LTD," 19,063.50 ",25/02/2016
Commercial,Regional Enterprise,Other Services,60045426,CONWAY AECOM LTD," 64,978.20 ",25/02/2016
Commercial,Regional Enterprise,Other Services,60045431,CONWAY AECOM LTD," 27,601.25 ",25/02/2016
Commercial,Regional Enterprise,Other Services,60045434,CONWAY AECOM LTD," 4,111.63 ",25/02/2016
Commercial,Regional Enterprise,Other Services,60045436,CONWAY AECOM LTD, 787.07 ,25/02/2016
Commercial,Regional Enterprise,Other Services,60045439,CONWAY AECOM LTD," 107,728.47 ",25/02/2016
Commercial,Regional Enterprise,Other Services,60045442,CONWAY AECOM LTD," 7,893.90 ",25/02/2016
Commercial,Regional Enterprise,Other Services,60045445,CONWAY AECOM LTD," 22,761.64 ",25/02/2016
Commercial,Regional Enterprise,Other Services,60045449,CONWAY AECOM LTD," 9,837.84 ",25/02/2016
Commercial,Regional Enterprise,Other Services,60045454,CONWAY AECOM LTD," 20,287.42 ",25/02/2016
Commercial,Regional Enterprise,Other Services,60045462,CONWAY AECOM LTD," 35,140.04 ",25/02/2016
Commercial,Regional Enterprise,Other Services,60045467,CONWAY AECOM LTD," 17,045.13 ",25/02/2016
Commercial,Regional Enterprise,Other Services,60045472,CONWAY AECOM LTD," 1,237.72 ",25/02/2016
Commercial,Regional Enterprise,Other Services,60045474,CONWAY AECOM LTD," 38,897.60 ",25/02/2016
Commercial,Regional Enterprise,Other Services,60045478,CONWAY AECOM LTD," 56,268.72 ",25/02/2016
Commercial,Regional Enterprise,Other Services,60045480,CONWAY AECOM LTD," 66,125.29 ",25/02/2016
Commercial,Regional Enterprise,Other Services,60045481,CONWAY AECOM LTD," 103,049.38 ",25/02/2016
Commercial,Regional Enterprise,Other Services,60045490,CONWAY AECOM LTD, 604.66 ,25/02/2016
Commercial,Regional Enterprise,Other Services,60045497,CONWAY AECOM LTD," 38,990.40 ",25/02/2016
Commercial,Regional Enterprise,Other Services,60045544,CONWAY AECOM LTD, 489.04 ,25/02/2016
Commercial,Regional Enterprise,Other Services,60046469,CONWAY AECOM LTD," 4,996.41 ",29/02/2016
Commercial,Regional Enterprise,Other Services,60046486,CONWAY AECOM LTD," 1,112.71 ",29/02/2016
Commercial,Regional Enterprise,Other Services,60046558,CONWAY AECOM LTD," 7,425.80 ",29/02/2016
Commercial,Regional Enterprise,Other Services,60046579,CONWAY AECOM LTD," 15,335.03 ",29/02/2016
Commercial,Regional Enterprise,Other Services,60046593,CONWAY AECOM LTD, 340.56 ,29/02/2016
Commercial,Regional Enterprise,Other Services,60047314,CONWAY AECOM LTD," 71,760.21 ",25/02/2016
Commercial,Regional Enterprise,Other Services,60047338,CONWAY AECOM LTD," 162,990.00 ",29/02/2016
Commercial,Regional Enterprise,Other Services,60043243,CYCLE CONFIDENT LTD, 390.00 ,04/02/2016
Commercial,Regional Enterprise,Other Services,60043266,CYCLE CONFIDENT LTD," 1,875.54 ",04/02/2016
Commercial,Regional Enterprise,Other Services,60047269,MODESHIFT, 349.00 ,29/02/2016
Commercial,Regional Enterprise,Other Services,60045241,PARKFIELD ACADEMY, 300.00 ,04/02/2016
Commercial,Regional Enterprise,Other Services,60043935,SUN HILL SURVEYS," 15,585.00 ",11/02/2016
Commercial,Regional Enterprise,Professional Services,60045406,EUROFINS ENVIRONMENTAL TESTING UK L, 184.58 ,29/02/2016
Commercial,Regional Enterprise,Professional Services,60047862,OPENVIEW SECURITY SOLUTIONS LTD," 218,750.00 ",29/02/2016
Commercial,Regional Enterprise,Professional Services,60045034,PUBLIC ANALYST SCIENTIFIC SERVS. LT, 175.00 ,09/02/2016
Commercial,Regional Enterprise,Professional Services,60045355,PUBLIC ANALYST SCIENTIFIC SERVS. LT, 115.00 ,11/02/2016
Commercial,Regional Enterprise,Publications,60044101,REDACTED - PERSONAL DATA, 450.00 ,03/02/2016
Commercial,Regional Enterprise,Rents,60046624,CROWN MORAN HOTEL," 2,597.50 ",24/02/2016
Commercial,Regional Enterprise,Rents,60045849,INTERNATIONAL GOSPEL CHURCH, 100.00 ,16/02/2016
Commissioning,Commissioning,Advertising,60037391,TMP (UK) LTD, 357.72 ,23/02/2016
Commissioning,Commissioning,Building Repairs & Maintenance,60047275,HERTEL (UK) LTD, 454.86 ,24/02/2016
Commissioning,Commissioning,Building Repairs & Maintenance,60047313,HERTEL (UK) LTD, 402.50 ,24/02/2016
Commissioning,Commissioning,Building Repairs & Maintenance,60047343,HERTEL (UK) LTD," 2,835.00 ",24/02/2016
Commissioning,Commissioning,Building Repairs & Maintenance,60047532,HERTEL (UK) LTD," 2,925.00 ",25/02/2016
Commissioning,Commissioning,Building Repairs & Maintenance,60047536,KIRKMAN & JOURDAIN LTD," 1,577.75 ",25/02/2016
Commissioning,Commissioning,Building Repairs & Maintenance,60042922,RGE SERVICES, 589.00 ,04/02/2016
Commissioning,Commissioning,Building Repairs & Maintenance,60044018,S W BRUCE & CO LTD," 7,559.00 ",23/02/2016
Commissioning,Commissioning,Capital Construction and Works,60046915,REDACTED - PERSONAL DATA, 325.00 ,23/02/2016
Commissioning,Commissioning,Capital Construction and Works,60043296,S W BRUCE & CO LTD," 1,000.00 ",04/02/2016
Commissioning,Commissioning,Consultants Fees,60044608,31TEN CONSULTING LIMITED," 12,000.00 ",03/02/2016
Commissioning,Commissioning,Consultants Fees,60046244,BARNET & DISTRICT ATHLETIC CLUB, 50.00 ,25/02/2016
Commissioning,Commissioning,Consultants Fees,60045519,EMPOWERING COMMUNITIES," 6,975.00 ",25/02/2016
Commissioning,Commissioning,Consultants Fees,60025764,FOCUS CONSULTANTS 2010 LLP, 900.00 ,24/02/2016
Commissioning,Commissioning,Consultants Fees,60029629,FOCUS CONSULTANTS 2010 LLP, 900.00 ,24/02/2016
Commissioning,Commissioning,Consultants Fees,60034999,FOCUS CONSULTANTS 2010 LLP, 900.00 ,24/02/2016
Commissioning,Commissioning,Consultants Fees,60046174,LONDON COUNCILS," 2,000.00 ",25/02/2016
Commissioning,Commissioning,Consultants Fees,60043658,MUTUAL VENTURES LTD," 25,000.00 ",09/02/2016
Commissioning,Commissioning,Consultants Fees,60046316,QUALITY FIELDWORK & RESEARCH, 894.00 ,19/02/2016
Commissioning,Commissioning,Consultants Fees,60045820,WATES CONSTRUCTION LTD," 3,251.57 ",29/02/2016
Commissioning,Commissioning,Consultants Fees,60045830,WATES CONSTRUCTION LTD," 8,232.99 ",29/02/2016
Commissioning,Commissioning,Consultants Fees,60045831,WATES CONSTRUCTION LTD," 3,251.57 ",29/02/2016
Commissioning,Commissioning,Consultants Fees,60045864,WATES CONSTRUCTION LTD," 8,233.14 ",29/02/2016
Commissioning,Commissioning,Consultants Fees,60046448,WATES CONSTRUCTION LTD," 4,146.71 ",29/02/2016
Commissioning,Commissioning,Discretionary awards,20028157,LOVE BURNT OAK COMMUNITY RESOURCE & SUPP," 10,000.00 ",08/02/2016
Commissioning,Commissioning,Equipment and Materials Purcha,60043083,S W BRUCE & CO LTD," 1,187.70 ",04/02/2016
Commissioning,Commissioning,General Office Expenses,40001376,OFFICE DEPOT UK LTD, 4.72 ,05/02/2016
Commissioning,Commissioning,Grant Payments,80002108,AYESHA COMMUNITY EDUCATION," 2,467.50 ",23/02/2016
Commissioning,Commissioning,Grant Payments,80002239,COLINDALE COMMUNITIES TRUST," 3,134.00 ",25/02/2016
Commissioning,Commissioning,Grant Payments,60046295,DEPARTMENT FOR WORK AND PENSIONS," 25,384.00 ",29/02/2016
Commissioning,Commissioning,Grant Payments,80002027,HEART REACH LIMITED," 1,950.00 ",05/02/2016
Commissioning,Commissioning,Grant Payments,80002243,STONEGROVE ESTATES' YOUTH PROJECT," 2,405.00 ",23/02/2016
Commissioning,Commissioning,It Strategy Pep Recharge,10013045,GENERAL DYNAMICS INFORMATION TECHNOLOGY," 5,862.32 ",05/02/2016
Commissioning,Commissioning,It Strategy Pep Recharge,10013046,GENERAL DYNAMICS INFORMATION TECHNOLOGY," 5,559.12 ",04/02/2016
Commissioning,Commissioning,It Strategy Pep Recharge,10013086,GENERAL DYNAMICS INFORMATION TECHNOLOGY," 5,512.52 ",23/02/2016
Commissioning,Commissioning,Miscellaneous Expenses,60044344,SARACENS LTD, 620.00 ,03/02/2016
Commissioning,Commissioning,Other Agencies - Third Party P,60045504,FAMILY FUND TRADING LTD, 104.00 ,08/02/2016
Commissioning,Commissioning,Other Agencies - Third Party P,60046739,FAMILY FUND TRADING LTD, 967.50 ,23/02/2016
Commissioning,Commissioning,Other Services,60047469,BLUE 9 SECURITY LIMITED," 4,000.00 ",25/02/2016
Commissioning,Commissioning,Other Services,60045563,ENVENTURE CONSULTANCY LIMITED, 97.00 ,05/02/2016
Commissioning,Commissioning,Other Services,60043444,HARROW GREEN LTD," 1,056.00 ",29/02/2016
Commissioning,Commissioning,Other Services,60043494,HARROW GREEN LTD," 3,466.32 ",29/02/2016
Commissioning,Commissioning,Other Services,60043587,HARROW GREEN LTD," 1,937.08 ",29/02/2016
Commissioning,Commissioning,Other Services,60045568,IMPOWER CONSULTING LIMITED," 11,500.00 ",25/02/2016
Commissioning,Commissioning,Other Services,60038146,MIDDLESEX UNIVERSITY," 3,045.00 ",09/02/2016
Commissioning,Commissioning,Other Services,60046454,REVOLUTION CRICKET COACHING, 340.00 ,25/02/2016
Commissioning,Commissioning,Other Services,60045587,TRINITY CHURCH CENTRE, 23.25 ,09/02/2016
Commissioning,Commissioning,Other Transfer Payments to Soc,60047503,THE READER ORGANISATION," 3,750.00 ",25/02/2016
Commissioning,Commissioning,Professional Services,60043598,31TEN CONSULTING LIMITED," 6,000.00 ",03/02/2016
Commissioning,Commissioning,Professional Services,10013091,CAPITA BUSINESS SERVICES LTD," 34,444.02 ",25/02/2016
Commissioning,Commissioning,Professional Services,60044638,GENERAL DYNAMICS INFORMATION TECHNOLOGY, 200.00 ,04/02/2016
Commissioning,Commissioning,Professional Services,60044792,GREENWICH LEISURE LTD, 499.33 ,02/02/2016
Commissioning,Commissioning,Professional Services,60045039,NSL LTD," 1,000.00 ",02/02/2016
Commissioning,Commissioning,Publications,60046180,REDACTED - PERSONAL DATA, 150.00 ,22/02/2016
Commissioning,Commissioning,Publicity,20028521,TXTLOCAL LTD, 108.00 ,23/02/2016
Commissioning,Commissioning,Subscriptions,60047208,COPYRIGHT LICENSING AGENCY LTD," 7,402.02 ",24/02/2016
Commissioning,Commissioning,Subscriptions,60045624,HEMMING GROUP LTD, 315.00 ,15/02/2016
Commissioning,Commissioning,Training,60043848,AMBERHAWK TRAINING LTD, 225.00 ,11/02/2016
Commissioning,Commissioning,Training,60036830,CIPFA BUSINESS LIMITED, 325.00 ,23/02/2016
Commissioning,Commissioning,Training,20028085,FITMEDIA LIMITED, 65.00 ,03/02/2016
Commissioning,Commissioning,Training,60045962,HAPPY COMPUTERS LTD, 75.00 ,16/02/2016
Commissioning,Commissioning,Venue Hire,60045397,ARIANA BANQUETING HALL," 1,800.00 ",25/02/2016
Commissioning,Commissioning,Venue Hire,10013063,BARNET & SOUTHGATE COLLEGE, 279.00 ,10/02/2016
Commissioning,Commissioning,Venue Hire,60047763,BARNET & SOUTHGATE COLLEGE, 232.50 ,29/02/2016
Commissioning,Commissioning,Venue Hire,60047766,BARNET & SOUTHGATE COLLEGE, 465.00 ,29/02/2016
Corporate Accounting,Corporate Accounting,Government departments - Third,20028054,DEPARTMENT FOR COMMUNITIES & LOCAL GOV.," 1,241,674.39 ",01/02/2016
Corporate Accounting,Corporate Accounting,Other Agencies - Third Party P,60046889,THE BARNETGROUP LIMITED," 3,000,000.00 ",23/02/2016
Corporate Accounting,Corporate Accounting,Other Local Authorities - Thir,EBX0099666,GREATER LONDON AUTHORITY," 4,004,237.40 ",01/02/2016
Corporate Accounting,Corporate Accounting,Other Local Authorities - Thir,EBX0101116,GREATER LONDON AUTHORITY," 1,642,337.00 ",11/02/2016
Corporate Accounting,Corporate Accounting,Other Local Authorities - Thir,EBX0102109,GREATER LONDON AUTHORITY," 233,647.00 ",19/02/2016
Corporate Accounting,Corporate Accounting,Other Services,20028232,LONDON WILDLIFE TRUST," 50,912.34 ",11/02/2016
Corporate Accounting,Corporate Accounting,Other Transfer Payments to Soc,60044836,CITIBANK NA LONDON, 173.70 ,01/02/2016
Corporate Accounting,Corporate Accounting,Other Transfer Payments to Soc,60044872,CITIBANK NA LONDON, 473.70 ,01/02/2016
Corporate Accounting,Corporate Accounting,Other Transfer Payments to Soc,60044874,CITIBANK NA LONDON, 287.90 ,01/02/2016
Corporate Accounting,Corporate Accounting,Other Transfer Payments to Soc,60044889,CITIBANK NA LONDON, 676.70 ,01/02/2016
Corporate Accounting,Corporate Accounting,Other Transfer Payments to Soc,60044904,CITIBANK NA LONDON, 549.90 ,01/02/2016
Corporate Accounting,Corporate Accounting,Other Transfer Payments to Soc,60044906,CITIBANK NA LONDON, 459.50 ,01/02/2016
Corporate Accounting,Corporate Accounting,Other Transfer Payments to Soc,60044917,CITIBANK NA LONDON, 345.24 ,01/02/2016
Corporate Accounting,Corporate Accounting,Other Transfer Payments to Soc,60044923,CITIBANK NA LONDON, 157.90 ,01/02/2016
Corporate Accounting,Corporate Accounting,Other Transfer Payments to Soc,60044936,CITIBANK NA LONDON, 396.50 ,01/02/2016
Corporate Accounting,Corporate Accounting,Other Transfer Payments to Soc,60044945,CITIBANK NA LONDON, 30.00 ,01/02/2016
Corporate Accounting,Corporate Accounting,Other Transfer Payments to Soc,60044950,CITIBANK NA LONDON, 313.70 ,01/02/2016
Corporate Accounting,Corporate Accounting,Other Transfer Payments to Soc,60044954,CITIBANK NA LONDON, 50.00 ,01/02/2016
Corporate Accounting,Corporate Accounting,Other Transfer Payments to Soc,60045647,CITIBANK NA LONDON," 3,494.55 ",09/02/2016
Corporate Accounting,Corporate Accounting,Other Transfer Payments to Soc,60045655,CITIBANK NA LONDON, 120.00 ,09/02/2016
Corporate Accounting,Corporate Accounting,Other Transfer Payments to Soc,60045659,CITIBANK NA LONDON, 248.50 ,09/02/2016
Corporate Accounting,Corporate Accounting,Other Transfer Payments to Soc,60045688,CITIBANK NA LONDON, 150.00 ,09/02/2016
Corporate Accounting,Corporate Accounting,Other Transfer Payments to Soc,60045695,CITIBANK NA LONDON, 127.90 ,09/02/2016
Corporate Accounting,Corporate Accounting,Other Transfer Payments to Soc,60045733,CITIBANK NA LONDON," 3,130.01 ",09/02/2016
Corporate Accounting,Corporate Accounting,Other Transfer Payments to Soc,60046036,CITIBANK NA LONDON, 82.50 ,12/02/2016
Corporate Accounting,Corporate Accounting,Other Transfer Payments to Soc,60046051,CITIBANK NA LONDON, 115.80 ,12/02/2016
Corporate Accounting,Corporate Accounting,Other Transfer Payments to Soc,60046052,CITIBANK NA LONDON, 215.79 ,12/02/2016
Corporate Accounting,Corporate Accounting,Other Transfer Payments to Soc,60046058,CITIBANK NA LONDON, 518.20 ,12/02/2016
Corporate Accounting,Corporate Accounting,Other Transfer Payments to Soc,60046087,CITIBANK NA LONDON, 50.00 ,12/02/2016
Corporate Accounting,Corporate Accounting,Other Transfer Payments to Soc,60046131,CITIBANK NA LONDON, 202.20 ,12/02/2016
Corporate Accounting,Corporate Accounting,Other Transfer Payments to Soc,60046147,CITIBANK NA LONDON," 1,047.90 ",12/02/2016
Corporate Accounting,Corporate Accounting,Other Transfer Payments to Soc,60046159,CITIBANK NA LONDON, 547.40 ,12/02/2016
Corporate Accounting,Corporate Accounting,Other Transfer Payments to Soc,80002163,THE SHARE FOUNDATION," 6,269.90 ",16/02/2016
Delivery Units,Adults and Communities,Advertising for staff,60041336,PREMIER PEOPLE SOLUTIONS LTD," 1,200.00 ",17/02/2016
Delivery Units,Adults and Communities,Advertising for staff,60043908,PREMIER PEOPLE SOLUTIONS LTD, 600.00 ,17/02/2016
Delivery Units,Adults and Communities,Advertising for staff,60045343,PREMIER PEOPLE SOLUTIONS LTD," 1,413.75 ",25/02/2016
Delivery Units,Adults and Communities,Capital Construction and Works,10013084,BARNET & SOUTHGATE COLLEGE," 143,786.79 ",19/02/2016
Delivery Units,Adults and Communities,Capital Construction and Works,60045457,BARNET & SOUTHGATE COLLEGE," 128,635.00 ",04/02/2016
Delivery Units,Adults and Communities,Consultants Fees,60045700,VOICEABILITY," 1,380.00 ",09/02/2016
Delivery Units,Adults and Communities,Consultants Fees,60045731,VOICEABILITY," 5,611.00 ",09/02/2016
Delivery Units,Adults and Communities,Consultants Fees,60046006,VOICEABILITY," 2,784.00 ",29/02/2016
Delivery Units,Adults and Communities,Electricity,60044782,KENT COUNTY COUNCIL (KCS), 131.24 ,08/02/2016
Delivery Units,Adults and Communities,Employee Expenses,60046794,BARNET ENFIELD & HARINGEY MENTAL," 51,174.00 ",23/02/2016
Delivery Units,Adults and Communities,Employee Expenses,60042758,CENTRAL LONDONCOMMUNITY HEALTHCARE," 88,097.00 ",17/02/2016
Delivery Units,Adults and Communities,Equipment and Materials Purcha,60042825,BACK CARE SOLUTIONS LIMITED, 176.44 ,04/02/2016
Delivery Units,Adults and Communities,Equipment and Materials Purcha,60046367,MEDEQUIP ASSISTIVE TECHNOLOGY LTD, 491.40 ,17/02/2016
Delivery Units,Adults and Communities,Equipment and Materials Purcha,60046388,MEDEQUIP ASSISTIVE TECHNOLOGY LTD, 453.60 ,17/02/2016
Delivery Units,Adults and Communities,Equipment and Materials Purcha,60046398,MEDEQUIP ASSISTIVE TECHNOLOGY LTD," 1,028.17 ",17/02/2016
Delivery Units,Adults and Communities,Equipment and Materials Purcha,60046405,MEDEQUIP ASSISTIVE TECHNOLOGY LTD," 187,012.24 ",17/02/2016
Delivery Units,Adults and Communities,Equipment and Materials Purcha,60046430,MEDEQUIP ASSISTIVE TECHNOLOGY LTD, 210.00 ,17/02/2016
Delivery Units,Adults and Communities,Equipment and Materials Purcha,60046368,PICKLES CHEMIST, 309.88 ,24/02/2016
Delivery Units,Adults and Communities,Equipment and Materials Purcha,60046128,SABEL CHEMIST, 356.81 ,11/02/2016
Delivery Units,Adults and Communities,Food Costs,60046179,DAIRY CREST LIMITED, 2.88 ,24/02/2016
Delivery Units,Adults and Communities,Gas,60043784,KENT COUNTY COUNCIL (KCS), 225.95 ,01/02/2016
Delivery Units,Adults and Communities,General Office Expenses,60045423,ST ANDREWS MEDICAL PRACTICE, 560.00 ,04/02/2016
Delivery Units,Adults and Communities,Grant Payments,20028402,AMWELL CONSTRUCTION LTD, 912.00 ,19/02/2016
Delivery Units,Adults and Communities,Grant Payments,20028294,SOUTH HERTFORDSHIRE, 550.00 ,16/02/2016
Delivery Units,Adults and Communities,Other Agencies - Third Party P,30109903,AARON COURT CARE HOME," 2,216.41 ",09/02/2016
Delivery Units,Adults and Communities,Other Agencies - Third Party P,30112388,AARON COURT CARE HOME," 2,073.42 ",25/02/2016
Delivery Units,Adults and Communities,Other Agencies - Third Party P,30109408,ABBEY RAVENSCROFT PARK NURSING HOME," 3,100.00 ",03/02/2016
Delivery Units,Adults and Communities,Other Agencies - Third Party P,30109844,ABBEY RAVENSCROFT PARK NURSING HOME," 2,655.55 ",09/02/2016
Delivery Units,Adults and Communities,Other Agencies - Third Party P,30109845,ABBEY RAVENSCROFT PARK NURSING HOME," 2,655.55 ",09/02/2016
Delivery Units,Adults and Communities,Other Agencies - Third Party P,30109848,ABBEY RAVENSCROFT PARK NURSING HOME," 2,657.14 ",09/02/2016
Delivery Units,Adults and Communities,Other Agencies - Third Party P,30109849,ABBEY RAVENSCROFT PARK NURSING HOME," 2,397.72 ",09/02/2016
Delivery Units,Adults and Communities,Other Agencies - Third Party P,30109853,ABBEY RAVENSCROFT PARK NURSING HOME," 2,655.55 ",09/02/2016
Delivery Units,Adults and Communities,Other Agencies - Third Party P,30109854,ABBEY RAVENSCROFT PARK NURSING HOME," 2,655.55 ",09/02/2016
Delivery Units,Adults and Communities,Other Agencies - Third Party P,30109855,ABBEY RAVENSCROFT PARK NURSING HOME," 2,655.55 ",09/02/2016
Delivery Units,Adults and Communities,Other Agencies - Third Party P,30109861,ABBEY RAVENSCROFT PARK NURSING HOME," 2,655.55 ",09/02/2016
Delivery Units,Adults and Communities,Other Agencies - Third Party P,30109863,ABBEY RAVENSCROFT PARK NURSING HOME," 2,655.55 ",09/02/2016
Delivery Units,Adults and Communities,Other Agencies - Third Party P,30109865,ABBEY RAVENSCROFT PARK NURSING HOME," 3,100.00 ",09/02/2016
Delivery Units,Adults and Communities,Other Agencies - Third Party P,30109866,ABBEY RAVENSCROFT PARK NURSING HOME," 3,100.00 ",09/02/2016
Delivery Units,Adults and Communities,Other Agencies - Third Party P,30109867,ABBEY RAVENSCROFT PARK NURSING HOME," 2,448.78 ",09/02/2016
Delivery Units,Adults and Communities,Other Agencies - Third Party P,30109868,ABBEY RAVENSCROFT PARK NURSING HOME," 2,654.88 ",09/02/2016
Delivery Units,Adults and Communities,Other Agencies - Third Party P,30109869,ABBEY RAVENSCROFT PARK NURSING HOME," 2,397.72 ",09/02/2016
Delivery Units,Adults and Communities,Other Agencies - Third Party P,30110798,ABBEY RAVENSCROFT PARK NURSING HOME," 3,100.00 ",17/02/2016
Delivery Units,Adults and Communities,Other Agencies - Third Party P,30110996,ABBEY RAVENSCROFT PARK NURSING HOME," 3,100.00 ",17/02/2016
Delivery Units,Adults and Communities,Other Agencies - Third Party P,30110997,ABBEY RAVENSCROFT PARK NURSING HOME," 2,418.04 ",17/02/2016
Delivery Units,Adults and Communities,Other Agencies - Third Party P,30110998,ABBEY RAVENSCROFT PARK NURSING HOME," 3,100.00 ",17/02/2016
Delivery Units,Adults and Communities,Other Agencies - Third Party P,30110999,ABBEY RAVENSCROFT PARK NURSING HOME," 1,500.00 ",17/02/2016
Delivery Units,Adults and Communities,Other Agencies - Third Party P,30111000,ABBEY RAVENSCROFT PARK NURSING HOME," 3,100.00 ",17/02/2016
Delivery Units,Adults and Communities,Other Agencies - Third Party P,30111001,ABBEY RAVENSCROFT PARK NURSING HOME," 3,100.00 ",17/02/2016
Delivery Units,Adults and Communities,Other Agencies - Third Party P,30112380,ABBEY RAVENSCROFT PARK NURSING HOME," 2,900.00 ",25/02/2016
Delivery Units,Adults and Communities,Other Agencies - Third Party P,30112381,ABBEY RAVENSCROFT PARK NURSING HOME," 2,900.00 ",25/02/2016
Delivery Units,Adults and Communities,Other Agencies - Third Party P,30111160,ABOUT ME CARE & SUPPORT LTD," 1,365.84 ",19/02/2016
Delivery Units,Adults and Communities,Other Agencies - Third Party P,30109150,ACCEDO CARE LTD," 8,960.00 ",02/02/2016
Delivery Units,Adults and Communities,Other Agencies - Third Party P,30109151,ACCEDO CARE LTD," 4,143.04 ",02/02/2016
Delivery Units,Adults and Communities,Other Agencies - Third Party P,30109152,ACCEDO CARE LTD," 5,600.00 ",02/02/2016
Delivery Units,Adults and Communities,Other Agencies - Third Party P,30109153,ACCEDO CARE LTD, 525.00 ,02/02/2016
Delivery Units,Adults and Communities,Other Agencies - Third Party P,30113050,ACCEDO CARE LTD," 3,739.23 ",26/02/2016
Delivery Units,Adults and Communities,Other Agencies - Third Party P,30111981,ADDICTION RECOVERY CENTRE," 2,402.86 ",22/02/2016
Delivery Units,Adults and Communities,Other Agencies - Third Party P,30110734,AGUDAS ISRAEL HOUSING ASSCTN LTD," 3,154.25 ",17/02/2016
Delivery Units,Adults and Communities,Other Agencies - Third Party P,30110735,AGUDAS ISRAEL HOUSING ASSCTN LTD," 2,527.83 ",17/02/2016
Delivery Units,Adults and Communities,Other Agencies - Third Party P,30109154,ALDWYCK HOUSING GROUP," 3,845.83 ",02/02/2016
Delivery Units,Adults and Communities,Other Agencies - Third Party P,30109156,ALDWYCK HOUSING GROUP," 2,249.45 ",02/02/2016
Delivery Units,Adults and Communities,Other Agencies - Third Party P,30109157,ALDWYCK HOUSING GROUP," 2,249.45 ",02/02/2016
Delivery Units,Adults and Communities,Other Agencies - Third Party P,30109732,ALDWYCK HOUSING GROUP," 2,249.45 ",09/02/2016
Delivery Units,Adults and Communities,Other Agencies - Third Party P,30109998,ALLIED HEALTHCARE LTD," 5,076.72 ",09/02/2016
Delivery Units,Adults and Communities,Other Agencies - Third Party P,30109999,ALLIED HEALTHCARE LTD," 3,362.64 ",09/02/2016
Delivery Units,Adults and Communities,Other Agencies - Third Party P,30111224,ALLIED HEALTHCARE LTD, 156.86 ,19/02/2016
Delivery Units,Adults and Communities,Other Agencies - Third Party P,30111226,ALLIED HEALTHCARE LTD, 156.86 ,19/02/2016
Delivery Units,Adults and Communities,Other Agencies - Third Party P,30111228,ALLIED HEALTHCARE LTD, 61.38 ,19/02/2016
Delivery Units,Adults and Communities,Other Agencies - Third Party P,30111232,ALLIED HEALTHCARE LTD, 88.66 ,19/02/2016
Delivery Units,Adults and Communities,Other Agencies - Third Party P,30111234,ALLIED HEALTHCARE LTD, 242.08 ,19/02/2016
Delivery Units,Adults and Communities,Other Agencies - Third Party P,30111236,ALLIED HEALTHCARE LTD, 228.47 ,19/02/2016
Delivery Units,Adults and Communities,Other Agencies - Third Party P,30111237,ALLIED HEALTHCARE LTD, 122.76 ,19/02/2016
Delivery Units,Adults and Communities,Other Agencies - Third Party P,30112067,ALLIED HEALTHCARE LTD, 53.71 ,24/02/2016
Delivery Units,Adults and Communities,Other Agencies - Third Party P,30112070,ALLIED HEALTHCARE LTD, 156.66 ,24/02/2016
Delivery Units,Adults and Communities,Other Agencies - Third Party P,30112073,ALLIED HEALTHCARE LTD, 156.66 ,24/02/2016
Delivery Units,Adults and Communities,Other Agencies - Third Party P,30112076,ALLIED HEALTHCARE LTD, 134.28 ,24/02/2016
Delivery Units,Adults and Communities,Other Agencies - Third Party P,30112079,ALLIED HEALTHCARE LTD, 67.14 ,24/02/2016
Delivery Units,Adults and Communities,Other Agencies - Third Party P,30112080,ALLIED HEALTHCARE LTD, 125.33 ,24/02/2016
Delivery Units,Adults and Communities,Other Agencies - Third Party P,30113117,ALLIED HEALTHCARE LTD, 136.40 ,29/02/2016
Delivery Units,Adults and Communities,Other Agencies - Third Party P,30113118,ALLIED HEALTHCARE LTD," 1,033.23 ",29/02/2016
Delivery Units,Adults and Communities,Other Agencies - Third Party P,30113119,ALLIED HEALTHCARE LTD, 13.64 ,29/02/2016
Delivery Units,Adults and Communities,Other Agencies - Third Party P,30113120,ALLIED HEALTHCARE LTD, 695.64 ,29/02/2016
Delivery Units,Adults and Communities,Other Agencies - Third Party P,30113121,ALLIED HEALTHCARE LTD, 81.84 ,29/02/2016
Delivery Units,Adults and Communities,Other Agencies - Third Party P,30113122,ALLIED HEALTHCARE LTD, 6.82 ,29/02/2016
Delivery Units,Adults and Communities,Other Agencies - Third Party P,30113123,ALLIED HEALTHCARE LTD, 20.46 ,29/02/2016
Delivery Units,Adults and Communities,Other Agencies - Third Party P,30113124,ALLIED HEALTHCARE LTD," 3,197.80 ",29/02/2016
Delivery Units,Adults and Communities,Other Agencies - Third Party P,20028385,AMWELL CONSTRUCTION LTD, 460.80 ,16/02/2016
Delivery Units,Adults and Communities,Other Agencies - Third Party P,30110970,ANASTASIA LODGE," 3,000.00 ",17/02/2016
Delivery Units,Adults and Communities,Other Agencies - Third Party P,20028436,APPLE TREE COURT CARE HOME," 2,657.14 ",19/02/2016
Delivery Units,Adults and Communities,Other Agencies - Third Party P,20028437,APPLE TREE COURT CARE HOME," 3,100.00 ",19/02/2016
Delivery Units,Adults and Communities,Other Agencies - Third Party P,20028438,APPLE TREE COURT CARE HOME," 2,570.70 ",19/02/2016
Delivery Units,Adults and Communities,Other Agencies - Third Party P,20028439,APPLE TREE COURT CARE HOME," 3,542.86 ",19/02/2016
Delivery Units,Adults and Communities,Other Agencies - Third Party P,20028440,APPLE TREE COURT CARE HOME," 2,397.72 ",19/02/2016
Delivery Units,Adults and Communities,Other Agencies - Third Party P,20028441,APPLE TREE COURT CARE HOME," 2,397.72 ",19/02/2016
Delivery Units,Adults and Communities,Other Agencies - Third Party P,20028442,APPLE TREE COURT CARE HOME," 2,570.70 ",19/02/2016
Delivery Units,Adults and Communities,Other Agencies - Third Party P,20028461,APPLE TREE COURT CARE HOME," 2,655.55 ",19/02/2016
Delivery Units,Adults and Communities,Other Agencies - Third Party P,20028462,APPLE TREE COURT CARE HOME," 2,570.70 ",19/02/2016
Delivery Units,Adults and Communities,Other Agencies - Third Party P,20028463,APPLE TREE COURT CARE HOME," 2,570.70 ",19/02/2016
Delivery Units,Adults and Communities,Other Agencies - Third Party P,20028465,APPLE TREE COURT CARE HOME," 2,570.70 ",19/02/2016
Delivery Units,Adults and Communities,Other Agencies - Third Party P,20028466,APPLE TREE COURT CARE HOME," 2,318.93 ",19/02/2016
Delivery Units,Adults and Communities,Other Agencies - Third Party P,20028435,ASHFIELDS RESIDENTIAL CARE HOME, 868.92 ,19/02/2016
Delivery Units,Adults and Communities,Other Agencies - Third Party P,30109527,ASHFIELDS RESIDENTIAL CARE HOME," 2,657.14 ",04/02/2016
Delivery Units,Adults and Communities,Other Agencies - Third Party P,30109529,ASHFIELDS RESIDENTIAL CARE HOME," 2,216.41 ",04/02/2016
Delivery Units,Adults and Communities,Other Agencies - Third Party P,30109530,ASHFIELDS RESIDENTIAL CARE HOME," 2,418.04 ",04/02/2016
Delivery Units,Adults and Communities,Other Agencies - Third Party P,30109531,ASHFIELDS RESIDENTIAL CARE HOME," 2,418.04 ",04/02/2016
Delivery Units,Adults and Communities,Other Agencies - Third Party P,30109890,ASHFIELDS RESIDENTIAL CARE HOME," 2,290.79 ",25/02/2016
Delivery Units,Adults and Communities,Other Agencies - Third Party P,30109891,ASHFIELDS RESIDENTIAL CARE HOME," 2,290.79 ",25/02/2016
Delivery Units,Adults and Communities,Other Agencies - Third Party P,30109901,ASHTON LODGE CARE CENTRE," 2,655.55 ",10/02/2016
Delivery Units,Adults and Communities,Other Agencies - Third Party P,30109902,ASHTON LODGE CARE CENTRE," 2,655.55 ",11/02/2016
Delivery Units,Adults and Communities,Other Agencies - Third Party P,30109904,ASHTON LODGE CARE CENTRE," 2,655.55 ",10/02/2016
Delivery Units,Adults and Communities,Other Agencies - Third Party P,30109905,ASHTON LODGE CARE CENTRE," 2,655.55 ",11/02/2016
Delivery Units,Adults and Communities,Other Agencies - Third Party P,30109907,ASHTON LODGE CARE CENTRE," 2,655.55 ",10/02/2016
Delivery Units,Adults and Communities,Other Agencies - Third Party P,30109908,ASHTON LODGE CARE CENTRE," 2,655.55 ",11/02/2016
Delivery Units,Adults and Communities,Other Agencies - Third Party P,30109910,ASHTON LODGE CARE CENTRE," 2,448.78 ",10/02/2016
Delivery Units,Adults and Communities,Other Agencies - Third Party P,30109911,ASHTON LODGE CARE CENTRE," 2,448.78 ",11/02/2016
Delivery Units,Adults and Communities,Other Agencies - Third Party P,30109938,ASHTON LODGE CARE CENTRE," 2,249.45 ",10/02/2016
Delivery Units,Adults and Communities,Other Agencies - Third Party P,30109952,ASHTON LODGE CARE CENTRE," 2,397.72 ",10/02/2016
Delivery Units,Adults and Communities,Other Agencies - Third Party P,30109954,ASHTON LODGE CARE CENTRE," 2,657.14 ",10/02/2016
Delivery Units,Adults and Communities,Other Agencies - Third Party P,30109974,ASHTON LODGE CARE CENTRE," 2,448.78 ",10/02/2016
Delivery Units,Adults and Communities,Other Agencies - Third Party P,30109979,ASHTON LODGE CARE CENTRE," 2,502.14 ",10/02/2016
Delivery Units,Adults and Communities,Other Agencies - Third Party P,30109980,ASHTON LODGE CARE CENTRE," 2,502.14 ",11/02/2016
Delivery Units,Adults and Communities,Other Agencies - Third Party P,30109983,ASHTON LODGE CARE CENTRE," 2,655.55 ",10/02/2016
Delivery Units,Adults and Communities,Other Agencies - Third Party P,30109984,ASHTON LODGE CARE CENTRE," 2,655.55 ",11/02/2016
Delivery Units,Adults and Communities,Other Agencies - Third Party P,30110042,ASHTON LODGE CARE CENTRE," 2,448.78 ",10/02/2016
Delivery Units,Adults and Communities,Other Agencies - Third Party P,30110052,ASHTON LODGE CARE CENTRE," 2,397.72 ",10/02/2016
Delivery Units,Adults and Communities,Other Agencies - Third Party P,30110057,ASHTON LODGE CARE CENTRE," 2,655.55 ",10/02/2016
Delivery Units,Adults and Communities,Other Agencies - Third Party P,30110464,ASHTON LODGE CARE CENTRE," 2,657.14 ",12/02/2016
Delivery Units,Adults and Communities,Other Agencies - Third Party P,30110465,ASHTON LODGE CARE CENTRE," 2,571.43 ",12/02/2016
Delivery Units,Adults and Communities,Other Agencies - Third Party P,30109245,ASPEN VILLAGES LTD, 523.63 ,02/02/2016
Delivery Units,Adults and Communities,Other Agencies - Third Party P,30109246,ASPEN VILLAGES LTD, 950.00 ,02/02/2016
Delivery Units,Adults and Communities,Other Agencies - Third Party P,30109247,ASPEN VILLAGES LTD," 1,085.71 ",02/02/2016
Delivery Units,Adults and Communities,Other Agencies - Third Party P,30109248,ASPEN VILLAGES LTD," 4,207.14 ",02/02/2016
Delivery Units,Adults and Communities,Other Agencies - Third Party P,30109249,ASPEN VILLAGES LTD,"-3,871.57 ",02/02/2016
Delivery Units,Adults and Communities,Other Agencies - Third Party P,30109920,ASPEN VILLAGES LTD," 2,216.41 ",09/02/2016
Delivery Units,Adults and Communities,Other Agencies - Third Party P,30109921,ASPEN VILLAGES LTD," 4,871.43 ",09/02/2016
Delivery Units,Adults and Communities,Other Agencies - Third Party P,30109922,ASPEN VILLAGES LTD," 3,321.43 ",09/02/2016
Delivery Units,Adults and Communities,Other Agencies - Third Party P,30109924,ASPEN VILLAGES LTD," 3,542.86 ",09/02/2016
Delivery Units,Adults and Communities,Other Agencies - Third Party P,30109925,ASPEN VILLAGES LTD," 5,978.57 ",09/02/2016
Delivery Units,Adults and Communities,Other Agencies - Third Party P,30109926,ASPEN VILLAGES LTD," 4,871.43 ",09/02/2016
Delivery Units,Adults and Communities,Other Agencies - Third Party P,30109927,ASPEN VILLAGES LTD," 3,764.29 ",09/02/2016
Delivery Units,Adults and Communities,Other Agencies - Third Party P,30109928,ASPEN VILLAGES LTD,-950.00 ,09/02/2016
Delivery Units,Adults and Communities,Other Agencies - Third Party P,30109097,AUTUMN GARDENS, 280.00 ,02/02/2016
Delivery Units,Adults and Communities,Other Agencies - Third Party P,30109098,AUTUMN GARDENS, 210.00 ,02/02/2016
Delivery Units,Adults and Communities,Other Agencies - Third Party P,30109099,AUTUMN GARDENS, 210.00 ,02/02/2016
Delivery Units,Adults and Communities,Other Agencies - Third Party P,30109100,AUTUMN GARDENS, 140.00 ,02/02/2016
Delivery Units,Adults and Communities,Other Agencies - Third Party P,30109101,AUTUMN GARDENS, 140.00 ,02/02/2016
Delivery Units,Adults and Communities,Other Agencies - Third Party P,30109347,AUTUMN GARDENS, 210.00 ,03/02/2016
Delivery Units,Adults and Communities,Other Agencies - Third Party P,30110367,AUTUMN GARDENS," 2,800.00 ",12/02/2016
Delivery Units,Adults and Communities,Other Agencies - Third Party P,30110368,AUTUMN GARDENS," 4,070.00 ",12/02/2016
Delivery Units,Adults and Communities,Other Agencies - Third Party P,30110369,AUTUMN GARDENS," 4,175.71 ",12/02/2016
Delivery Units,Adults and Communities,Other Agencies - Third Party P,30110989,AUTUMN GARDENS," 2,184.04 ",17/02/2016
Delivery Units,Adults and Communities,Other Agencies - Third Party P,30110990,AUTUMN GARDENS," 2,800.00 ",17/02/2016
Delivery Units,Adults and Communities,Other Agencies - Third Party P,30110991,AUTUMN GARDENS," 2,880.00 ",17/02/2016
Delivery Units,Adults and Communities,Other Agencies - Third Party P,30110992,AUTUMN GARDENS," 3,080.00 ",17/02/2016
Delivery Units,Adults and Communities,Other Agencies - Third Party P,30109931,B & M CARE," 2,249.45 ",09/02/2016
Delivery Units,Adults and Communities,Other Agencies - Third Party P,30109933,B & M CARE," 2,448.78 ",09/02/2016
Delivery Units,Adults and Communities,Other Agencies - Third Party P,30109934,B & M CARE," 3,082.29 ",09/02/2016
Delivery Units,Adults and Communities,Other Agencies - Third Party P,30109935,B & M CARE," 2,448.78 ",09/02/2016
Delivery Units,Adults and Communities,Other Agencies - Third Party P,30109936,B & M CARE," 2,448.78 ",09/02/2016
Delivery Units,Adults and Communities,Other Agencies - Third Party P,30111328,BARNET HOMES LIMITED," 1,097.61 ",22/02/2016
Delivery Units,Adults and Communities,Other Agencies - Third Party P,30109361,BARNET MENCAP, 658.00 ,03/02/2016
Delivery Units,Adults and Communities,Other Agencies - Third Party P,30109362,BARNET MENCAP, 658.00 ,03/02/2016
Delivery Units,Adults and Communities,Other Agencies - Third Party P,30109363,BARNET MENCAP, 658.00 ,03/02/2016
Delivery Units,Adults and Communities,Other Agencies - Third Party P,30109364,BARNET MENCAP, 658.00 ,03/02/2016
Delivery Units,Adults and Communities,Other Agencies - Third Party P,30109365,BARNET MENCAP, 658.00 ,03/02/2016
Delivery Units,Adults and Communities,Other Agencies - Third Party P,30109366,BARNET MENCAP, 329.00 ,03/02/2016
Delivery Units,Adults and Communities,Other Agencies - Third Party P,30109521,BAYTREE COMMUNITY CARE (LONDON) LTD," 1,280.00 ",04/02/2016
Delivery Units,Adults and Communities,Other Agencies - Third Party P,30109812,BAYTREE COMMUNITY CARE (LONDON) LTD," 3,538.37 ",09/02/2016
Delivery Units,Adults and Communities,Other Agencies - Third Party P,30109806,BENSLOW MANAGEMENT COMPANY LIMITED," 2,418.04 ",09/02/2016
Delivery Units,Adults and Communities,Other Agencies - Third Party P,30110978,BENSLOW MANAGEMENT COMPANY LIMITED," 2,418.04 ",17/02/2016
Delivery Units,Adults and Communities,Other Agencies - Third Party P,30109414,BIRCHWOOD GRANGE CARE HOME,"-2,653.63 ",25/02/2016
Delivery Units,Adults and Communities,Other Agencies - Third Party P,30109882,BIRCHWOOD GRANGE CARE HOME," 2,657.14 ",25/02/2016
Delivery Units,Adults and Communities,Other Agencies - Third Party P,30109883,BIRCHWOOD GRANGE CARE HOME," 2,570.70 ",25/02/2016
Delivery Units,Adults and Communities,Other Agencies - Third Party P,30112384,BIRCHWOOD GRANGE CARE HOME," 2,485.71 ",25/02/2016
Delivery Units,Adults and Communities,Other Agencies - Third Party P,30113023,BLUEBIRD CARE (BARNET)," 2,100.40 ",26/02/2016
Delivery Units,Adults and Communities,Other Agencies - Third Party P,20028144,BROOKDALE HEALTHCARE," 9,350.47 ",05/02/2016
Delivery Units,Adults and Communities,Other Agencies - Third Party P,30109718,BROOKDALE HEALTHCARE," 9,300.00 ",09/02/2016
Delivery Units,Adults and Communities,Other Agencies - Third Party P,30109719,BROOKDALE HEALTHCARE," 9,995.33 ",09/02/2016
Delivery Units,Adults and Communities,Other Agencies - Third Party P,30109721,BROOKDALE HEALTHCARE," 9,814.29 ",09/02/2016
Delivery Units,Adults and Communities,Other Agencies - Third Party P,30110858,BROOKDALE HEALTHCARE," 3,759.36 ",17/02/2016
Delivery Units,Adults and Communities,Other Agencies - Third Party P,30113087,BROOKDALE HEALTHCARE," 3,759.36 ",29/02/2016
Delivery Units,Adults and Communities,Other Agencies - Third Party P,30110699,BRUNSWICK SUPPORTED LIVING SERVICES," 1,412.68 ",18/02/2016
Delivery Units,Adults and Communities,Other Agencies - Third Party P,30110700,BRUNSWICK SUPPORTED LIVING SERVICES," 1,942.84 ",18/02/2016
Delivery Units,Adults and Communities,Other Agencies - Third Party P,30110704,BRUNSWICK SUPPORTED LIVING SERVICES," 2,153.92 ",18/02/2016
Delivery Units,Adults and Communities,Other Agencies - Third Party P,80002277,BUCKINGHAMSHIRE COUNTY COUNCIL," 219,542.10 ",24/02/2016
Delivery Units,Adults and Communities,Other Agencies - Third Party P,20028015,BUPA CARE HOMES," 2,370.00 ",01/02/2016
Delivery Units,Adults and Communities,Other Agencies - Third Party P,20028153,BUPA CARE HOMES," 3,498.57 ",05/02/2016
Delivery Units,Adults and Communities,Other Agencies - Third Party P,30109944,BUPA CARE HOMES," 2,216.41 ",09/02/2016
Delivery Units,Adults and Communities,Other Agencies - Third Party P,30109945,BUPA CARE HOMES," 2,612.86 ",09/02/2016
Delivery Units,Adults and Communities,Other Agencies - Third Party P,30109947,BUPA CARE HOMES," 7,750.00 ",09/02/2016
Delivery Units,Adults and Communities,Other Agencies - Third Party P,30109948,BUPA CARE HOMES," 3,258.81 ",09/02/2016
Delivery Units,Adults and Communities,Other Agencies - Third Party P,30109949,BUPA CARE HOMES," 3,321.43 ",09/02/2016
Delivery Units,Adults and Communities,Other Agencies - Third Party P,30109950,BUPA CARE HOMES," 2,418.04 ",09/02/2016
Delivery Units,Adults and Communities,Other Agencies - Third Party P,30110044,BUPA CARE HOMES," 2,314.02 ",09/02/2016
Delivery Units,Adults and Communities,Other Agencies - Third Party P,30110045,BUPA CARE HOMES," 2,314.02 ",09/02/2016
Delivery Units,Adults and Communities,Other Agencies - Third Party P,30110046,BUPA CARE HOMES," 2,570.70 ",09/02/2016
Delivery Units,Adults and Communities,Other Agencies - Third Party P,30110059,BUPA CARE HOMES," 4,842.64 ",09/02/2016
Delivery Units,Adults and Communities,Other Agencies - Third Party P,30110462,BUPA CARE HOMES," 2,570.70 ",12/02/2016
Delivery Units,Adults and Communities,Other Agencies - Third Party P,30110463,BUPA CARE HOMES," 2,397.72 ",12/02/2016
Delivery Units,Adults and Communities,Other Agencies - Third Party P,30110500,BUPA CARE HOMES," 2,570.70 ",12/02/2016
Delivery Units,Adults and Communities,Other Agencies - Third Party P,30110501,BUPA CARE HOMES," 2,407.86 ",12/02/2016
Delivery Units,Adults and Communities,Other Agencies - Third Party P,30110814,BUPA CARE HOMES," 2,244.13 ",17/02/2016
Delivery Units,Adults and Communities,Other Agencies - Third Party P,30110855,BUPA CARE HOMES," 2,164.73 ",16/02/2016
Delivery Units,Adults and Communities,Other Agencies - Third Party P,30110856,BUPA CARE HOMES," 2,164.73 ",16/02/2016
Delivery Units,Adults and Communities,Other Agencies - Third Party P,30110857,BUPA CARE HOMES," 2,404.85 ",16/02/2016
Delivery Units,Adults and Communities,Other Agencies - Third Party P,30111062,BUPA CARE HOMES," 2,318.93 ",17/02/2016
Delivery Units,Adults and Communities,Other Agencies - Third Party P,30111063,BUPA CARE HOMES," 2,318.93 ",17/02/2016
Delivery Units,Adults and Communities,Other Agencies - Third Party P,30111064,BUPA CARE HOMES," 2,878.57 ",17/02/2016
Delivery Units,Adults and Communities,Other Agencies - Third Party P,30111065,BUPA CARE HOMES," 4,428.57 ",17/02/2016
Delivery Units,Adults and Communities,Other Agencies - Third Party P,30111124,BUPA CARE HOMES, 224.41 ,17/02/2016
Delivery Units,Adults and Communities,Other Agencies - Third Party P,30111275,BUPA CARE HOMES," 2,318.93 ",19/02/2016
Delivery Units,Adults and Communities,Other Agencies - Third Party P,30111276,BUPA CARE HOMES," 2,924.05 ",19/02/2016
Delivery Units,Adults and Communities,Other Agencies - Third Party P,30111277,BUPA CARE HOMES," 2,302.06 ",19/02/2016
Delivery Units,Adults and Communities,Other Agencies - Third Party P,30111278,BUPA CARE HOMES," 2,318.93 ",19/02/2016
Delivery Units,Adults and Communities,Other Agencies - Third Party P,30111300,BUPA CARE HOMES," 4,530.21 ",19/02/2016
Delivery Units,Adults and Communities,Other Agencies - Third Party P,30112393,BUPA CARE HOMES," 7,250.00 ",25/02/2016
Delivery Units,Adults and Communities,Other Agencies - Third Party P,30112394,BUPA CARE HOMES," 3,048.56 ",25/02/2016
Delivery Units,Adults and Communities,Other Agencies - Third Party P,30112395,BUPA CARE HOMES," 3,107.14 ",25/02/2016
Delivery Units,Adults and Communities,Other Agencies - Third Party P,30112396,BUPA CARE HOMES," 3,107.14 ",25/02/2016
Delivery Units,Adults and Communities,Other Agencies - Third Party P,30109873,BUPA NURSING HOMES LTD - ARKLEY," 2,657.14 ",09/02/2016
Delivery Units,Adults and Communities,Other Agencies - Third Party P,30109875,BUPA NURSING HOMES LTD - ARKLEY," 2,571.43 ",09/02/2016
Delivery Units,Adults and Communities,Other Agencies - Third Party P,30109876,BUPA NURSING HOMES LTD - ARKLEY," 2,657.14 ",09/02/2016
Delivery Units,Adults and Communities,Other Agencies - Third Party P,30109877,BUPA NURSING HOMES LTD - ARKLEY," 2,570.70 ",09/02/2016
Delivery Units,Adults and Communities,Other Agencies - Third Party P,30109878,BUPA NURSING HOMES LTD - ARKLEY," 2,657.14 ",09/02/2016
Delivery Units,Adults and Communities,Other Agencies - Third Party P,30110799,BUPA NURSING HOMES LTD - ARKLEY," 1,604.52 ",17/02/2016
Delivery Units,Adults and Communities,Other Agencies - Third Party P,30110800,BUPA NURSING HOMES LTD - ARKLEY," 2,094.52 ",17/02/2016
Delivery Units,Adults and Communities,Other Agencies - Third Party P,30110801,BUPA NURSING HOMES LTD - ARKLEY," 2,094.52 ",17/02/2016
Delivery Units,Adults and Communities,Other Agencies - Third Party P,30110802,BUPA NURSING HOMES LTD - ARKLEY," 2,094.52 ",17/02/2016
Delivery Units,Adults and Communities,Other Agencies - Third Party P,30110803,BUPA NURSING HOMES LTD - ARKLEY," 1,553.92 ",17/02/2016
Delivery Units,Adults and Communities,Other Agencies - Third Party P,30110804,BUPA NURSING HOMES LTD - ARKLEY," 2,094.52 ",17/02/2016
Delivery Units,Adults and Communities,Other Agencies - Third Party P,30110805,BUPA NURSING HOMES LTD - ARKLEY," 1,778.95 ",17/02/2016
Delivery Units,Adults and Communities,Other Agencies - Third Party P,30111008,BUPA NURSING HOMES LTD - ARKLEY," 3,356.44 ",17/02/2016
Delivery Units,Adults and Communities,Other Agencies - Third Party P,30111009,BUPA NURSING HOMES LTD - ARKLEY," 1,604.52 ",17/02/2016
Delivery Units,Adults and Communities,Other Agencies - Third Party P,30111010,BUPA NURSING HOMES LTD - ARKLEY," 2,094.52 ",17/02/2016
Delivery Units,Adults and Communities,Other Agencies - Third Party P,30111011,BUPA NURSING HOMES LTD - ARKLEY," 2,094.52 ",17/02/2016
Delivery Units,Adults and Communities,Other Agencies - Third Party P,30111012,BUPA NURSING HOMES LTD - ARKLEY," 2,094.52 ",17/02/2016
Delivery Units,Adults and Communities,Other Agencies - Third Party P,30111013,BUPA NURSING HOMES LTD - ARKLEY," 2,001.92 ",17/02/2016
Delivery Units,Adults and Communities,Other Agencies - Third Party P,30111014,BUPA NURSING HOMES LTD - ARKLEY," 2,001.92 ",17/02/2016
Delivery Units,Adults and Communities,Other Agencies - Third Party P,30111015,BUPA NURSING HOMES LTD - ARKLEY," 2,094.52 ",17/02/2016
Delivery Units,Adults and Communities,Other Agencies - Third Party P,30111016,BUPA NURSING HOMES LTD - ARKLEY," 1,917.97 ",17/02/2016
Delivery Units,Adults and Communities,Other Agencies - Third Party P,30111272,BUPA NURSING HOMES LTD - ARKLEY," 1,184.89 ",19/02/2016
Delivery Units,Adults and Communities,Other Agencies - Third Party P,30109965,CAMBIAN BEECHES," 13,164.46 ",09/02/2016
Delivery Units,Adults and Communities,Other Agencies - Third Party P,30109799,CAMPHILL DEVON COMMUNITY LIMITED," 4,508.00 ",09/02/2016
Delivery Units,Adults and Communities,Other Agencies - Third Party P,30109777,CANDLE COURT NURSING HOME," 4,375.43 ",09/02/2016
Delivery Units,Adults and Communities,Other Agencies - Third Party P,30109778,CANDLE COURT NURSING HOME," 2,655.55 ",09/02/2016
Delivery Units,Adults and Communities,Other Agencies - Third Party P,30109779,CANDLE COURT NURSING HOME," 2,655.55 ",09/02/2016
Delivery Units,Adults and Communities,Other Agencies - Third Party P,30109780,CANDLE COURT NURSING HOME," 3,764.29 ",09/02/2016
Delivery Units,Adults and Communities,Other Agencies - Third Party P,30109781,CANDLE COURT NURSING HOME," 2,655.55 ",09/02/2016
Delivery Units,Adults and Communities,Other Agencies - Third Party P,30109940,CARE ASSIST LIMITED," 4,207.14 ",09/02/2016
Delivery Units,Adults and Communities,Other Agencies - Third Party P,30109941,CARE ASSIST LIMITED," 4,207.14 ",09/02/2016
Delivery Units,Adults and Communities,Other Agencies - Third Party P,30109918,CARE UK COMMUNITY PARTNERSHIPS," 2,867.46 ",09/02/2016
Delivery Units,Adults and Communities,Other Agencies - Third Party P,30109495,CARE WORLDWIDE (LONDON) LTD," 2,680.88 ",04/02/2016
Delivery Units,Adults and Communities,Other Agencies - Third Party P,30109496,CARE WORLDWIDE (LONDON) LTD," 3,936.46 ",04/02/2016
Delivery Units,Adults and Communities,Other Agencies - Third Party P,30109497,CARE WORLDWIDE (LONDON) LTD," 4,246.53 ",04/02/2016
Delivery Units,Adults and Communities,Other Agencies - Third Party P,30109498,CARE WORLDWIDE (LONDON) LTD," 2,685.98 ",04/02/2016
Delivery Units,Adults and Communities,Other Agencies - Third Party P,30109499,CARE WORLDWIDE (LONDON) LTD," 2,794.44 ",04/02/2016
Delivery Units,Adults and Communities,Other Agencies - Third Party P,30109500,CARE WORLDWIDE (LONDON) LTD," 4,400.13 ",04/02/2016
Delivery Units,Adults and Communities,Other Agencies - Third Party P,30111150,CARE WORLDWIDE (LONDON) LTD," 5,040.20 ",19/02/2016
Delivery Units,Adults and Communities,Other Agencies - Third Party P,30109395,CAREBASE BURNT OAK 2006 LIMITED," 2,655.55 ",04/02/2016
Delivery Units,Adults and Communities,Other Agencies - Third Party P,30110013,CARETECH COMMUNITY SERVICES LTD," 1,088.14 ",09/02/2016
Delivery Units,Adults and Communities,Other Agencies - Third Party P,30110018,CARETECH COMMUNITY SERVICES LTD," 1,088.14 ",09/02/2016
Delivery Units,Adults and Communities,Other Agencies - Third Party P,30110022,CARETECH COMMUNITY SERVICES LTD," 1,088.14 ",09/02/2016
Delivery Units,Adults and Communities,Other Agencies - Third Party P,30110023,CARETECH COMMUNITY SERVICES LTD," 4,627.86 ",09/02/2016
Delivery Units,Adults and Communities,Other Agencies - Third Party P,30110024,CARETECH COMMUNITY SERVICES LTD," 4,782.86 ",09/02/2016
Delivery Units,Adults and Communities,Other Agencies - Third Party P,30110026,CARETECH COMMUNITY SERVICES LTD," 1,527.86 ",09/02/2016
Delivery Units,Adults and Communities,Other Agencies - Third Party P,30110298,CARETECH COMMUNITY SERVICES LTD," 4,627.86 ",11/02/2016
Delivery Units,Adults and Communities,Other Agencies - Third Party P,30110300,CARETECH COMMUNITY SERVICES LTD, 816.14 ,11/02/2016
Delivery Units,Adults and Communities,Other Agencies - Third Party P,30110301,CARETECH COMMUNITY SERVICES LTD," 4,646.55 ",11/02/2016
Delivery Units,Adults and Communities,Other Agencies - Third Party P,30110303,CARETECH COMMUNITY SERVICES LTD, 722.61 ,11/02/2016
Delivery Units,Adults and Communities,Other Agencies - Third Party P,30110304,CARETECH COMMUNITY SERVICES LTD," 7,621.57 ",11/02/2016
Delivery Units,Adults and Communities,Other Agencies - Third Party P,30110305,CARETECH COMMUNITY SERVICES LTD," 4,628.03 ",11/02/2016
Delivery Units,Adults and Communities,Other Agencies - Third Party P,30110307,CARETECH COMMUNITY SERVICES LTD," 4,627.86 ",11/02/2016
Delivery Units,Adults and Communities,Other Agencies - Third Party P,30110309,CARETECH COMMUNITY SERVICES LTD," 4,627.86 ",11/02/2016
Delivery Units,Adults and Communities,Other Agencies - Third Party P,30110312,CARETECH COMMUNITY SERVICES LTD," 2,149.94 ",11/02/2016
Delivery Units,Adults and Communities,Other Agencies - Third Party P,30110314,CARETECH COMMUNITY SERVICES LTD," 2,589.74 ",11/02/2016
Delivery Units,Adults and Communities,Other Agencies - Third Party P,30110495,CARETECH COMMUNITY SERVICES LTD, 475.27 ,12/02/2016
Delivery Units,Adults and Communities,Other Agencies - Third Party P,30110496,CARETECH COMMUNITY SERVICES LTD, 919.15 ,12/02/2016
Delivery Units,Adults and Communities,Other Agencies - Third Party P,30110497,CARETECH COMMUNITY SERVICES LTD, 919.15 ,12/02/2016
Delivery Units,Adults and Communities,Other Agencies - Third Party P,30109158,CARLTON COURT (TLC GROUP)," 1,451.37 ",02/02/2016
Delivery Units,Adults and Communities,Other Agencies - Third Party P,30109159,CARLTON COURT (TLC GROUP)," 1,124.81 ",02/02/2016
Delivery Units,Adults and Communities,Other Agencies - Third Party P,30109160,CARLTON COURT (TLC GROUP)," 3,428.57 ",02/02/2016
Delivery Units,Adults and Communities,Other Agencies - Third Party P,30109749,CARLTON COURT (TLC GROUP), 464.07 ,09/02/2016
Delivery Units,Adults and Communities,Other Agencies - Third Party P,30109750,CARLTON COURT (TLC GROUP)," 3,764.29 ",09/02/2016
Delivery Units,Adults and Communities,Other Agencies - Third Party P,30109751,CARLTON COURT (TLC GROUP)," 2,448.78 ",09/02/2016
Delivery Units,Adults and Communities,Other Agencies - Third Party P,30109752,CARLTON COURT (TLC GROUP)," 2,448.78 ",09/02/2016
Delivery Units,Adults and Communities,Other Agencies - Third Party P,30109753,CARLTON COURT (TLC GROUP)," 2,249.45 ",09/02/2016
Delivery Units,Adults and Communities,Other Agencies - Third Party P,30109754,CARLTON COURT (TLC GROUP)," 2,249.45 ",09/02/2016
Delivery Units,Adults and Communities,Other Agencies - Third Party P,30109755,CARLTON COURT (TLC GROUP)," 2,655.55 ",09/02/2016
Delivery Units,Adults and Communities,Other Agencies - Third Party P,30109756,CARLTON COURT (TLC GROUP)," 2,655.55 ",09/02/2016
Delivery Units,Adults and Communities,Other Agencies - Third Party P,30109758,CARLTON COURT (TLC GROUP)," 2,655.55 ",09/02/2016
Delivery Units,Adults and Communities,Other Agencies - Third Party P,30109759,CARLTON COURT (TLC GROUP)," 2,655.55 ",09/02/2016
Delivery Units,Adults and Communities,Other Agencies - Third Party P,30109760,CARLTON COURT (TLC GROUP)," 2,655.55 ",09/02/2016
Delivery Units,Adults and Communities,Other Agencies - Third Party P,30109761,CARLTON COURT (TLC GROUP)," 2,397.72 ",09/02/2016
Delivery Units,Adults and Communities,Other Agencies - Third Party P,30109762,CARLTON COURT (TLC GROUP)," 2,655.55 ",09/02/2016
Delivery Units,Adults and Communities,Other Agencies - Third Party P,30109763,CARLTON COURT (TLC GROUP)," 2,448.78 ",09/02/2016
Delivery Units,Adults and Communities,Other Agencies - Third Party P,30109951,CARMEN LODGE RESIDENTIAL HOME," 2,739.47 ",09/02/2016
Delivery Units,Adults and Communities,Other Agencies - Third Party P,30110972,CATHERINE LODGE," 1,638.03 ",18/02/2016
Delivery Units,Adults and Communities,Other Agencies - Third Party P,30110973,CATHERINE LODGE, 710.94 ,18/02/2016
Delivery Units,Adults and Communities,Other Agencies - Third Party P,30109095,CAVENDISH RADIO CARS, 901.40 ,02/02/2016
Delivery Units,Adults and Communities,Other Agencies - Third Party P,30109096,CAVENDISH RADIO CARS, 766.19 ,02/02/2016
Delivery Units,Adults and Communities,Other Agencies - Third Party P,30113012,CAVENDISH RADIO CARS, 901.40 ,26/02/2016
Delivery Units,Adults and Communities,Other Agencies - Third Party P,30109657,CDR CARE LTD, 800.00 ,08/02/2016
Delivery Units,Adults and Communities,Other Agencies - Third Party P,30109658,CDR CARE LTD, 800.00 ,08/02/2016
Delivery Units,Adults and Communities,Other Agencies - Third Party P,30109728,CDR CARE LTD, 800.00 ,09/02/2016
Delivery Units,Adults and Communities,Other Agencies - Third Party P,30111352,CDR CARE LTD," 2,000.00 ",22/02/2016
Delivery Units,Adults and Communities,Other Agencies - Third Party P,30109240,CEDARS NURSING HOME," 2,318.93 ",02/02/2016
Delivery Units,Adults and Communities,Other Agencies - Third Party P,30109241,CEDARS NURSING HOME,"-1,346.47 ",02/02/2016
Delivery Units,Adults and Communities,Other Agencies - Third Party P,30109242,CEDARS NURSING HOME,"-1,072.50 ",02/02/2016
Delivery Units,Adults and Communities,Other Agencies - Third Party P,30109243,CEDARS NURSING HOME," 1,000.96 ",02/02/2016
Delivery Units,Adults and Communities,Other Agencies - Third Party P,30109892,CEDARS NURSING HOME," 2,244.13 ",09/02/2016
Delivery Units,Adults and Communities,Other Agencies - Third Party P,30109893,CEDARS NURSING HOME," 2,565.78 ",09/02/2016
Delivery Units,Adults and Communities,Other Agencies - Third Party P,30109894,CEDARS NURSING HOME," 2,565.78 ",09/02/2016
Delivery Units,Adults and Communities,Other Agencies - Third Party P,30109895,CEDARS NURSING HOME," 2,353.25 ",09/02/2016
Delivery Units,Adults and Communities,Other Agencies - Third Party P,30109896,CEDARS NURSING HOME," 2,565.78 ",09/02/2016
Delivery Units,Adults and Communities,Other Agencies - Third Party P,30109897,CEDARS NURSING HOME," 2,314.02 ",09/02/2016
Delivery Units,Adults and Communities,Other Agencies - Third Party P,30109898,CEDARS NURSING HOME," 2,565.78 ",09/02/2016
Delivery Units,Adults and Communities,Other Agencies - Third Party P,30109899,CEDARS NURSING HOME," 2,353.25 ",09/02/2016
Delivery Units,Adults and Communities,Other Agencies - Third Party P,30110756,CENTRAL MIDDLESEX SKILLS," 1,085.52 ",17/02/2016
Delivery Units,Adults and Communities,Other Agencies - Third Party P,30110757,CENTRAL MIDDLESEX SKILLS, 723.68 ,17/02/2016
Delivery Units,Adults and Communities,Other Agencies - Third Party P,30109800,CHATSWORTH CARE," 10,606.43 ",09/02/2016
Delivery Units,Adults and Communities,Other Agencies - Third Party P,30110747,CHEQUERS TRANSPORT LIMITED, 107.36 ,17/02/2016
Delivery Units,Adults and Communities,Other Agencies - Third Party P,30110748,CHEQUERS TRANSPORT LIMITED, 214.72 ,17/02/2016
Delivery Units,Adults and Communities,Other Agencies - Third Party P,30109417,CLARE HOUSE NURSING HOME," 2,094.52 ",03/02/2016
Delivery Units,Adults and Communities,Other Agencies - Third Party P,30109415,CLOVELLY HOUSE RESID. HOME LTD," 2,600.00 ",03/02/2016
Delivery Units,Adults and Communities,Other Agencies - Third Party P,30110453,CLOVELLY HOUSE RESID. HOME LTD," 2,600.00 ",12/02/2016
Delivery Units,Adults and Communities,Other Agencies - Third Party P,30110454,CLOVELLY HOUSE RESID. HOME LTD," 2,600.00 ",12/02/2016
Delivery Units,Adults and Communities,Other Agencies - Third Party P,30110455,CLOVELLY HOUSE RESID. HOME LTD," 2,211.80 ",12/02/2016
Delivery Units,Adults and Communities,Other Agencies - Third Party P,30110456,CLOVELLY HOUSE RESID. HOME LTD," 1,900.40 ",12/02/2016
Delivery Units,Adults and Communities,Other Agencies - Third Party P,30110457,CLOVELLY HOUSE RESID. HOME LTD," 2,600.00 ",12/02/2016
Delivery Units,Adults and Communities,Other Agencies - Third Party P,30110458,CLOVELLY HOUSE RESID. HOME LTD," 2,211.80 ",12/02/2016
Delivery Units,Adults and Communities,Other Agencies - Third Party P,30110459,CLOVELLY HOUSE RESID. HOME LTD," 2,211.80 ",12/02/2016
Delivery Units,Adults and Communities,Other Agencies - Third Party P,30110653,CMG HOMES LTD," 3,086.84 ",16/02/2016
Delivery Units,Adults and Communities,Other Agencies - Third Party P,30109769,COMPLETE CARE SERVICES LTD," 5,426.86 ",09/02/2016
Delivery Units,Adults and Communities,Other Agencies - Third Party P,30112297,COMPLETE CARE SERVICES LTD," 5,076.74 ",25/02/2016
Delivery Units,Adults and Communities,Other Agencies - Third Party P,30109982,CONNIFERS CARE LTD," 8,546.43 ",09/02/2016
Delivery Units,Adults and Communities,Other Agencies - Third Party P,30110001,CRANSTOUN DRUG SERVICES," 2,989.29 ",09/02/2016
Delivery Units,Adults and Communities,Other Agencies - Third Party P,30111281,CRANSTOUN DRUG SERVICES," 2,989.29 ",25/02/2016
Delivery Units,Adults and Communities,Other Agencies - Third Party P,30113036,CRANSTOUN DRUG SERVICES, 513.43 ,26/02/2016
Delivery Units,Adults and Communities,Other Agencies - Third Party P,30113038,DILLON CARE LTD," 3,900.00 ",26/02/2016
Delivery Units,Adults and Communities,Other Agencies - Third Party P,30113039,DILLON CARE LTD," 3,900.00 ",26/02/2016
Delivery Units,Adults and Communities,Other Agencies - Third Party P,30113040,DILLON CARE LTD," 3,900.00 ",26/02/2016
Delivery Units,Adults and Communities,Other Agencies - Third Party P,30113127,DILLON CARE LTD," 3,900.00 ",29/02/2016
Delivery Units,Adults and Communities,Other Agencies - Third Party P,30109256,DIMENSIONS UK, 149.60 ,02/02/2016
Delivery Units,Adults and Communities,Other Agencies - Third Party P,30109257,DIMENSIONS UK, 265.12 ,02/02/2016
Delivery Units,Adults and Communities,Other Agencies - Third Party P,30109699,DIMENSIONS UK," 1,870.00 ",08/02/2016
Delivery Units,Adults and Communities,Other Agencies - Third Party P,30109700,DIMENSIONS UK," 1,570.80 ",08/02/2016
Delivery Units,Adults and Communities,Other Agencies - Third Party P,30109701,DIMENSIONS UK," 1,870.00 ",08/02/2016
Delivery Units,Adults and Communities,Other Agencies - Third Party P,30109702,DIMENSIONS UK," 1,570.80 ",08/02/2016
Delivery Units,Adults and Communities,Other Agencies - Third Party P,30110141,DIMENSIONS UK,-74.80 ,10/02/2016
Delivery Units,Adults and Communities,Other Agencies - Third Party P,30110143,DIMENSIONS UK," 1,944.80 ",10/02/2016
Delivery Units,Adults and Communities,Other Agencies - Third Party P,30110145,DIMENSIONS UK," 2,128.00 ",10/02/2016
Delivery Units,Adults and Communities,Other Agencies - Third Party P,30110150,DIMENSIONS UK," 1,541.00 ",10/02/2016
Delivery Units,Adults and Communities,Other Agencies - Third Party P,30110196,DIMENSIONS UK, 149.60 ,10/02/2016
Delivery Units,Adults and Communities,Other Agencies - Third Party P,30110491,DIMENSIONS UK," 6,025.32 ",12/02/2016
Delivery Units,Adults and Communities,Other Agencies - Third Party P,30110492,DIMENSIONS UK," 4,495.76 ",12/02/2016
Delivery Units,Adults and Communities,Other Agencies - Third Party P,30110493,DIMENSIONS UK," 4,495.76 ",12/02/2016
Delivery Units,Adults and Communities,Other Agencies - Third Party P,30110960,DIMENSIONS UK," 7,950.68 ",17/02/2016
Delivery Units,Adults and Communities,Other Agencies - Third Party P,30112156,DIMENSIONS UK, 374.00 ,24/02/2016
Delivery Units,Adults and Communities,Other Agencies - Third Party P,30112157,DIMENSIONS UK," 1,122.00 ",24/02/2016
Delivery Units,Adults and Communities,Other Agencies - Third Party P,30112158,DIMENSIONS UK, 280.50 ,24/02/2016
Delivery Units,Adults and Communities,Other Agencies - Third Party P,30112159,DIMENSIONS UK, 374.00 ,24/02/2016
Delivery Units,Adults and Communities,Other Agencies - Third Party P,30112160,DIMENSIONS UK," 1,028.50 ",24/02/2016
Delivery Units,Adults and Communities,Other Agencies - Third Party P,30109912,DR FRENCH MEMORIAL HOME LTD," 1,658.85 ",09/02/2016
Delivery Units,Adults and Communities,Other Agencies - Third Party P,30110444,DYNAMIC PEOPLE LTD, 180.00 ,12/02/2016
Delivery Units,Adults and Communities,Other Agencies - Third Party P,30111221,DYNAMIC PEOPLE LTD, 234.43 ,19/02/2016
Delivery Units,Adults and Communities,Other Agencies - Third Party P,30111222,DYNAMIC PEOPLE LTD, 234.43 ,19/02/2016
Delivery Units,Adults and Communities,Other Agencies - Third Party P,30111223,DYNAMIC PEOPLE LTD, 234.43 ,19/02/2016
Delivery Units,Adults and Communities,Other Agencies - Third Party P,30111225,DYNAMIC PEOPLE LTD, 234.43 ,19/02/2016
Delivery Units,Adults and Communities,Other Agencies - Third Party P,30111227,DYNAMIC PEOPLE LTD, 234.43 ,19/02/2016
Delivery Units,Adults and Communities,Other Agencies - Third Party P,30111229,DYNAMIC PEOPLE LTD, 230.72 ,19/02/2016
Delivery Units,Adults and Communities,Other Agencies - Third Party P,30111231,DYNAMIC PEOPLE LTD, 234.43 ,19/02/2016
Delivery Units,Adults and Communities,Other Agencies - Third Party P,30111233,DYNAMIC PEOPLE LTD, 186.10 ,19/02/2016
Delivery Units,Adults and Communities,Other Agencies - Third Party P,30111235,DYNAMIC PEOPLE LTD, 256.80 ,19/02/2016
Delivery Units,Adults and Communities,Other Agencies - Third Party P,30112689,DYNAMIC PEOPLE LTD, 335.46 ,25/02/2016
Delivery Units,Adults and Communities,Other Agencies - Third Party P,30112690,DYNAMIC PEOPLE LTD, 154.84 ,25/02/2016
Delivery Units,Adults and Communities,Other Agencies - Third Party P,30112692,DYNAMIC PEOPLE LTD, 92.16 ,25/02/2016
Delivery Units,Adults and Communities,Other Agencies - Third Party P,30109494,EASTSIDE HOUSE RESIDENTIAL CARE HOM," 2,031.76 ",05/02/2016
Delivery Units,Adults and Communities,Other Agencies - Third Party P,30109872,ELM PARK LODGE," 3,299.29 ",09/02/2016
Delivery Units,Adults and Communities,Other Agencies - Third Party P,30109887,ELM PARK LODGE," 3,484.80 ",09/02/2016
Delivery Units,Adults and Communities,Other Agencies - Third Party P,30109955,ELM PARK LODGE," 2,103.31 ",09/02/2016
Delivery Units,Adults and Communities,Other Agencies - Third Party P,30109963,ELM PARK LODGE," 3,432.14 ",09/02/2016
Delivery Units,Adults and Communities,Other Agencies - Third Party P,30109964,ELM PARK LODGE," 2,161.85 ",09/02/2016
Delivery Units,Adults and Communities,Other Agencies - Third Party P,30109992,ELM PARK LODGE," 3,210.71 ",09/02/2016
Delivery Units,Adults and Communities,Other Agencies - Third Party P,30110002,ELM PARK LODGE," 3,432.14 ",09/02/2016
Delivery Units,Adults and Communities,Other Agencies - Third Party P,30110006,ELM PARK LODGE," 3,432.14 ",09/02/2016
Delivery Units,Adults and Communities,Other Agencies - Third Party P,30110040,ELM PARK LODGE," 3,455.61 ",09/02/2016
Delivery Units,Adults and Communities,Other Agencies - Third Party P,30110049,ELM PARK LODGE," 3,170.86 ",09/02/2016
Delivery Units,Adults and Communities,Other Agencies - Third Party P,30110466,ELM PARK LODGE," 3,441.00 ",12/02/2016
Delivery Units,Adults and Communities,Other Agencies - Third Party P,30110808,EMMAUS HOUSE," 2,211.80 ",17/02/2016
Delivery Units,Adults and Communities,Other Agencies - Third Party P,30110194,EVE HERSOV & CO, 262.00 ,10/02/2016
Delivery Units,Adults and Communities,Other Agencies - Third Party P,30109181,FERNBANK NURSING HOME.," 2,397.54 ",02/02/2016
Delivery Units,Adults and Communities,Other Agencies - Third Party P,30109397,FERNBANK NURSING HOME.," 2,397.54 ",03/02/2016
Delivery Units,Adults and Communities,Other Agencies - Third Party P,30109827,FERNBANK NURSING HOME.," 1,627.54 ",09/02/2016
Delivery Units,Adults and Communities,Other Agencies - Third Party P,30109829,FERNBANK NURSING HOME.," 2,397.54 ",09/02/2016
Delivery Units,Adults and Communities,Other Agencies - Third Party P,30109830,FERNBANK NURSING HOME.," 2,397.54 ",09/02/2016
Delivery Units,Adults and Communities,Other Agencies - Third Party P,30109831,FERNBANK NURSING HOME.," 2,397.54 ",09/02/2016
Delivery Units,Adults and Communities,Other Agencies - Third Party P,30109832,FERNBANK NURSING HOME.," 2,397.54 ",09/02/2016
Delivery Units,Adults and Communities,Other Agencies - Third Party P,30109833,FERNBANK NURSING HOME.," 2,397.54 ",09/02/2016
Delivery Units,Adults and Communities,Other Agencies - Third Party P,30109834,FERNBANK NURSING HOME.," 2,397.54 ",09/02/2016
Delivery Units,Adults and Communities,Other Agencies - Third Party P,30109835,FERNBANK NURSING HOME.," 2,397.54 ",09/02/2016
Delivery Units,Adults and Communities,Other Agencies - Third Party P,30109823,FINBOND LIMITED," 2,418.04 ",09/02/2016
Delivery Units,Adults and Communities,Other Agencies - Third Party P,30109824,FINBOND LIMITED," 2,657.14 ",09/02/2016
Delivery Units,Adults and Communities,Other Agencies - Third Party P,30109825,FINBOND LIMITED," 2,216.41 ",09/02/2016
Delivery Units,Adults and Communities,Other Agencies - Third Party P,30109826,FINBOND LIMITED," 2,431.29 ",09/02/2016
Delivery Units,Adults and Communities,Other Agencies - Third Party P,30111280,FLAGSWAN TWO LTD," 2,546.43 ",19/02/2016
Delivery Units,Adults and Communities,Other Agencies - Third Party P,30110646,FLEXSERVE RESOURCE LTD, 59.75 ,16/02/2016
Delivery Units,Adults and Communities,Other Agencies - Third Party P,30111441,FLEXSERVE RESOURCE LTD, 125.00 ,22/02/2016
Delivery Units,Adults and Communities,Other Agencies - Third Party P,30111442,FLEXSERVE RESOURCE LTD, 909.45 ,22/02/2016
Delivery Units,Adults and Communities,Other Agencies - Third Party P,30111443,FLEXSERVE RESOURCE LTD, 738.25 ,22/02/2016
Delivery Units,Adults and Communities,Other Agencies - Third Party P,30113002,FLEXSERVE RESOURCE LTD, 612.65 ,26/02/2016
Delivery Units,Adults and Communities,Other Agencies - Third Party P,30113003,FLEXSERVE RESOURCE LTD," 1,060.90 ",26/02/2016
Delivery Units,Adults and Communities,Other Agencies - Third Party P,30110471,FOUR SEASONS HEALTH CARE," 1,707.98 ",12/02/2016
Delivery Units,Adults and Communities,Other Agencies - Third Party P,30110472,FOUR SEASONS HEALTH CARE," 2,443.32 ",12/02/2016
Delivery Units,Adults and Communities,Other Agencies - Third Party P,30110473,FOUR SEASONS HEALTH CARE," 2,165.68 ",12/02/2016
Delivery Units,Adults and Communities,Other Agencies - Third Party P,30110474,FOUR SEASONS HEALTH CARE," 2,165.68 ",12/02/2016
Delivery Units,Adults and Communities,Other Agencies - Third Party P,30110475,FOUR SEASONS HEALTH CARE," 2,123.48 ",12/02/2016
Delivery Units,Adults and Communities,Other Agencies - Third Party P,30110476,FOUR SEASONS HEALTH CARE," 2,123.48 ",12/02/2016
Delivery Units,Adults and Communities,Other Agencies - Third Party P,30110477,FOUR SEASONS HEALTH CARE," 2,398.56 ",12/02/2016
Delivery Units,Adults and Communities,Other Agencies - Third Party P,30110478,FOUR SEASONS HEALTH CARE," 2,398.56 ",12/02/2016
Delivery Units,Adults and Communities,Other Agencies - Third Party P,30110479,FOUR SEASONS HEALTH CARE," 2,165.68 ",12/02/2016
Delivery Units,Adults and Communities,Other Agencies - Third Party P,30110480,FOUR SEASONS HEALTH CARE," 1,237.53 ",12/02/2016
Delivery Units,Adults and Communities,Other Agencies - Third Party P,30110481,FOUR SEASONS HEALTH CARE," 2,321.92 ",12/02/2016
Delivery Units,Adults and Communities,Other Agencies - Third Party P,30110482,FOUR SEASONS HEALTH CARE," 2,321.92 ",12/02/2016
Delivery Units,Adults and Communities,Other Agencies - Third Party P,30110483,FOUR SEASONS HEALTH CARE," 2,165.68 ",12/02/2016
Delivery Units,Adults and Communities,Other Agencies - Third Party P,30110484,FOUR SEASONS HEALTH CARE," 2,165.68 ",12/02/2016
Delivery Units,Adults and Communities,Other Agencies - Third Party P,30110817,FOUR SEASONS HEALTH CARE," 2,443.32 ",17/02/2016
Delivery Units,Adults and Communities,Other Agencies - Third Party P,30110818,FOUR SEASONS HEALTH CARE," 2,354.25 ",17/02/2016
Delivery Units,Adults and Communities,Other Agencies - Third Party P,30110819,FOUR SEASONS HEALTH CARE," 2,354.25 ",17/02/2016
Delivery Units,Adults and Communities,Other Agencies - Third Party P,30110820,FOUR SEASONS HEALTH CARE," 2,123.48 ",17/02/2016
Delivery Units,Adults and Communities,Other Agencies - Third Party P,30110821,FOUR SEASONS HEALTH CARE," 2,123.48 ",17/02/2016
Delivery Units,Adults and Communities,Other Agencies - Third Party P,30110822,FOUR SEASONS HEALTH CARE," 2,600.05 ",17/02/2016
Delivery Units,Adults and Communities,Other Agencies - Third Party P,30110823,FOUR SEASONS HEALTH CARE," 2,579.21 ",17/02/2016
Delivery Units,Adults and Communities,Other Agencies - Third Party P,30110824,FOUR SEASONS HEALTH CARE," 2,343.79 ",17/02/2016
Delivery Units,Adults and Communities,Other Agencies - Third Party P,30110825,FOUR SEASONS HEALTH CARE," 2,343.88 ",17/02/2016
Delivery Units,Adults and Communities,Other Agencies - Third Party P,30110826,FOUR SEASONS HEALTH CARE," 2,313.08 ",17/02/2016
Delivery Units,Adults and Communities,Other Agencies - Third Party P,30110827,FOUR SEASONS HEALTH CARE," 2,343.88 ",17/02/2016
Delivery Units,Adults and Communities,Other Agencies - Third Party P,30110828,FOUR SEASONS HEALTH CARE," 2,321.92 ",17/02/2016
Delivery Units,Adults and Communities,Other Agencies - Third Party P,30110829,FOUR SEASONS HEALTH CARE," 2,321.92 ",17/02/2016
Delivery Units,Adults and Communities,Other Agencies - Third Party P,30110830,FOUR SEASONS HEALTH CARE," 2,343.88 ",17/02/2016
Delivery Units,Adults and Communities,Other Agencies - Third Party P,30110831,FOUR SEASONS HEALTH CARE," 2,343.88 ",17/02/2016
Delivery Units,Adults and Communities,Other Agencies - Third Party P,30110832,FOUR SEASONS HEALTH CARE," 2,165.68 ",17/02/2016
Delivery Units,Adults and Communities,Other Agencies - Third Party P,30110833,FOUR SEASONS HEALTH CARE," 2,165.68 ",17/02/2016
Delivery Units,Adults and Communities,Other Agencies - Third Party P,30111279,FOUR SEASONS HEALTH CARE," 2,297.08 ",19/02/2016
Delivery Units,Adults and Communities,Other Agencies - Third Party P,30109258,FREEWAYS TRUST LIMITED," 2,109.48 ",11/02/2016
Delivery Units,Adults and Communities,Other Agencies - Third Party P,30109259,FREEWAYS TRUST LIMITED, 829.80 ,11/02/2016
Delivery Units,Adults and Communities,Other Agencies - Third Party P,30110276,FREMANTLE TRUST," 3,052.00 ",11/02/2016
Delivery Units,Adults and Communities,Other Agencies - Third Party P,30110277,FREMANTLE TRUST," 2,908.00 ",11/02/2016
Delivery Units,Adults and Communities,Other Agencies - Third Party P,30110278,FREMANTLE TRUST," 1,962.00 ",11/02/2016
Delivery Units,Adults and Communities,Other Agencies - Third Party P,30110289,FREMANTLE TRUST," 2,274.44 ",11/02/2016
Delivery Units,Adults and Communities,Other Agencies - Third Party P,30110290,FREMANTLE TRUST," 3,160.00 ",11/02/2016
Delivery Units,Adults and Communities,Other Agencies - Third Party P,30110291,FREMANTLE TRUST," 6,167.84 ",11/02/2016
Delivery Units,Adults and Communities,Other Agencies - Third Party P,30113033,FREMANTLE TRUST," 14,417.24 ",26/02/2016
Delivery Units,Adults and Communities,Other Agencies - Third Party P,30113034,FREMANTLE TRUST," 31,156.72 ",26/02/2016
Delivery Units,Adults and Communities,Other Agencies - Third Party P,30111029,FRIERN RESIDENTIAL CARE HOME," 3,985.71 ",17/02/2016
Delivery Units,Adults and Communities,Other Agencies - Third Party P,30110191,GENTLE HANDS CARE AGENCY, 494.00 ,10/02/2016
Delivery Units,Adults and Communities,Other Agencies - Third Party P,30110192,GENTLE HANDS CARE AGENCY," 1,400.00 ",10/02/2016
Delivery Units,Adults and Communities,Other Agencies - Third Party P,30109367,GENTLE HANDS CARE HOMES LIMITED," 4,394.00 ",03/02/2016
Delivery Units,Adults and Communities,Other Agencies - Third Party P,30109372,GENTLE HANDS CARE HOMES LIMITED," 1,080.00 ",03/02/2016
Delivery Units,Adults and Communities,Other Agencies - Third Party P,30109373,GENTLE HANDS CARE HOMES LIMITED," 1,080.00 ",03/02/2016
Delivery Units,Adults and Communities,Other Agencies - Third Party P,30109374,GENTLE HANDS CARE HOMES LIMITED," 1,080.00 ",03/02/2016
Delivery Units,Adults and Communities,Other Agencies - Third Party P,30109375,GENTLE HANDS CARE HOMES LIMITED," 1,080.00 ",03/02/2016
Delivery Units,Adults and Communities,Other Agencies - Third Party P,30109376,GENTLE HANDS CARE HOMES LIMITED," 1,080.00 ",03/02/2016
Delivery Units,Adults and Communities,Other Agencies - Third Party P,30109377,GENTLE HANDS CARE HOMES LIMITED," 1,080.00 ",03/02/2016
Delivery Units,Adults and Communities,Other Agencies - Third Party P,30109378,GENTLE HANDS CARE HOMES LIMITED," 1,080.00 ",03/02/2016
Delivery Units,Adults and Communities,Other Agencies - Third Party P,30113112,GENTLE HANDS CARE HOMES LIMITED," 4,394.00 ",29/02/2016
Delivery Units,Adults and Communities,Other Agencies - Third Party P,30113129,GENTLE HANDS CARE HOMES LIMITED," 1,080.00 ",29/02/2016
Delivery Units,Adults and Communities,Other Agencies - Third Party P,30109906,GLENHOLME PSYCHIATRIC AFTER CARE HO," 4,097.05 ",09/02/2016
Delivery Units,Adults and Communities,Other Agencies - Third Party P,30109981,GLENHOLME PSYCHIATRIC AFTER CARE HO," 3,986.16 ",09/02/2016
Delivery Units,Adults and Communities,Other Agencies - Third Party P,30110060,GLENHOLME PSYCHIATRIC AFTER CARE HO," 4,207.14 ",09/02/2016
Delivery Units,Adults and Communities,Other Agencies - Third Party P,30111121,GREEN TREES," 2,211.80 ",17/02/2016
Delivery Units,Adults and Communities,Other Agencies - Third Party P,30111122,GREEN TREES," 2,211.80 ",17/02/2016
Delivery Units,Adults and Communities,Other Agencies - Third Party P,30111123,GREEN TREES," 2,369.78 ",17/02/2016
Delivery Units,Adults and Communities,Other Agencies - Third Party P,30109930,HALLMARK CARE (KINGS LYNN) LTD," 2,890.31 ",09/02/2016
Delivery Units,Adults and Communities,Other Agencies - Third Party P,30109986,HARDEN," 4,343.12 ",09/02/2016
Delivery Units,Adults and Communities,Other Agencies - Third Party P,30110749,HARTWIG CARE LIMITED, 12.52 ,17/02/2016
Delivery Units,Adults and Communities,Other Agencies - Third Party P,30110750,HARTWIG CARE LIMITED, 90.06 ,17/02/2016
Delivery Units,Adults and Communities,Other Agencies - Third Party P,30110751,HARTWIG CARE LIMITED, 295.96 ,17/02/2016
Delivery Units,Adults and Communities,Other Agencies - Third Party P,30110752,HARTWIG CARE LIMITED, 12.52 ,17/02/2016
Delivery Units,Adults and Communities,Other Agencies - Third Party P,30110753,HARTWIG CARE LIMITED, 50.08 ,17/02/2016
Delivery Units,Adults and Communities,Other Agencies - Third Party P,30110754,HARTWIG CARE LIMITED, 21.91 ,17/02/2016
Delivery Units,Adults and Communities,Other Agencies - Third Party P,30106489,HEADWAY EAST LONDON, 376.08 ,02/02/2016
Delivery Units,Adults and Communities,Other Agencies - Third Party P,30107526,HEADWAY EAST LONDON, 340.00 ,09/02/2016
Delivery Units,Adults and Communities,Other Agencies - Third Party P,30109335,HEADWAY EAST LONDON, 376.08 ,18/02/2016
Delivery Units,Adults and Communities,Other Agencies - Third Party P,30109784,HENRY NIHILL HOUSE," 2,398.56 ",10/02/2016
Delivery Units,Adults and Communities,Other Agencies - Third Party P,30109785,HENRY NIHILL HOUSE," 2,165.68 ",10/02/2016
Delivery Units,Adults and Communities,Other Agencies - Third Party P,30110976,HILLGREEN CARE LTD," 7,093.24 ",17/02/2016
Delivery Units,Adults and Communities,Other Agencies - Third Party P,30109251,HILTON LODGE LTD.," 2,256.04 ",02/02/2016
Delivery Units,Adults and Communities,Other Agencies - Third Party P,30109716,HILTON LODGE LTD.," 2,256.04 ",09/02/2016
Delivery Units,Adults and Communities,Other Agencies - Third Party P,30109967,HILTON LODGE LTD.," 2,184.04 ",09/02/2016
Delivery Units,Adults and Communities,Other Agencies - Third Party P,30109973,HILTON LODGE LTD.," 4,800.00 ",09/02/2016
Delivery Units,Adults and Communities,Other Agencies - Third Party P,30109988,HILTON LODGE LTD.," 2,184.04 ",09/02/2016
Delivery Units,Adults and Communities,Other Agencies - Third Party P,30109989,HILTON LODGE LTD.," 2,184.04 ",09/02/2016
Delivery Units,Adults and Communities,Other Agencies - Third Party P,30110047,HILTON LODGE LTD.," 2,184.04 ",09/02/2016
Delivery Units,Adults and Communities,Other Agencies - Third Party P,30110053,HILTON LODGE LTD.," 2,184.04 ",09/02/2016
Delivery Units,Adults and Communities,Other Agencies - Third Party P,20028258,HMCTS, 400.00 ,12/02/2016
Delivery Units,Adults and Communities,Other Agencies - Third Party P,20028260,HMCTS, 400.00 ,12/02/2016
Delivery Units,Adults and Communities,Other Agencies - Third Party P,20028261,HMCTS, 400.00 ,12/02/2016
Delivery Units,Adults and Communities,Other Agencies - Third Party P,20028263,HMCTS, 400.00 ,12/02/2016
Delivery Units,Adults and Communities,Other Agencies - Third Party P,20028580,HMCTS, 400.00 ,26/02/2016
Delivery Units,Adults and Communities,Other Agencies - Third Party P,80001824,HMCTS, 400.00 ,05/02/2016
Delivery Units,Adults and Communities,Other Agencies - Third Party P,30111119,HOLLY HOUSE," 2,031.76 ",17/02/2016
Delivery Units,Adults and Communities,Other Agencies - Third Party P,30110809,HOLLY HOUSE CARE HOME," 4,914.09 ",17/02/2016
Delivery Units,Adults and Communities,Other Agencies - Third Party P,30110499,HOME FROM HOME CARE LTD," 9,482.45 ",12/02/2016
Delivery Units,Adults and Communities,Other Agencies - Third Party P,30109880,HONISTER RESIDENTIAL CARE LTD," 2,418.04 ",09/02/2016
Delivery Units,Adults and Communities,Other Agencies - Third Party P,30112383,HONISTER RESIDENTIAL CARE LTD," 2,262.04 ",25/02/2016
Delivery Units,Adults and Communities,Other Agencies - Third Party P,30107291,HOUSING 21 (BARNET),-246.00 ,10/02/2016
Delivery Units,Adults and Communities,Other Agencies - Third Party P,30107292,HOUSING 21 (BARNET),-246.00 ,10/02/2016
Delivery Units,Adults and Communities,Other Agencies - Third Party P,30107531,HOUSING 21 (BARNET),-246.00 ,10/02/2016
Delivery Units,Adults and Communities,Other Agencies - Third Party P,30110190,HOUSING 21 (BARNET),-246.00 ,10/02/2016
Delivery Units,Adults and Communities,Other Agencies - Third Party P,30110048,HUSKARDS NEW CARE LTD," 2,216.50 ",09/02/2016
Delivery Units,Adults and Communities,Other Agencies - Third Party P,30113093,INDEPENDENCE HOMES LIMITED," 2,900.00 ",29/02/2016
Delivery Units,Adults and Communities,Other Agencies - Third Party P,30109091,INDIVIDUALISED CARE LIMITED, 140.00 ,02/02/2016
Delivery Units,Adults and Communities,Other Agencies - Third Party P,30109659,INDIVIDUALISED CARE LIMITED," 1,928.55 ",08/02/2016
Delivery Units,Adults and Communities,Other Agencies - Third Party P,30109660,INDIVIDUALISED CARE LIMITED, 385.00 ,08/02/2016
Delivery Units,Adults and Communities,Other Agencies - Third Party P,30109661,INDIVIDUALISED CARE LIMITED, 700.00 ,08/02/2016
Delivery Units,Adults and Communities,Other Agencies - Third Party P,30109662,INDIVIDUALISED CARE LIMITED, 500.00 ,08/02/2016
Delivery Units,Adults and Communities,Other Agencies - Third Party P,30109663,INDIVIDUALISED CARE LIMITED, 800.00 ,08/02/2016
Delivery Units,Adults and Communities,Other Agencies - Third Party P,30109664,INDIVIDUALISED CARE LIMITED, 255.00 ,08/02/2016
Delivery Units,Adults and Communities,Other Agencies - Third Party P,30109665,INDIVIDUALISED CARE LIMITED, 224.00 ,08/02/2016
Delivery Units,Adults and Communities,Other Agencies - Third Party P,30109666,INDIVIDUALISED CARE LIMITED, 224.00 ,08/02/2016
Delivery Units,Adults and Communities,Other Agencies - Third Party P,30109667,INDIVIDUALISED CARE LIMITED, 600.00 ,08/02/2016
Delivery Units,Adults and Communities,Other Agencies - Third Party P,30109668,INDIVIDUALISED CARE LIMITED, 140.00 ,08/02/2016
Delivery Units,Adults and Communities,Other Agencies - Third Party P,30109669,INDIVIDUALISED CARE LIMITED," 1,000.00 ",08/02/2016
Delivery Units,Adults and Communities,Other Agencies - Third Party P,30109670,INDIVIDUALISED CARE LIMITED, 900.00 ,08/02/2016
Delivery Units,Adults and Communities,Other Agencies - Third Party P,30109671,INDIVIDUALISED CARE LIMITED, 500.00 ,08/02/2016
Delivery Units,Adults and Communities,Other Agencies - Third Party P,30109672,INDIVIDUALISED CARE LIMITED, 700.00 ,08/02/2016
Delivery Units,Adults and Communities,Other Agencies - Third Party P,30109673,INDIVIDUALISED CARE LIMITED, 600.00 ,08/02/2016
Delivery Units,Adults and Communities,Other Agencies - Third Party P,30109674,INDIVIDUALISED CARE LIMITED," 1,000.00 ",08/02/2016
Delivery Units,Adults and Communities,Other Agencies - Third Party P,30109675,INDIVIDUALISED CARE LIMITED," 1,400.00 ",08/02/2016
Delivery Units,Adults and Communities,Other Agencies - Third Party P,30109677,INDIVIDUALISED CARE LIMITED, 700.00 ,08/02/2016
Delivery Units,Adults and Communities,Other Agencies - Third Party P,30109678,INDIVIDUALISED CARE LIMITED, 300.00 ,08/02/2016
Delivery Units,Adults and Communities,Other Agencies - Third Party P,30109736,INDIVIDUALISED CARE LIMITED, 600.00 ,09/02/2016
Delivery Units,Adults and Communities,Other Agencies - Third Party P,30109737,INDIVIDUALISED CARE LIMITED, 800.00 ,09/02/2016
Delivery Units,Adults and Communities,Other Agencies - Third Party P,30109738,INDIVIDUALISED CARE LIMITED, 425.00 ,09/02/2016
Delivery Units,Adults and Communities,Other Agencies - Third Party P,30109739,INDIVIDUALISED CARE LIMITED, 500.00 ,09/02/2016
Delivery Units,Adults and Communities,Other Agencies - Third Party P,30109740,INDIVIDUALISED CARE LIMITED, 300.00 ,09/02/2016
Delivery Units,Adults and Communities,Other Agencies - Third Party P,30109741,INDIVIDUALISED CARE LIMITED, 500.00 ,09/02/2016
Delivery Units,Adults and Communities,Other Agencies - Third Party P,30109742,INDIVIDUALISED CARE LIMITED, 63.00 ,09/02/2016
Delivery Units,Adults and Communities,Other Agencies - Third Party P,30109743,INDIVIDUALISED CARE LIMITED," 1,320.00 ",09/02/2016
Delivery Units,Adults and Communities,Other Agencies - Third Party P,30109744,INDIVIDUALISED CARE LIMITED," 1,111.50 ",09/02/2016
Delivery Units,Adults and Communities,Other Agencies - Third Party P,30110105,INDIVIDUALISED CARE LIMITED," 2,185.69 ",10/02/2016
Delivery Units,Adults and Communities,Other Agencies - Third Party P,30110106,INDIVIDUALISED CARE LIMITED," 2,400.00 ",10/02/2016
Delivery Units,Adults and Communities,Other Agencies - Third Party P,30110107,INDIVIDUALISED CARE LIMITED, 513.50 ,10/02/2016
Delivery Units,Adults and Communities,Other Agencies - Third Party P,30110109,INDIVIDUALISED CARE LIMITED, 357.50 ,10/02/2016
Delivery Units,Adults and Communities,Other Agencies - Third Party P,30112997,INDIVIDUALISED CARE LIMITED, 28.00 ,26/02/2016
Delivery Units,Adults and Communities,Other Agencies - Third Party P,30112998,INDIVIDUALISED CARE LIMITED, 154.00 ,26/02/2016
Delivery Units,Adults and Communities,Other Agencies - Third Party P,30110165,INTEGRATED SERVICES PROGRAMME," 2,600.08 ",10/02/2016
Delivery Units,Adults and Communities,Other Agencies - Third Party P,30110166,INTEGRATED SERVICES PROGRAMME," 2,600.08 ",10/02/2016
Delivery Units,Adults and Communities,Other Agencies - Third Party P,30112462,JACARANDA HEALTHCARE, 108.00 ,25/02/2016
Delivery Units,Adults and Communities,Other Agencies - Third Party P,30112465,JACARANDA HEALTHCARE, 567.00 ,25/02/2016
Delivery Units,Adults and Communities,Other Agencies - Third Party P,30112466,JACARANDA HEALTHCARE, 91.50 ,25/02/2016
Delivery Units,Adults and Communities,Other Agencies - Third Party P,30112467,JACARANDA HEALTHCARE, 535.50 ,25/02/2016
Delivery Units,Adults and Communities,Other Agencies - Third Party P,30112468,JACARANDA HEALTHCARE, 465.00 ,25/02/2016
Delivery Units,Adults and Communities,Other Agencies - Third Party P,30112471,JACARANDA HEALTHCARE, 94.50 ,25/02/2016
Delivery Units,Adults and Communities,Other Agencies - Third Party P,30112472,JACARANDA HEALTHCARE, 255.00 ,25/02/2016
Delivery Units,Adults and Communities,Other Agencies - Third Party P,30112476,JACARANDA HEALTHCARE, 135.00 ,25/02/2016
Delivery Units,Adults and Communities,Other Agencies - Third Party P,30112477,JACARANDA HEALTHCARE, 135.00 ,25/02/2016
Delivery Units,Adults and Communities,Other Agencies - Third Party P,30111220,JASMINE MANOR," 4,739.52 ",19/02/2016
Delivery Units,Adults and Communities,Other Agencies - Third Party P,30110348,JEMINI RESPONSE," 9,100.00 ",16/02/2016
Delivery Units,Adults and Communities,Other Agencies - Third Party P,30109230,JEWISH CARE, 26.69 ,02/02/2016
Delivery Units,Adults and Communities,Other Agencies - Third Party P,30109399,JEWISH CARE," 6,400.00 ",03/02/2016
Delivery Units,Adults and Communities,Other Agencies - Third Party P,30109402,JEWISH CARE," 2,156.52 ",03/02/2016
Delivery Units,Adults and Communities,Other Agencies - Third Party P,30110271,JEWISH CARE, 743.21 ,11/02/2016
Delivery Units,Adults and Communities,Other Agencies - Third Party P,30110272,JEWISH CARE,-225.21 ,11/02/2016
Delivery Units,Adults and Communities,Other Agencies - Third Party P,30110274,JEWISH CARE,-11.43 ,11/02/2016
Delivery Units,Adults and Communities,Other Agencies - Third Party P,30110275,JEWISH CARE," 2,133.36 ",11/02/2016
Delivery Units,Adults and Communities,Other Agencies - Third Party P,30110995,JEWISH CARE,"-1,142.87 ",17/02/2016
Delivery Units,Adults and Communities,Other Agencies - Third Party P,30111248,JEWISH CARE," 2,133.36 ",19/02/2016
Delivery Units,Adults and Communities,Other Agencies - Third Party P,30111249,JEWISH CARE," 2,133.36 ",19/02/2016
Delivery Units,Adults and Communities,Other Agencies - Third Party P,30111250,JEWISH CARE," 2,133.36 ",19/02/2016
Delivery Units,Adults and Communities,Other Agencies - Third Party P,30111251,JEWISH CARE," 2,322.40 ",19/02/2016
Delivery Units,Adults and Communities,Other Agencies - Third Party P,30111252,JEWISH CARE," 2,133.36 ",19/02/2016
Delivery Units,Adults and Communities,Other Agencies - Third Party P,30111253,JEWISH CARE," 2,133.36 ",19/02/2016
Delivery Units,Adults and Communities,Other Agencies - Third Party P,30111254,JEWISH CARE," 2,322.40 ",19/02/2016
Delivery Units,Adults and Communities,Other Agencies - Third Party P,30111255,JEWISH CARE," 2,322.40 ",19/02/2016
Delivery Units,Adults and Communities,Other Agencies - Third Party P,30111256,JEWISH CARE," 2,322.40 ",19/02/2016
Delivery Units,Adults and Communities,Other Agencies - Third Party P,30111257,JEWISH CARE," 2,133.36 ",19/02/2016
Delivery Units,Adults and Communities,Other Agencies - Third Party P,30111258,JEWISH CARE," 2,133.36 ",19/02/2016
Delivery Units,Adults and Communities,Other Agencies - Third Party P,30111259,JEWISH CARE," 2,133.36 ",19/02/2016
Delivery Units,Adults and Communities,Other Agencies - Third Party P,30111260,JEWISH CARE," 2,322.40 ",19/02/2016
Delivery Units,Adults and Communities,Other Agencies - Third Party P,30111261,JEWISH CARE," 2,322.40 ",19/02/2016
Delivery Units,Adults and Communities,Other Agencies - Third Party P,30111262,JEWISH CARE," 2,322.40 ",19/02/2016
Delivery Units,Adults and Communities,Other Agencies - Third Party P,30111263,JEWISH CARE," 2,322.40 ",19/02/2016
Delivery Units,Adults and Communities,Other Agencies - Third Party P,30111264,JEWISH CARE," 2,322.40 ",19/02/2016
Delivery Units,Adults and Communities,Other Agencies - Third Party P,30111265,JEWISH CARE," 2,322.40 ",19/02/2016
Delivery Units,Adults and Communities,Other Agencies - Third Party P,30111266,JEWISH CARE," 2,133.36 ",19/02/2016
Delivery Units,Adults and Communities,Other Agencies - Third Party P,30111267,JEWISH CARE," 2,133.36 ",19/02/2016
Delivery Units,Adults and Communities,Other Agencies - Third Party P,30111268,JEWISH CARE," 2,322.40 ",19/02/2016
Delivery Units,Adults and Communities,Other Agencies - Third Party P,30111269,JEWISH CARE," 2,133.36 ",19/02/2016
Delivery Units,Adults and Communities,Other Agencies - Third Party P,30111270,JEWISH CARE," 2,133.36 ",19/02/2016
Delivery Units,Adults and Communities,Other Agencies - Third Party P,30111926,JEWISH CARE," 2,133.36 ",22/02/2016
Delivery Units,Adults and Communities,Other Agencies - Third Party P,30111927,JEWISH CARE," 2,133.36 ",22/02/2016
Delivery Units,Adults and Communities,Other Agencies - Third Party P,30111928,JEWISH CARE," 2,322.40 ",22/02/2016
Delivery Units,Adults and Communities,Other Agencies - Third Party P,30111929,JEWISH CARE," 2,322.40 ",22/02/2016
Delivery Units,Adults and Communities,Other Agencies - Third Party P,30111930,JEWISH CARE," 2,133.36 ",22/02/2016
Delivery Units,Adults and Communities,Other Agencies - Third Party P,30111931,JEWISH CARE," 2,322.40 ",22/02/2016
Delivery Units,Adults and Communities,Other Agencies - Third Party P,30111932,JEWISH CARE," 2,133.84 ",22/02/2016
Delivery Units,Adults and Communities,Other Agencies - Third Party P,30111933,JEWISH CARE," 2,322.40 ",22/02/2016
Delivery Units,Adults and Communities,Other Agencies - Third Party P,30111934,JEWISH CARE," 2,133.36 ",22/02/2016
Delivery Units,Adults and Communities,Other Agencies - Third Party P,30111935,JEWISH CARE," 2,322.40 ",22/02/2016
Delivery Units,Adults and Communities,Other Agencies - Third Party P,30111936,JEWISH CARE," 2,322.40 ",22/02/2016
Delivery Units,Adults and Communities,Other Agencies - Third Party P,30111937,JEWISH CARE," 2,322.40 ",22/02/2016
Delivery Units,Adults and Communities,Other Agencies - Third Party P,30111938,JEWISH CARE," 3,200.00 ",22/02/2016
Delivery Units,Adults and Communities,Other Agencies - Third Party P,30112310,JEWISH CARE," 2,133.36 ",25/02/2016
Delivery Units,Adults and Communities,Other Agencies - Third Party P,30112311,JEWISH CARE," 2,102.00 ",25/02/2016
Delivery Units,Adults and Communities,Other Agencies - Third Party P,30112312,JEWISH CARE," 2,320.00 ",25/02/2016
Delivery Units,Adults and Communities,Other Agencies - Third Party P,30112313,JEWISH CARE," 3,400.00 ",25/02/2016
Delivery Units,Adults and Communities,Other Agencies - Third Party P,30112314,JEWISH CARE," 3,837.48 ",25/02/2016
Delivery Units,Adults and Communities,Other Agencies - Third Party P,30112315,JEWISH CARE," 2,322.40 ",25/02/2016
Delivery Units,Adults and Communities,Other Agencies - Third Party P,30112316,JEWISH CARE," 2,322.40 ",25/02/2016
Delivery Units,Adults and Communities,Other Agencies - Third Party P,30112317,JEWISH CARE," 2,322.40 ",25/02/2016
Delivery Units,Adults and Communities,Other Agencies - Third Party P,30112318,JEWISH CARE," 2,322.40 ",25/02/2016
Delivery Units,Adults and Communities,Other Agencies - Third Party P,30112319,JEWISH CARE," 2,322.40 ",25/02/2016
Delivery Units,Adults and Communities,Other Agencies - Third Party P,30112320,JEWISH CARE," 2,322.40 ",25/02/2016
Delivery Units,Adults and Communities,Other Agencies - Third Party P,30112321,JEWISH CARE," 2,133.36 ",25/02/2016
Delivery Units,Adults and Communities,Other Agencies - Third Party P,30112322,JEWISH CARE," 2,322.40 ",25/02/2016
Delivery Units,Adults and Communities,Other Agencies - Third Party P,30112323,JEWISH CARE," 2,322.40 ",25/02/2016
Delivery Units,Adults and Communities,Other Agencies - Third Party P,30112324,JEWISH CARE," 2,322.40 ",25/02/2016
Delivery Units,Adults and Communities,Other Agencies - Third Party P,30112325,JEWISH CARE," 2,322.40 ",25/02/2016
Delivery Units,Adults and Communities,Other Agencies - Third Party P,30112326,JEWISH CARE," 2,133.36 ",25/02/2016
Delivery Units,Adults and Communities,Other Agencies - Third Party P,30112327,JEWISH CARE," 2,273.96 ",25/02/2016
Delivery Units,Adults and Communities,Other Agencies - Third Party P,30112328,JEWISH CARE," 2,273.96 ",25/02/2016
Delivery Units,Adults and Communities,Other Agencies - Third Party P,30112329,JEWISH CARE," 2,510.08 ",25/02/2016
Delivery Units,Adults and Communities,Other Agencies - Third Party P,30112330,JEWISH CARE," 2,273.96 ",25/02/2016
Delivery Units,Adults and Communities,Other Agencies - Third Party P,30112331,JEWISH CARE," 2,273.96 ",25/02/2016
Delivery Units,Adults and Communities,Other Agencies - Third Party P,30112332,JEWISH CARE," 2,518.48 ",25/02/2016
Delivery Units,Adults and Communities,Other Agencies - Third Party P,30112333,JEWISH CARE," 2,518.48 ",25/02/2016
Delivery Units,Adults and Communities,Other Agencies - Third Party P,30112334,JEWISH CARE," 2,273.96 ",25/02/2016
Delivery Units,Adults and Communities,Other Agencies - Third Party P,30112335,JEWISH CARE," 2,273.96 ",25/02/2016
Delivery Units,Adults and Communities,Other Agencies - Third Party P,30112336,JEWISH CARE," 2,518.48 ",25/02/2016
Delivery Units,Adults and Communities,Other Agencies - Third Party P,30112337,JEWISH CARE," 2,273.96 ",25/02/2016
Delivery Units,Adults and Communities,Other Agencies - Third Party P,30112338,JEWISH CARE," 2,518.48 ",25/02/2016
Delivery Units,Adults and Communities,Other Agencies - Third Party P,30112339,JEWISH CARE," 2,518.48 ",25/02/2016
Delivery Units,Adults and Communities,Other Agencies - Third Party P,30112340,JEWISH CARE," 2,518.48 ",25/02/2016
Delivery Units,Adults and Communities,Other Agencies - Third Party P,30112341,JEWISH CARE," 2,273.96 ",25/02/2016
Delivery Units,Adults and Communities,Other Agencies - Third Party P,30112342,JEWISH CARE," 2,273.96 ",25/02/2016
Delivery Units,Adults and Communities,Other Agencies - Third Party P,30112343,JEWISH CARE," 2,273.96 ",25/02/2016
Delivery Units,Adults and Communities,Other Agencies - Third Party P,30112344,JEWISH CARE," 2,111.54 ",25/02/2016
Delivery Units,Adults and Communities,Other Agencies - Third Party P,30112345,JEWISH CARE," 2,273.96 ",25/02/2016
Delivery Units,Adults and Communities,Other Agencies - Third Party P,30112346,JEWISH CARE," 2,273.96 ",25/02/2016
Delivery Units,Adults and Communities,Other Agencies - Third Party P,30112347,JEWISH CARE," 2,273.96 ",25/02/2016
Delivery Units,Adults and Communities,Other Agencies - Third Party P,30112348,JEWISH CARE," 2,518.48 ",25/02/2016
Delivery Units,Adults and Communities,Other Agencies - Third Party P,30112349,JEWISH CARE," 2,518.48 ",25/02/2016
Delivery Units,Adults and Communities,Other Agencies - Third Party P,30112350,JEWISH CARE," 3,800.00 ",25/02/2016
Delivery Units,Adults and Communities,Other Agencies - Third Party P,30112351,JEWISH CARE," 3,200.00 ",25/02/2016
Delivery Units,Adults and Communities,Other Agencies - Third Party P,30112352,JEWISH CARE," 2,322.40 ",25/02/2016
Delivery Units,Adults and Communities,Other Agencies - Third Party P,30112353,JEWISH CARE," 2,133.36 ",25/02/2016
Delivery Units,Adults and Communities,Other Agencies - Third Party P,30112354,JEWISH CARE," 2,322.40 ",25/02/2016
Delivery Units,Adults and Communities,Other Agencies - Third Party P,30112355,JEWISH CARE," 2,322.40 ",25/02/2016
Delivery Units,Adults and Communities,Other Agencies - Third Party P,30112356,JEWISH CARE," 2,322.40 ",25/02/2016
Delivery Units,Adults and Communities,Other Agencies - Third Party P,30112357,JEWISH CARE," 2,322.40 ",25/02/2016
Delivery Units,Adults and Communities,Other Agencies - Third Party P,30112358,JEWISH CARE," 2,322.40 ",25/02/2016
Delivery Units,Adults and Communities,Other Agencies - Third Party P,30112359,JEWISH CARE," 2,322.40 ",25/02/2016
Delivery Units,Adults and Communities,Other Agencies - Third Party P,30112360,JEWISH CARE," 2,322.40 ",25/02/2016
Delivery Units,Adults and Communities,Other Agencies - Third Party P,30112361,JEWISH CARE," 2,322.40 ",25/02/2016
Delivery Units,Adults and Communities,Other Agencies - Third Party P,30112362,JEWISH CARE," 2,322.40 ",25/02/2016
Delivery Units,Adults and Communities,Other Agencies - Third Party P,30112363,JEWISH CARE," 2,322.40 ",25/02/2016
Delivery Units,Adults and Communities,Other Agencies - Third Party P,30112364,JEWISH CARE," 2,322.40 ",25/02/2016
Delivery Units,Adults and Communities,Other Agencies - Third Party P,30112365,JEWISH CARE," 2,322.40 ",25/02/2016
Delivery Units,Adults and Communities,Other Agencies - Third Party P,30112366,JEWISH CARE," 2,322.40 ",25/02/2016
Delivery Units,Adults and Communities,Other Agencies - Third Party P,30112367,JEWISH CARE," 2,322.40 ",25/02/2016
Delivery Units,Adults and Communities,Other Agencies - Third Party P,30112368,JEWISH CARE," 2,322.40 ",25/02/2016
Delivery Units,Adults and Communities,Other Agencies - Third Party P,30112369,JEWISH CARE," 2,133.36 ",25/02/2016
Delivery Units,Adults and Communities,Other Agencies - Third Party P,30112370,JEWISH CARE," 2,322.40 ",25/02/2016
Delivery Units,Adults and Communities,Other Agencies - Third Party P,30112371,JEWISH CARE," 2,322.40 ",25/02/2016
Delivery Units,Adults and Communities,Other Agencies - Third Party P,30112372,JEWISH CARE," 2,133.36 ",25/02/2016
Delivery Units,Adults and Communities,Other Agencies - Third Party P,30112373,JEWISH CARE," 2,322.40 ",25/02/2016
Delivery Units,Adults and Communities,Other Agencies - Third Party P,30112374,JEWISH CARE," 2,322.40 ",25/02/2016
Delivery Units,Adults and Communities,Other Agencies - Third Party P,30112375,JEWISH CARE," 2,322.40 ",25/02/2016
Delivery Units,Adults and Communities,Other Agencies - Third Party P,30112376,JEWISH CARE," 2,133.36 ",25/02/2016
Delivery Units,Adults and Communities,Other Agencies - Third Party P,30112377,JEWISH CARE," 2,133.36 ",25/02/2016
Delivery Units,Adults and Communities,Other Agencies - Third Party P,30112378,JEWISH CARE," 2,273.96 ",25/02/2016
Delivery Units,Adults and Communities,Other Agencies - Third Party P,30112379,JEWISH CARE," 2,273.96 ",25/02/2016
Delivery Units,Adults and Communities,Other Agencies - Third Party P,30112699,JEWISH CARE," 2,133.36 ",25/02/2016
Delivery Units,Adults and Communities,Other Agencies - Third Party P,30110859,JIGSAW CREATIVE CARE LIMITED," 9,065.28 ",17/02/2016
Delivery Units,Adults and Communities,Other Agencies - Third Party P,30110861,JIGSAW CREATIVE CARE LIMITED," 8,349.00 ",17/02/2016
Delivery Units,Adults and Communities,Other Agencies - Third Party P,30110862,JIGSAW CREATIVE CARE LIMITED," 4,236.00 ",17/02/2016
Delivery Units,Adults and Communities,Other Agencies - Third Party P,30112063,JIGSAW CREATIVE CARE LIMITED," 2,998.68 ",24/02/2016
Delivery Units,Adults and Communities,Other Agencies - Third Party P,30112064,JIGSAW CREATIVE CARE LIMITED," 1,412.00 ",24/02/2016
Delivery Units,Adults and Communities,Other Agencies - Third Party P,30112065,JIGSAW CREATIVE CARE LIMITED," 2,783.00 ",24/02/2016
Delivery Units,Adults and Communities,Other Agencies - Third Party P,30109720,KEMBLE HOUSE," 9,680.37 ",09/02/2016
Delivery Units,Adults and Communities,Other Agencies - Third Party P,30109722,KEMBLE HOUSE," 3,339.01 ",09/02/2016
Delivery Units,Adults and Communities,Other Agencies - Third Party P,20028395,KILCULLEN HOMES (UK) LLP," 1,569.48 ",17/02/2016
Delivery Units,Adults and Communities,Other Agencies - Third Party P,20028396,KILCULLEN HOMES (UK) LLP," 1,569.48 ",17/02/2016
Delivery Units,Adults and Communities,Other Agencies - Third Party P,30109254,KILCULLEN HOMES (UK) LLP," 1,569.48 ",02/02/2016
Delivery Units,Adults and Communities,Other Agencies - Third Party P,30110139,KILCULLEN HOMES (UK) LLP," 1,569.48 ",10/02/2016
Delivery Units,Adults and Communities,Other Agencies - Third Party P,30110140,KILCULLEN HOMES (UK) LLP," 1,569.48 ",10/02/2016
Delivery Units,Adults and Communities,Other Agencies - Third Party P,30113035,KILCULLEN HOMES (UK) LLP," 1,569.48 ",26/02/2016
Delivery Units,Adults and Communities,Other Agencies - Third Party P,30110878,KISHARON DAY SCHOOL," 1,595.00 ",17/02/2016
Delivery Units,Adults and Communities,Other Agencies - Third Party P,30110879,KISHARON DAY SCHOOL," 1,595.00 ",17/02/2016
Delivery Units,Adults and Communities,Other Agencies - Third Party P,30110880,KISHARON DAY SCHOOL," 1,595.00 ",17/02/2016
Delivery Units,Adults and Communities,Other Agencies - Third Party P,30110881,KISHARON DAY SCHOOL," 1,595.00 ",17/02/2016
Delivery Units,Adults and Communities,Other Agencies - Third Party P,30110882,KISHARON DAY SCHOOL," 1,464.03 ",17/02/2016
Delivery Units,Adults and Communities,Other Agencies - Third Party P,30110883,KISHARON DAY SCHOOL," 4,260.72 ",17/02/2016
Delivery Units,Adults and Communities,Other Agencies - Third Party P,30110884,KISHARON DAY SCHOOL," 2,144.10 ",17/02/2016
Delivery Units,Adults and Communities,Other Agencies - Third Party P,30110885,KISHARON DAY SCHOOL," 2,284.24 ",17/02/2016
Delivery Units,Adults and Communities,Other Agencies - Third Party P,30110886,KISHARON DAY SCHOOL, 794.08 ,17/02/2016
Delivery Units,Adults and Communities,Other Agencies - Third Party P,30110887,KISHARON DAY SCHOOL, 381.54 ,17/02/2016
Delivery Units,Adults and Communities,Other Agencies - Third Party P,30110888,KISHARON DAY SCHOOL," 1,373.49 ",17/02/2016
Delivery Units,Adults and Communities,Other Agencies - Third Party P,30110889,KISHARON DAY SCHOOL," 1,679.87 ",17/02/2016
Delivery Units,Adults and Communities,Other Agencies - Third Party P,30110890,KISHARON DAY SCHOOL," 1,241.16 ",17/02/2016
Delivery Units,Adults and Communities,Other Agencies - Third Party P,30110891,KISHARON DAY SCHOOL," 1,369.23 ",17/02/2016
Delivery Units,Adults and Communities,Other Agencies - Third Party P,30110892,KISHARON DAY SCHOOL, 733.72 ,17/02/2016
Delivery Units,Adults and Communities,Other Agencies - Third Party P,30110893,KISHARON DAY SCHOOL," 1,275.96 ",17/02/2016
Delivery Units,Adults and Communities,Other Agencies - Third Party P,30110898,KISHARON DAY SCHOOL," 1,914.00 ",17/02/2016
Delivery Units,Adults and Communities,Other Agencies - Third Party P,30110899,KISHARON DAY SCHOOL," 6,128.00 ",17/02/2016
Delivery Units,Adults and Communities,Other Agencies - Third Party P,30111151,KISHARON DAY SCHOOL," 1,595.00 ",19/02/2016
Delivery Units,Adults and Communities,Other Agencies - Third Party P,30111152,KISHARON DAY SCHOOL, 686.88 ,19/02/2016
Delivery Units,Adults and Communities,Other Agencies - Third Party P,30111153,KISHARON DAY SCHOOL," 1,373.49 ",19/02/2016
Delivery Units,Adults and Communities,Other Agencies - Third Party P,30111154,KISHARON DAY SCHOOL, 397.11 ,19/02/2016
Delivery Units,Adults and Communities,Other Agencies - Third Party P,30111155,KISHARON DAY SCHOOL," 1,340.18 ",19/02/2016
Delivery Units,Adults and Communities,Other Agencies - Third Party P,30111156,KISHARON DAY SCHOOL," 1,373.68 ",19/02/2016
Delivery Units,Adults and Communities,Other Agencies - Third Party P,30111244,KISHARON DAY SCHOOL,"-17,287.40 ",19/02/2016
Delivery Units,Adults and Communities,Other Agencies - Third Party P,30109723,KISIMUL GROUP LTD," 36,114.26 ",09/02/2016
Delivery Units,Adults and Communities,Other Agencies - Third Party P,30109501,LANGDON COMMUNITY LTD, 851.20 ,04/02/2016
Delivery Units,Adults and Communities,Other Agencies - Third Party P,30109502,LANGDON COMMUNITY LTD," 2,979.20 ",04/02/2016
Delivery Units,Adults and Communities,Other Agencies - Third Party P,30109503,LANGDON COMMUNITY LTD," 1,276.80 ",04/02/2016
Delivery Units,Adults and Communities,Other Agencies - Third Party P,30109504,LANGDON COMMUNITY LTD, 425.60 ,04/02/2016
Delivery Units,Adults and Communities,Other Agencies - Third Party P,30109505,LANGDON COMMUNITY LTD," 1,064.00 ",04/02/2016
Delivery Units,Adults and Communities,Other Agencies - Third Party P,30109507,LANGDON COMMUNITY LTD, 608.00 ,04/02/2016
Delivery Units,Adults and Communities,Other Agencies - Third Party P,30109508,LANGDON COMMUNITY LTD," 1,315.12 ",04/02/2016
Delivery Units,Adults and Communities,Other Agencies - Third Party P,30109509,LANGDON COMMUNITY LTD," 1,763.20 ",04/02/2016
Delivery Units,Adults and Communities,Other Agencies - Third Party P,30109510,LANGDON COMMUNITY LTD, 243.20 ,04/02/2016
Delivery Units,Adults and Communities,Other Agencies - Third Party P,30109511,LANGDON COMMUNITY LTD," 2,403.92 ",04/02/2016
Delivery Units,Adults and Communities,Other Agencies - Third Party P,30109513,LANGDON COMMUNITY LTD," 1,772.32 ",04/02/2016
Delivery Units,Adults and Communities,Other Agencies - Third Party P,30109514,LANGDON COMMUNITY LTD," 3,411.49 ",04/02/2016
Delivery Units,Adults and Communities,Other Agencies - Third Party P,30109515,LANGDON COMMUNITY LTD," 1,641.60 ",04/02/2016
Delivery Units,Adults and Communities,Other Agencies - Third Party P,30109516,LANGDON COMMUNITY LTD," 5,002.64 ",04/02/2016
Delivery Units,Adults and Communities,Other Agencies - Third Party P,30109517,LANGDON COMMUNITY LTD, 956.38 ,04/02/2016
Delivery Units,Adults and Communities,Other Agencies - Third Party P,30109518,LANGDON COMMUNITY LTD," 6,335.32 ",04/02/2016
Delivery Units,Adults and Communities,Other Agencies - Third Party P,30109519,LANGDON COMMUNITY LTD," 2,097.60 ",04/02/2016
Delivery Units,Adults and Communities,Other Agencies - Third Party P,30112044,LANGDON COMMUNITY LTD," 2,097.60 ",24/02/2016
Delivery Units,Adults and Communities,Other Agencies - Third Party P,30112045,LANGDON COMMUNITY LTD," 6,335.32 ",24/02/2016
Delivery Units,Adults and Communities,Other Agencies - Third Party P,30112046,LANGDON COMMUNITY LTD, 956.38 ,24/02/2016
Delivery Units,Adults and Communities,Other Agencies - Third Party P,30112047,LANGDON COMMUNITY LTD," 5,002.64 ",24/02/2016
Delivery Units,Adults and Communities,Other Agencies - Third Party P,30112048,LANGDON COMMUNITY LTD," 1,641.60 ",24/02/2016
Delivery Units,Adults and Communities,Other Agencies - Third Party P,30112049,LANGDON COMMUNITY LTD," 3,411.49 ",24/02/2016
Delivery Units,Adults and Communities,Other Agencies - Third Party P,30112050,LANGDON COMMUNITY LTD," 1,772.32 ",24/02/2016
Delivery Units,Adults and Communities,Other Agencies - Third Party P,30112052,LANGDON COMMUNITY LTD," 2,403.92 ",24/02/2016
Delivery Units,Adults and Communities,Other Agencies - Third Party P,30112053,LANGDON COMMUNITY LTD, 243.20 ,24/02/2016
Delivery Units,Adults and Communities,Other Agencies - Third Party P,30112054,LANGDON COMMUNITY LTD," 1,763.20 ",24/02/2016
Delivery Units,Adults and Communities,Other Agencies - Third Party P,30112055,LANGDON COMMUNITY LTD," 1,315.12 ",24/02/2016
Delivery Units,Adults and Communities,Other Agencies - Third Party P,30112056,LANGDON COMMUNITY LTD, 608.00 ,24/02/2016
Delivery Units,Adults and Communities,Other Agencies - Third Party P,30112058,LANGDON COMMUNITY LTD," 1,064.00 ",24/02/2016
Delivery Units,Adults and Communities,Other Agencies - Third Party P,30112059,LANGDON COMMUNITY LTD, 425.60 ,24/02/2016
Delivery Units,Adults and Communities,Other Agencies - Third Party P,30112060,LANGDON COMMUNITY LTD," 1,276.80 ",24/02/2016
Delivery Units,Adults and Communities,Other Agencies - Third Party P,30112061,LANGDON COMMUNITY LTD," 2,979.20 ",24/02/2016
Delivery Units,Adults and Communities,Other Agencies - Third Party P,30112062,LANGDON COMMUNITY LTD, 851.20 ,24/02/2016
Delivery Units,Adults and Communities,Other Agencies - Third Party P,30109368,LCS PARTNERSHIPS LTD, 896.00 ,05/02/2016
Delivery Units,Adults and Communities,Other Agencies - Third Party P,30110815,LCS PARTNERSHIPS LTD, 896.00 ,19/02/2016
Delivery Units,Adults and Communities,Other Agencies - Third Party P,30109962,LEEMING BAR CARE HOME," 1,939.32 ",09/02/2016
Delivery Units,Adults and Communities,Other Agencies - Third Party P,30108990,LEO BAECK HOUSING ASSOC. LTD," 1,726.64 ",04/02/2016
Delivery Units,Adults and Communities,Other Agencies - Third Party P,30109172,LEO BAECK HOUSING ASSOC. LTD," 2,249.36 ",04/02/2016
Delivery Units,Adults and Communities,Other Agencies - Third Party P,30109173,LEO BAECK HOUSING ASSOC. LTD," 2,249.36 ",04/02/2016
Delivery Units,Adults and Communities,Other Agencies - Third Party P,30109174,LEO BAECK HOUSING ASSOC. LTD," 2,249.36 ",04/02/2016
Delivery Units,Adults and Communities,Other Agencies - Third Party P,30109175,LEO BAECK HOUSING ASSOC. LTD," 2,249.36 ",04/02/2016
Delivery Units,Adults and Communities,Other Agencies - Third Party P,30109176,LEO BAECK HOUSING ASSOC. LTD," 2,249.36 ",04/02/2016
Delivery Units,Adults and Communities,Other Agencies - Third Party P,30109244,LEO BAECK HOUSING ASSOC. LTD," 1,426.36 ",04/02/2016
Delivery Units,Adults and Communities,Other Agencies - Third Party P,20028162,LIAISE LODDON LTD," 12,000.00 ",08/02/2016
Delivery Units,Adults and Communities,Other Agencies - Third Party P,20028163,LIAISE LODDON LTD," 12,000.00 ",08/02/2016
Delivery Units,Adults and Communities,Other Agencies - Third Party P,30109394,LIFESTYLE CARE 2011 PLC," 2,138.00 ",03/02/2016
Delivery Units,Adults and Communities,Other Agencies - Third Party P,30109390,LIFESTYLE CARE PLC," 2,094.52 ",03/02/2016
Delivery Units,Adults and Communities,Other Agencies - Third Party P,30109391,LIFESTYLE CARE PLC," 2,094.52 ",03/02/2016
Delivery Units,Adults and Communities,Other Agencies - Third Party P,30109392,LIFESTYLE CARE PLC," 2,321.64 ",03/02/2016
Delivery Units,Adults and Communities,Other Agencies - Third Party P,30109393,LIFESTYLE CARE PLC," 2,094.52 ",03/02/2016
Delivery Units,Adults and Communities,Other Agencies - Third Party P,30110979,LIFESTYLE CARE PLC," 2,094.52 ",17/02/2016
